Department,Entity,Date of Payment,Expense Type,Expense Area,Supplier,Transaction Number,Amount
United Kingdon Atomic Energy Authority,United Kingdon Atomic Energy Authority,02/12/2013,MATERIALS & SPARES,FUSION,600 UK,5100296804,610
United Kingdon Atomic Energy Authority,United Kingdon Atomic Energy Authority,04/12/2013,MATERIALS & SPARES,FUSION,A AND J NON FERROUS LLP,5100297026,92.76
United Kingdon Atomic Energy Authority,United Kingdon Atomic Energy Authority,18/12/2013,PLANT SPARES,FUSION,A D INSTALLATION LTD,5100295964,620
United Kingdon Atomic Energy Authority,United Kingdon Atomic Energy Authority,18/12/2013,PLANT SPARES,FUSION,A D INSTALLATION LTD,5100297581,620
United Kingdon Atomic Energy Authority,United Kingdon Atomic Energy Authority,04/12/2013,PLANT SPARES,FUSION,A D INSTALLATION LTD,5100295658,1762
United Kingdon Atomic Energy Authority,United Kingdon Atomic Energy Authority,16/12/2013,PLANT SPARES,FUSION,A W CLARKE,5100297389,325
United Kingdon Atomic Energy Authority,United Kingdon Atomic Energy Authority,16/12/2013,PLANT SPARES,FUSION,A W CLARKE,5100297388,520
United Kingdon Atomic Energy Authority,United Kingdon Atomic Energy Authority,25/11/2013,PLANT SPARES,FUSION,A W CLARKE,5100294702,8030
United Kingdon Atomic Energy Authority,United Kingdon Atomic Energy Authority,25/11/2013,PLANT & EQUIPMENT,FUSION,AALCO LIMITED,5100296511,29.25
United Kingdon Atomic Energy Authority,United Kingdon Atomic Energy Authority,25/11/2013,PLANT & EQUIPMENT,FUSION,AALCO LIMITED,5100296510,29.75
United Kingdon Atomic Energy Authority,United Kingdon Atomic Energy Authority,23/12/2013,PLANT & EQUIPMENT,PROPERTY,AALCO LIMITED,5100298052,62.5
United Kingdon Atomic Energy Authority,United Kingdon Atomic Energy Authority,23/12/2013,PLANT & EQUIPMENT,FUSION,AALCO LIMITED,5100298070,93.75
United Kingdon Atomic Energy Authority,United Kingdon Atomic Energy Authority,25/11/2013,PLANT & EQUIPMENT,PROPERTY,AALCO LIMITED,5100296509,95.8
United Kingdon Atomic Energy Authority,United Kingdon Atomic Energy Authority,23/12/2013,PLANT & EQUIPMENT,FUSION,AALCO LIMITED,5100298068,133.75
United Kingdon Atomic Energy Authority,United Kingdon Atomic Energy Authority,23/12/2013,PLANT & EQUIPMENT,FUSION,AALCO LIMITED,5100298069,199.75
United Kingdon Atomic Energy Authority,United Kingdon Atomic Energy Authority,23/12/2013,PLANT & EQUIPMENT,FUSION,AALCO LIMITED,5100298071,250.25
United Kingdon Atomic Energy Authority,United Kingdon Atomic Energy Authority,23/12/2013,PLANT & EQUIPMENT,FUSION,AALCO LIMITED,5100298053,313.25
United Kingdon Atomic Energy Authority,United Kingdon Atomic Energy Authority,27/11/2013,PLANT & EQUIPMENT,FUSION,AALCO LIMITED,5100296778,378
United Kingdon Atomic Energy Authority,United Kingdon Atomic Energy Authority,09/12/2013,PLANT & EQUIPMENT,FUSION,AALCO LIMITED,5100297059,444.9
United Kingdon Atomic Energy Authority,United Kingdon Atomic Energy Authority,23/12/2013,PLANT & EQUIPMENT,FUSION,AALCO LIMITED,5100298073,623.5
United Kingdon Atomic Energy Authority,United Kingdon Atomic Energy Authority,23/12/2013,PLANT & EQUIPMENT,FUSION,AALCO LIMITED,5100298072,821
United Kingdon Atomic Energy Authority,United Kingdon Atomic Energy Authority,02/12/2013,PLANT & EQUIPMENT,FUSION,AALCO LIMITED,5100296874,1495.35
United Kingdon Atomic Energy Authority,United Kingdon Atomic Energy Authority,11/12/2013,TRAINING COURSE FEES,FUSION,ABINGDON & WITNEY COLLEGE,5100297440,1417
United Kingdon Atomic Energy Authority,United Kingdon Atomic Energy Authority,11/12/2013,TRAINING COURSE FEES,SUPPORT SERVICES,ABINGDON & WITNEY COLLEGE,5100297439,1688.95
United Kingdon Atomic Energy Authority,United Kingdon Atomic Energy Authority,16/12/2013,CONSUMABLES,SUPPORT SERVICES,ABLOY SECURITY,5100297578,166
United Kingdon Atomic Energy Authority,United Kingdon Atomic Energy Authority,25/11/2013,MATERIALS & SPARES,FUSION,ACAL TECHNOLOGY LTD,5100296716,3450
United Kingdon Atomic Energy Authority,United Kingdon Atomic Energy Authority,27/11/2013,MATERIALS & SPARES,FUSION,ACRONA ENGINEERING LTD,5100296471,1415.37
United Kingdon Atomic Energy Authority,United Kingdon Atomic Energy Authority,16/12/2013,PLANT & EQUIPMENT,FUSION,ACTIV_AIR AUTOMATION LTD,5100297673,165.83
United Kingdon Atomic Energy Authority,United Kingdon Atomic Energy Authority,04/12/2013,IT EQUIPMENT NON CAPITAL,FUSION,ADEPT SCIENNTIFIC PLC,5100297180,-5665
United Kingdon Atomic Energy Authority,United Kingdon Atomic Energy Authority,04/12/2013,IT EQUIPMENT NON CAPITAL,FUSION,ADEPT SCIENNTIFIC PLC,5100296890,5665
United Kingdon Atomic Energy Authority,United Kingdon Atomic Energy Authority,04/12/2013,IT EQUIPMENT NON CAPITAL,FUSION,ADEPT SCIENNTIFIC PLC,5100297184,5665
United Kingdon Atomic Energy Authority,United Kingdon Atomic Energy Authority,03/12/2013,MATERIALS & SPARES,FUSION,AgileSwitch LLC,1900059169,623.36,CUL 12556
United Kingdon Atomic Energy Authority,United Kingdon Atomic Energy Authority,27/11/2013,MATERIALS & SPARES,FUSION,AIHA - PROFICIENCY TESTING PROGRAMMES,5100296523,2979.89
United Kingdon Atomic Energy Authority,United Kingdon Atomic Energy Authority,23/12/2013,GASES,FUSION,AIR PRODUCTS PLC,5100297984,4.56
United Kingdon Atomic Energy Authority,United Kingdon Atomic Energy Authority,23/12/2013,GASES,FUSION,AIR PRODUCTS PLC,5100297986,19.5
United Kingdon Atomic Energy Authority,United Kingdon Atomic Energy Authority,23/12/2013,GASES,FUSION,AIR PRODUCTS PLC,5100297987,19.5
United Kingdon Atomic Energy Authority,United Kingdon Atomic Energy Authority,11/12/2013,GASES,FUSION,AIR PRODUCTS PLC,5100296690,20.15
United Kingdon Atomic Energy Authority,United Kingdon Atomic Energy Authority,27/11/2013,GASES,FUSION,AIR PRODUCTS PLC,5100296689,20.15
United Kingdon Atomic Energy Authority,United Kingdon Atomic Energy Authority,23/12/2013,GASES,FUSION,AIR PRODUCTS PLC,5100297989,35.1
United Kingdon Atomic Energy Authority,United Kingdon Atomic Energy Authority,25/11/2013,GASES,FUSION,AIR PRODUCTS PLC,5100296691,40.3
United Kingdon Atomic Energy Authority,United Kingdon Atomic Energy Authority,25/11/2013,GASES,FUSION,AIR PRODUCTS PLC,5100296688,100.75
United Kingdon Atomic Energy Authority,United Kingdon Atomic Energy Authority,23/12/2013,MATERIALS & SPARES,FUSION,ALLECTRA LTD,5100297879,724
United Kingdon Atomic Energy Authority,United Kingdon Atomic Energy Authority,18/12/2013,VEHICLE REPAIRS,FUSION,ALLPARTS AUTOMOTIVE LTD,5100297750,8.97
United Kingdon Atomic Energy Authority,United Kingdon Atomic Energy Authority,27/11/2013,VEHICLE REPAIRS,FUSION,ALLPARTS AUTOMOTIVE LTD,5100296477,30.09
United Kingdon Atomic Energy Authority,United Kingdon Atomic Energy Authority,09/12/2013,MATERIALS & SPARES,FUSION,ALPHA ENGINEERING SUPPLIES,5100297241,-32.64
United Kingdon Atomic Energy Authority,United Kingdon Atomic Energy Authority,16/12/2013,MATERIALS & SPARES,FUSION,ALPHA ENGINEERING SUPPLIES,5100297763,175.01
United Kingdon Atomic Energy Authority,United Kingdon Atomic Energy Authority,09/12/2013,MATERIALS & SPARES,FUSION,ALPHA ENGINEERING SUPPLIES,5100297240,196.6
United Kingdon Atomic Energy Authority,United Kingdon Atomic Energy Authority,09/12/2013,MATERIALS & SPARES,FUSION,ALPHA ENGINEERING SUPPLIES,5100296381,397.24
United Kingdon Atomic Energy Authority,United Kingdon Atomic Energy Authority,09/12/2013,PLANT & EQUIPMENT,FUSION,ALPHA LABORATORIES,5100297288,1031
United Kingdon Atomic Energy Authority,United Kingdon Atomic Energy Authority,09/12/2013,MATERIALS & SPARES,FUSION,ALPHA PACKAGING,5100297060,489.87
United Kingdon Atomic Energy Authority,United Kingdon Atomic Energy Authority,09/12/2013,MATERIALS & SPARES,FUSION,ALPHA PACKAGING,5100297061,489.87
United Kingdon Atomic Energy Authority,United Kingdon Atomic Energy Authority,25/11/2013,PLANT & EQUIPMENT,FUSION,AMAZON FILTERS LTD,5100296522,350.8
United Kingdon Atomic Energy Authority,United Kingdon Atomic Energy Authority,16/12/2013,MATERIALS & SPARES,FUSION,AMPLICON LIVELINE LTD,5100297604,787
United Kingdon Atomic Energy Authority,United Kingdon Atomic Energy Authority,09/12/2013,MATERIALS & SPARES,FUSION,AMPLICON LIVELINE LTD,5100297106,950
United Kingdon Atomic Energy Authority,United Kingdon Atomic Energy Authority,25/11/2013,MATERIALS & SPARES,FUSION,AMPLICON LIVELINE LTD,5100296687,3440.2
United Kingdon Atomic Energy Authority,United Kingdon Atomic Energy Authority,25/11/2013,SOFTWARE,FUSION,AMTECH POWER SOFTWARE,5100296677,726.75
United Kingdon Atomic Energy Authority,United Kingdon Atomic Energy Authority,25/11/2013,SOFTWARE,FUSION,AMTECH POWER SOFTWARE,5100296676,2775
United Kingdon Atomic Energy Authority,United Kingdon Atomic Energy Authority,`,REPAIRS & MAINTENANCE,FUSION,ANDREWS SYKES,5100297237,894.6
United Kingdon Atomic Energy Authority,United Kingdon Atomic Energy Authority,02/12/2013,MATERIALS & SPARES,FUSION,ANGLE RING COMPANY LIMITED,5100296993,1710
United Kingdon Atomic Energy Authority,United Kingdon Atomic Energy Authority,23/12/2013,MATERIALS & SPARES,FUSION,ANIXTER (UK) LTD,5100298085,654.5
United Kingdon Atomic Energy Authority,United Kingdon Atomic Energy Authority,25/11/2013,OPERATING LEASE,FUSION,ANNODATA BUSINESS COMMUNICATIONS,5100296762,1719.72
United Kingdon Atomic Energy Authority,United Kingdon Atomic Energy Authority,25/11/2013,OPERATING LEASE,FUSION,ANNODATA BUSINESS COMMUNICATIONS,5100296763,38584.16
United Kingdon Atomic Energy Authority,United Kingdon Atomic Energy Authority,27/11/2013,PROFESSIONAL SERVICES,SUPPORT SERVICES,AON HEWITT LTD,5100296799,3525.35
United Kingdon Atomic Energy Authority,United Kingdon Atomic Energy Authority,27/11/2013,PROFESSIONAL SERVICES,SUPPORT SERVICES,AON HEWITT LTD,5100296798,16792.4
United Kingdon Atomic Energy Authority,United Kingdon Atomic Energy Authority,27/11/2013,PROFESSIONAL SERVICES,SUPPORT SERVICES,AON HEWITT LTD,5100296800,150157.16
United Kingdon Atomic Energy Authority,United Kingdon Atomic Energy Authority,23/12/2013,SOFTWARE,FUSION,APPLIED CAE,5100297978,4935.94
United Kingdon Atomic Energy Authority,United Kingdon Atomic Energy Authority,02/12/2013,CONSULTANCY,FUSION,AQUILA NUCLEAR ENGINEERING,5100296937,25297.33
United Kingdon Atomic Energy Authority,United Kingdon Atomic Energy Authority,23/12/2013,CONSULTANCY,FUSION,AQUILA NUCLEAR ENGINEERING,5100298021,35140
United Kingdon Atomic Energy Authority,United Kingdon Atomic Energy Authority,02/12/2013,PERSONAL PROTECTIVE EQUIPMENT,FUSION,ARCO LTD,5100296683,-2028.8
United Kingdon Atomic Energy Authority,United Kingdon Atomic Energy Authority,25/11/2013,PERSONAL PROTECTIVE EQUIPMENT,FUSION,ARCO LTD,5100296587,-128.8
United Kingdon Atomic Energy Authority,United Kingdon Atomic Energy Authority,09/12/2013,PERSONAL PROTECTIVE EQUIPMENT,FUSION,ARCO LTD,5100297228,-11.6
United Kingdon Atomic Energy Authority,United Kingdon Atomic Energy Authority,25/11/2013,PERSONAL PROTECTIVE EQUIPMENT,FUSION,ARCO LTD,5100296665,5.3
United Kingdon Atomic Energy Authority,United Kingdon Atomic Energy Authority,16/12/2013,PERSONAL PROTECTIVE EQUIPMENT,SUPPORT SERVICES,ARCO LTD,5100297420,5.6
United Kingdon Atomic Energy Authority,United Kingdon Atomic Energy Authority,16/12/2013,PERSONAL PROTECTIVE EQUIPMENT,FUSION,ARCO LTD,5100297413,12.37
United Kingdon Atomic Energy Authority,United Kingdon Atomic Energy Authority,09/12/2013,PERSONAL PROTECTIVE EQUIPMENT,FUSION,ARCO LTD,5100297048,17.32
United Kingdon Atomic Energy Authority,United Kingdon Atomic Energy Authority,11/12/2013,PERSONAL PROTECTIVE EQUIPMENT,FUSION,ARCO LTD,5100297101,24
United Kingdon Atomic Energy Authority,United Kingdon Atomic Energy Authority,16/12/2013,PERSONAL PROTECTIVE EQUIPMENT,FUSION,ARCO LTD,5100297421,25.44
United Kingdon Atomic Energy Authority,United Kingdon Atomic Energy Authority,02/12/2013,PERSONAL PROTECTIVE EQUIPMENT,SUPPORT SERVICES,ARCO LTD,5100296838,28.3
United Kingdon Atomic Energy Authority,United Kingdon Atomic Energy Authority,16/12/2013,PERSONAL PROTECTIVE EQUIPMENT,FUSION,ARCO LTD,5100297691,29.16
United Kingdon Atomic Energy Authority,United Kingdon Atomic Energy Authority,02/12/2013,PERSONAL PROTECTIVE EQUIPMENT,FUSION,ARCO LTD,5100296684,30.6
United Kingdon Atomic Energy Authority,United Kingdon Atomic Energy Authority,25/11/2013,PERSONAL PROTECTIVE EQUIPMENT,FUSION,ARCO LTD,5100296588,34.64
United Kingdon Atomic Energy Authority,United Kingdon Atomic Energy Authority,09/12/2013,PERSONAL PROTECTIVE EQUIPMENT,FUSION,ARCO LTD,5100297232,36.72
United Kingdon Atomic Energy Authority,United Kingdon Atomic Energy Authority,16/12/2013,PERSONAL PROTECTIVE EQUIPMENT,FUSION,ARCO LTD,5100297412,39.46
United Kingdon Atomic Energy Authority,United Kingdon Atomic Energy Authority,02/12/2013,PERSONAL PROTECTIVE EQUIPMENT,FUSION,ARCO LTD,5100296847,41.24
United Kingdon Atomic Energy Authority,United Kingdon Atomic Energy Authority,02/12/2013,PERSONAL PROTECTIVE EQUIPMENT,FUSION,ARCO LTD,5100296839,46.2
United Kingdon Atomic Energy Authority,United Kingdon Atomic Energy Authority,23/12/2013,PERSONAL PROTECTIVE EQUIPMENT,FUSION,ARCO LTD,5100297947,47.95
United Kingdon Atomic Energy Authority,United Kingdon Atomic Energy Authority,09/12/2013,PERSONAL PROTECTIVE EQUIPMENT,FUSION,ARCO LTD,5100297235,55.72
United Kingdon Atomic Energy Authority,United Kingdon Atomic Energy Authority,16/12/2013,PERSONAL PROTECTIVE EQUIPMENT,FUSION,ARCO LTD,5100297418,57.94
United Kingdon Atomic Energy Authority,United Kingdon Atomic Energy Authority,25/11/2013,PERSONAL PROTECTIVE EQUIPMENT,FUSION,ARCO LTD,5100296671,60
United Kingdon Atomic Energy Authority,United Kingdon Atomic Energy Authority,25/11/2013,PERSONAL PROTECTIVE EQUIPMENT,FUSION,ARCO LTD,5100296664,62.5
United Kingdon Atomic Energy Authority,United Kingdon Atomic Energy Authority,23/12/2013,PERSONAL PROTECTIVE EQUIPMENT,FUSION,ARCO LTD,5100297898,63.16
United Kingdon Atomic Energy Authority,United Kingdon Atomic Energy Authority,09/12/2013,PERSONAL PROTECTIVE EQUIPMENT,FUSION,ARCO LTD,5100297234,66.76
United Kingdon Atomic Energy Authority,United Kingdon Atomic Energy Authority,25/11/2013,PERSONAL PROTECTIVE EQUIPMENT,FUSION,ARCO LTD,5100296531,68.58
United Kingdon Atomic Energy Authority,United Kingdon Atomic Energy Authority,16/12/2013,PERSONAL PROTECTIVE EQUIPMENT,FUSION,ARCO LTD,5100297414,77.12
United Kingdon Atomic Energy Authority,United Kingdon Atomic Energy Authority,25/11/2013,PERSONAL PROTECTIVE EQUIPMENT,FUSION,ARCO LTD,5100296670,77.76
United Kingdon Atomic Energy Authority,United Kingdon Atomic Energy Authority,02/12/2013,PERSONAL PROTECTIVE EQUIPMENT,FUSION,ARCO LTD,5100296837,78
United Kingdon Atomic Energy Authority,United Kingdon Atomic Energy Authority,25/11/2013,PERSONAL PROTECTIVE EQUIPMENT,FUSION,ARCO LTD,5100296686,82.39
United Kingdon Atomic Energy Authority,United Kingdon Atomic Energy Authority,23/12/2013,PERSONAL PROTECTIVE EQUIPMENT,SUPPORT SERVICES,ARCO LTD,5100297900,89.26
United Kingdon Atomic Energy Authority,United Kingdon Atomic Energy Authority,25/11/2013,PERSONAL PROTECTIVE EQUIPMENT,FUSION,ARCO LTD,5100296579,89.76
United Kingdon Atomic Energy Authority,United Kingdon Atomic Energy Authority,16/12/2013,PERSONAL PROTECTIVE EQUIPMENT,FUSION,ARCO LTD,5100297416,104.68
United Kingdon Atomic Energy Authority,United Kingdon Atomic Energy Authority,25/11/2013,PERSONAL PROTECTIVE EQUIPMENT,FUSION,ARCO LTD,5100296513,111.97
United Kingdon Atomic Energy Authority,United Kingdon Atomic Energy Authority,25/11/2013,PERSONAL PROTECTIVE EQUIPMENT,FUSION,ARCO LTD,5100296590,117.04
United Kingdon Atomic Energy Authority,United Kingdon Atomic Energy Authority,23/12/2013,PERSONAL PROTECTIVE EQUIPMENT,FUSION,ARCO LTD,5100297948,126.33
United Kingdon Atomic Energy Authority,United Kingdon Atomic Energy Authority,23/12/2013,PERSONAL PROTECTIVE EQUIPMENT,FUSION,ARCO LTD,5100297899,132.89
United Kingdon Atomic Energy Authority,United Kingdon Atomic Energy Authority,16/12/2013,PERSONAL PROTECTIVE EQUIPMENT,FUSION,ARCO LTD,5100297687,143.03
United Kingdon Atomic Energy Authority,United Kingdon Atomic Energy Authority,09/12/2013,PERSONAL PROTECTIVE EQUIPMENT,FUSION,ARCO LTD,5100296514,146.64
United Kingdon Atomic Energy Authority,United Kingdon Atomic Energy Authority,25/11/2013,PERSONAL PROTECTIVE EQUIPMENT,FUSION,ARCO LTD,5100296668,148.63
United Kingdon Atomic Energy Authority,United Kingdon Atomic Energy Authority,25/11/2013,PERSONAL PROTECTIVE EQUIPMENT,FUSION,ARCO LTD,5100296589,166.98
United Kingdon Atomic Energy Authority,United Kingdon Atomic Energy Authority,02/12/2013,PERSONAL PROTECTIVE EQUIPMENT,FUSION,ARCO LTD,5100296841,170.55
United Kingdon Atomic Energy Authority,United Kingdon Atomic Energy Authority,25/11/2013,PERSONAL PROTECTIVE EQUIPMENT,FUSION,ARCO LTD,5100296672,171.22
United Kingdon Atomic Energy Authority,United Kingdon Atomic Energy Authority,16/12/2013,PERSONAL PROTECTIVE EQUIPMENT,FUSION,ARCO LTD,5100297404,182.24
United Kingdon Atomic Energy Authority,United Kingdon Atomic Energy Authority,02/12/2013,PERSONAL PROTECTIVE EQUIPMENT,FUSION,ARCO LTD,5100296836,189.58
United Kingdon Atomic Energy Authority,United Kingdon Atomic Energy Authority,23/12/2013,PERSONAL PROTECTIVE EQUIPMENT,FUSION,ARCO LTD,5100297946,190.76
United Kingdon Atomic Energy Authority,United Kingdon Atomic Energy Authority,25/11/2013,PERSONAL PROTECTIVE EQUIPMENT,PROPERTY,ARCO LTD,5100296530,234
United Kingdon Atomic Energy Authority,United Kingdon Atomic Energy Authority,25/11/2013,PERSONAL PROTECTIVE EQUIPMENT,FUSION,ARCO LTD,5100296673,238.77
United Kingdon Atomic Energy Authority,United Kingdon Atomic Energy Authority,23/12/2013,PERSONAL PROTECTIVE EQUIPMENT,FUSION,ARCO LTD,5100297901,253.72
United Kingdon Atomic Energy Authority,United Kingdon Atomic Energy Authority,02/12/2013,PERSONAL PROTECTIVE EQUIPMENT,FUSION,ARCO LTD,5100296685,261.62
United Kingdon Atomic Energy Authority,United Kingdon Atomic Energy Authority,16/12/2013,PERSONAL PROTECTIVE EQUIPMENT,SUPPORT SERVICES,ARCO LTD,5100297102,267.77
United Kingdon Atomic Energy Authority,United Kingdon Atomic Energy Authority,02/12/2013,PERSONAL PROTECTIVE EQUIPMENT,FUSION,ARCO LTD,5100296840,272.88
United Kingdon Atomic Energy Authority,United Kingdon Atomic Energy Authority,25/11/2013,PERSONAL PROTECTIVE EQUIPMENT,SUPPORT SERVICES,ARCO LTD,5100296669,303.28
United Kingdon Atomic Energy Authority,United Kingdon Atomic Energy Authority,25/11/2013,PERSONAL PROTECTIVE EQUIPMENT,FUSION,ARCO LTD,5100296666,342.9
United Kingdon Atomic Energy Authority,United Kingdon Atomic Energy Authority,18/12/2013,PERSONAL PROTECTIVE EQUIPMENT,FUSION,ARCO LTD,5100297693,356.8
United Kingdon Atomic Energy Authority,United Kingdon Atomic Energy Authority,09/12/2013,PERSONAL PROTECTIVE EQUIPMENT,SUPPORT SERVICES,ARCO LTD,5100297233,374.84
United Kingdon Atomic Energy Authority,United Kingdon Atomic Energy Authority,16/12/2013,PERSONAL PROTECTIVE EQUIPMENT,FUSION,ARCO LTD,5100297419,387.8
United Kingdon Atomic Energy Authority,United Kingdon Atomic Energy Authority,25/11/2013,PERSONAL PROTECTIVE EQUIPMENT,FUSION,ARCO LTD,5100296532,434.28
United Kingdon Atomic Energy Authority,United Kingdon Atomic Energy Authority,18/12/2013,PERSONAL PROTECTIVE EQUIPMENT,FUSION,ARCO LTD,5100297694,584.4
United Kingdon Atomic Energy Authority,United Kingdon Atomic Energy Authority,16/12/2013,PERSONAL PROTECTIVE EQUIPMENT,FUSION,ARCO LTD,5100297686,738.42
United Kingdon Atomic Energy Authority,United Kingdon Atomic Energy Authority,02/12/2013,PERSONAL PROTECTIVE EQUIPMENT,FUSION,ARCO LTD,5100296842,1330
United Kingdon Atomic Energy Authority,United Kingdon Atomic Energy Authority,09/12/2013,PERSONAL PROTECTIVE EQUIPMENT,FUSION,ARCO LTD,5100297236,1688.24
United Kingdon Atomic Energy Authority,United Kingdon Atomic Energy Authority,25/11/2013,PERSONAL PROTECTIVE EQUIPMENT,FUSION,ARCO LTD,5100296667,2028.8
United Kingdon Atomic Energy Authority,United Kingdon Atomic Energy Authority,09/12/2013,STATIONERY,FUSION,ARTISAN LITHO PRINT  DESIGN,5100297229,218
United Kingdon Atomic Energy Authority,United Kingdon Atomic Energy Authority,23/12/2013,STATIONERY,FUSION,ARTISAN LITHO PRINT  DESIGN,5100298026,257
United Kingdon Atomic Energy Authority,United Kingdon Atomic Energy Authority,16/12/2013,STATIONERY,FUSION,ARTISAN LITHO PRINT  DESIGN,5100297570,269
United Kingdon Atomic Energy Authority,United Kingdon Atomic Energy Authority,23/12/2013,STATIONERY,FUSION,ARTISAN LITHO PRINT  DESIGN,5100298025,361
United Kingdon Atomic Energy Authority,United Kingdon Atomic Energy Authority,16/12/2013,STATIONERY,FUSION,ARTISAN LITHO PRINT  DESIGN,5100297567,1165
United Kingdon Atomic Energy Authority,United Kingdon Atomic Energy Authority,25/11/2013,PLANT & EQUIPMENT,FUSION,ARVAL UK LIMITED,5100296697,271.62
United Kingdon Atomic Energy Authority,United Kingdon Atomic Energy Authority,09/12/2013,PLANT SPARES,FUSION,AURIGA EUROPE PLC,5100297058,16.25
United Kingdon Atomic Energy Authority,United Kingdon Atomic Energy Authority,02/12/2013,PLANT SPARES,FUSION,AURIGA EUROPE PLC,5100296823,26.25
United Kingdon Atomic Energy Authority,United Kingdon Atomic Energy Authority,23/12/2013,CATERING,PROPERTY,AVENANCE PLC,5100297961,-123.81
United Kingdon Atomic Energy Authority,United Kingdon Atomic Energy Authority,25/11/2013,CATERING,PROPERTY,AVENANCE PLC,5100296468,66.69
United Kingdon Atomic Energy Authority,United Kingdon Atomic Energy Authority,23/12/2013,CATERING,PROPERTY,AVENANCE PLC,5100297943,158.15
United Kingdon Atomic Energy Authority,United Kingdon Atomic Energy Authority,23/12/2013,CATERING,PROPERTY,AVENANCE PLC,5100298080,312.85
United Kingdon Atomic Energy Authority,United Kingdon Atomic Energy Authority,25/11/2013,CATERING,FUSION,AVENANCE PLC,5100296467,334.96
United Kingdon Atomic Energy Authority,United Kingdon Atomic Energy Authority,25/11/2013,CATERING,PROPERTY,AVENANCE PLC,5100296470,514.45
United Kingdon Atomic Energy Authority,United Kingdon Atomic Energy Authority,25/11/2013,CATERING,FUSION,AVENANCE PLC,5100296469,608.1
United Kingdon Atomic Energy Authority,United Kingdon Atomic Energy Authority,25/11/2013,CATERING,PROPERTY,AVENANCE PLC,5100296767,5433.53
United Kingdon Atomic Energy Authority,United Kingdon Atomic Energy Authority,18/12/2013,TREATED WATER,FUSION,B & V WATER TREATMENT,5100296493,60
United Kingdon Atomic Energy Authority,United Kingdon Atomic Energy Authority,18/12/2013,TREATED WATER,FUSION,B & V WATER TREATMENT,5100296631,118
United Kingdon Atomic Energy Authority,United Kingdon Atomic Energy Authority,18/12/2013,TREATED WATER,FUSION,B & V WATER TREATMENT,5100295974,280
United Kingdon Atomic Energy Authority,United Kingdon Atomic Energy Authority,09/12/2013,TREATED WATER,FUSION,B & V WATER TREATMENT,5100295652,1234.88
United Kingdon Atomic Energy Authority,United Kingdon Atomic Energy Authority,18/12/2013,TREATED WATER,FUSION,B & V WATER TREATMENT,5100297055,1234.88
United Kingdon Atomic Energy Authority,United Kingdon Atomic Energy Authority,09/12/2013,TREATED WATER,FUSION,B & V WATER TREATMENT,5100296931,3414.5
United Kingdon Atomic Energy Authority,United Kingdon Atomic Energy Authority,18/12/2013,MATERIALS & SPARES,FUSION,BASTION GLASSFIBRE ROD,5100296512,338.68
United Kingdon Atomic Energy Authority,United Kingdon Atomic Energy Authority,09/12/2013,REPAIRS & MAINTENANCE,FUSION,BATT CABLES PLC,5100297211,68
United Kingdon Atomic Energy Authority,United Kingdon Atomic Energy Authority,02/12/2013,PLANT SPARES,FUSION,BATT CABLES PLC,5100296927,74
United Kingdon Atomic Energy Authority,United Kingdon Atomic Energy Authority,02/12/2013,PLANT SPARES,FUSION,BATT CABLES PLC,5100296928,80
United Kingdon Atomic Energy Authority,United Kingdon Atomic Energy Authority,23/12/2013,REPAIRS & MAINTENANCE,FUSION,BATT CABLES PLC,5100297884,221
United Kingdon Atomic Energy Authority,United Kingdon Atomic Energy Authority,09/12/2013,REPAIRS & MAINTENANCE,FUSION,BATT CABLES PLC,5100297210,467
United Kingdon Atomic Energy Authority,United Kingdon Atomic Energy Authority,09/12/2013,REPAIRS & MAINTENANCE,FUSION,BATT CABLES PLC,5100297209,824
United Kingdon Atomic Energy Authority,United Kingdon Atomic Energy Authority,27/11/2013,PROFESSIONAL SERVICES,SUPPORT SERVICES,BDO LLP,5100295727,1655
United Kingdon Atomic Energy Authority,United Kingdon Atomic Energy Authority,23/12/2013,MATERIALS & SPARES,FUSION,BEACON GROUP INTERNATIONAL LTD,5100298107,651.42
United Kingdon Atomic Energy Authority,United Kingdon Atomic Energy Authority,16/12/2013,REPAIRS & MAINTENANCE,FUSION,BEAVER 84 LIMITED,5100297744,900
United Kingdon Atomic Energy Authority,United Kingdon Atomic Energy Authority,27/11/2013,PLANT & EQUIPMENT,FUSION,BELLEVILLE SPRINGS LTD,5100296801,610.5
United Kingdon Atomic Energy Authority,United Kingdon Atomic Energy Authority,23/12/2013,MATERIALS & SPARES,FUSION,BELMOUNT FABRICATIONS,5100298096,25846
United Kingdon Atomic Energy Authority,United Kingdon Atomic Energy Authority,11/12/2013,MATERIALS & SPARES,FUSION,BERYLLIANT INC,5100297262,305.76
United Kingdon Atomic Energy Authority,United Kingdon Atomic Energy Authority,16/12/2013,LEGAL FEES,SUPPORT SERVICES,BIGGART BAILLIE,5100297731,127
United Kingdon Atomic Energy Authority,United Kingdon Atomic Energy Authority,16/12/2013,LEGAL FEES,SUPPORT SERVICES,BIGGART BAILLIE,5100297730,221
United Kingdon Atomic Energy Authority,United Kingdon Atomic Energy Authority,16/12/2013,STATIONERY,FUSION,BISHOPS PRINTERS,5100297685,486
United Kingdon Atomic Energy Authority,United Kingdon Atomic Energy Authority,25/11/2013,HIRED STAFF,FUSION,BLACK DIAMOND UMBRELLA LTD,5100296545,599.85
United Kingdon Atomic Energy Authority,United Kingdon Atomic Energy Authority,25/11/2013,HIRED STAFF,FUSION,BLACK DIAMOND UMBRELLA LTD,5100296534,821.25
United Kingdon Atomic Energy Authority,United Kingdon Atomic Energy Authority,25/11/2013,HIRED STAFF,FUSION,BLACK DIAMOND UMBRELLA LTD,5100296536,821.25
United Kingdon Atomic Energy Authority,United Kingdon Atomic Energy Authority,25/11/2013,HIRED STAFF,FUSION,BLACK DIAMOND UMBRELLA LTD,5100296537,821.25
United Kingdon Atomic Energy Authority,United Kingdon Atomic Energy Authority,25/11/2013,HIRED STAFF,FUSION,BLACK DIAMOND UMBRELLA LTD,5100296538,821.25
United Kingdon Atomic Energy Authority,United Kingdon Atomic Energy Authority,25/11/2013,HIRED STAFF,FUSION,BLACK DIAMOND UMBRELLA LTD,5100296539,821.25
United Kingdon Atomic Energy Authority,United Kingdon Atomic Energy Authority,23/12/2013,HIRED STAFF,FUSION,BLACK DIAMOND UMBRELLA LTD,5100298114,821.25
United Kingdon Atomic Energy Authority,United Kingdon Atomic Energy Authority,23/12/2013,HIRED STAFF,FUSION,BLACK DIAMOND UMBRELLA LTD,5100298115,821.25
United Kingdon Atomic Energy Authority,United Kingdon Atomic Energy Authority,25/11/2013,HIRED STAFF,FUSION,BLACK DIAMOND UMBRELLA LTD,5100296542,999.75
United Kingdon Atomic Energy Authority,United Kingdon Atomic Energy Authority,25/11/2013,HIRED STAFF,FUSION,BLACK DIAMOND UMBRELLA LTD,5100296543,999.75
United Kingdon Atomic Energy Authority,United Kingdon Atomic Energy Authority,25/11/2013,HIRED STAFF,FUSION,BLACK DIAMOND UMBRELLA LTD,5100296544,999.75
United Kingdon Atomic Energy Authority,United Kingdon Atomic Energy Authority,25/11/2013,HIRED STAFF,FUSION,BLACK DIAMOND UMBRELLA LTD,5100296546,999.75
United Kingdon Atomic Energy Authority,United Kingdon Atomic Energy Authority,23/12/2013,HIRED STAFF,FUSION,BLACK DIAMOND UMBRELLA LTD,5100298123,999.75
United Kingdon Atomic Energy Authority,United Kingdon Atomic Energy Authority,23/12/2013,HIRED STAFF,FUSION,BLACK DIAMOND UMBRELLA LTD,5100298124,999.75
United Kingdon Atomic Energy Authority,United Kingdon Atomic Energy Authority,23/12/2013,HIRED STAFF,FUSION,BLACK DIAMOND UMBRELLA LTD,5100298126,999.75
United Kingdon Atomic Energy Authority,United Kingdon Atomic Energy Authority,23/12/2013,HIRED STAFF,FUSION,BLACK DIAMOND UMBRELLA LTD,5100298128,999.75
United Kingdon Atomic Energy Authority,United Kingdon Atomic Energy Authority,25/11/2013,HIRED STAFF,FUSION,BLACK DIAMOND UMBRELLA LTD,5100296551,1015.41
United Kingdon Atomic Energy Authority,United Kingdon Atomic Energy Authority,23/12/2013,HIRED STAFF,FUSION,BLACK DIAMOND UMBRELLA LTD,5100298118,1015.41
United Kingdon Atomic Energy Authority,United Kingdon Atomic Energy Authority,25/11/2013,HIRED STAFF,FUSION,BLACK DIAMOND UMBRELLA LTD,5100296547,1153.88
United Kingdon Atomic Energy Authority,United Kingdon Atomic Energy Authority,25/11/2013,HIRED STAFF,FUSION,BLACK DIAMOND UMBRELLA LTD,5100296548,1153.88
United Kingdon Atomic Energy Authority,United Kingdon Atomic Energy Authority,25/11/2013,HIRED STAFF,FUSION,BLACK DIAMOND UMBRELLA LTD,5100296549,1153.88
United Kingdon Atomic Energy Authority,United Kingdon Atomic Energy Authority,25/11/2013,HIRED STAFF,FUSION,BLACK DIAMOND UMBRELLA LTD,5100296550,1153.88
United Kingdon Atomic Energy Authority,United Kingdon Atomic Energy Authority,23/12/2013,HIRED STAFF,FUSION,BLACK DIAMOND UMBRELLA LTD,5100298116,1153.88
United Kingdon Atomic Energy Authority,United Kingdon Atomic Energy Authority,23/12/2013,HIRED STAFF,FUSION,BLACK DIAMOND UMBRELLA LTD,5100298119,1153.88
United Kingdon Atomic Energy Authority,United Kingdon Atomic Energy Authority,23/12/2013,HIRED STAFF,FUSION,BLACK DIAMOND UMBRELLA LTD,5100298121,1153.88
United Kingdon Atomic Energy Authority,United Kingdon Atomic Energy Authority,25/11/2013,HIRED STAFF,FUSION,BLACK DIAMOND UMBRELLA LTD,5100296540,3915.4
United Kingdon Atomic Energy Authority,United Kingdon Atomic Energy Authority,23/12/2013,HIRED STAFF,FUSION,BLACK DIAMOND UMBRELLA LTD,5100298132,3915.4
United Kingdon Atomic Energy Authority,United Kingdon Atomic Energy Authority,25/11/2013,HIRED STAFF,FUSION,BLACK DIAMOND UMBRELLA LTD,5100296541,4458.13
United Kingdon Atomic Energy Authority,United Kingdon Atomic Energy Authority,23/12/2013,HIRED STAFF,FUSION,BLACK DIAMOND UMBRELLA LTD,5100298131,4458.13
United Kingdon Atomic Energy Authority,United Kingdon Atomic Energy Authority,09/12/2013,LAUNDRY,FUSION,BLUEBELL LAUNDRY,5100297270,128.52
United Kingdon Atomic Energy Authority,United Kingdon Atomic Energy Authority,09/12/2013,IT EQUIPMENT NON CAPITAL,FUSION,BLUEFORT SECURITY,5100297239,3511
United Kingdon Atomic Energy Authority,United Kingdon Atomic Energy Authority,16/12/2013,PRINTING & GRAPHICS,FUSION,BLUEPRINT IMAGING LTD,5100297398,669
United Kingdon Atomic Energy Authority,United Kingdon Atomic Energy Authority,16/12/2013,PROFESSIONAL SERVICES,FUSION,BNS NUCLEAR SERVICES,5100297428,63700.62
United Kingdon Atomic Energy Authority,United Kingdon Atomic Energy Authority,27/11/2013,PROFESSIONAL SERVICES,FUSION,BNS NUCLEAR SERVICES,5100296782,64428.6
United Kingdon Atomic Energy Authority,United Kingdon Atomic Energy Authority,16/12/2013,GASES,FUSION,BOC LTD,5100297345,4.72
United Kingdon Atomic Energy Authority,United Kingdon Atomic Energy Authority,23/12/2013,GASES,FUSION,BOC LTD,5100297892,15.6
United Kingdon Atomic Energy Authority,United Kingdon Atomic Energy Authority,18/12/2013,GASES,FUSION,BOC LTD,5100297351,29.62
United Kingdon Atomic Energy Authority,United Kingdon Atomic Energy Authority,25/11/2013,GASES,FUSION,BOC LTD,5100296492,31.2
United Kingdon Atomic Energy Authority,United Kingdon Atomic Energy Authority,16/12/2013,GASES,FUSION,BOC LTD,5100297359,39
United Kingdon Atomic Energy Authority,United Kingdon Atomic Energy Authority,09/12/2013,GASES,FUSION,BOC LTD,5100296946,50.44
United Kingdon Atomic Energy Authority,United Kingdon Atomic Energy Authority,16/12/2013,GASES,FUSION,BOC LTD,5100297356,54.72
United Kingdon Atomic Energy Authority,United Kingdon Atomic Energy Authority,18/12/2013,GASES,FUSION,BOC LTD,5100297771,60.79
United Kingdon Atomic Energy Authority,United Kingdon Atomic Energy Authority,23/12/2013,GASES,PROPERTY,BOC LTD,5100297895,78.66
United Kingdon Atomic Energy Authority,United Kingdon Atomic Energy Authority,16/12/2013,GASES,FUSION,BOC LTD,5100297352,116.26
United Kingdon Atomic Energy Authority,United Kingdon Atomic Energy Authority,16/12/2013,GASES,FUSION,BOC LTD,5100297355,117.27
United Kingdon Atomic Energy Authority,United Kingdon Atomic Energy Authority,18/12/2013,GASES,FUSION,BOC LTD,5100297357,127.28
United Kingdon Atomic Energy Authority,United Kingdon Atomic Energy Authority,16/12/2013,GASES,FUSION,BOC LTD,5100297354,188.55
United Kingdon Atomic Energy Authority,United Kingdon Atomic Energy Authority,09/12/2013,GASES,FUSION,BOC LTD,5100297093,195.3
United Kingdon Atomic Energy Authority,United Kingdon Atomic Energy Authority,16/12/2013,GASES,FUSION,BOC LTD,5100297349,207.34
United Kingdon Atomic Energy Authority,United Kingdon Atomic Energy Authority,16/12/2013,GASES,FUSION,BOC LTD,5100297348,213.07
United Kingdon Atomic Energy Authority,United Kingdon Atomic Energy Authority,25/11/2013,GASES,FUSION,BOC LTD,5100296394,214.99
United Kingdon Atomic Energy Authority,United Kingdon Atomic Energy Authority,16/12/2013,GASES,FUSION,BOC LTD,5100297353,227.8
United Kingdon Atomic Energy Authority,United Kingdon Atomic Energy Authority,11/12/2013,GASES,FUSION,BOC LTD,5100296112,231.19
United Kingdon Atomic Energy Authority,United Kingdon Atomic Energy Authority,16/12/2013,GASES,FUSION,BOC LTD,5100297350,236.88
United Kingdon Atomic Energy Authority,United Kingdon Atomic Energy Authority,27/11/2013,GASES,FUSION,BOC LTD,5100296781,240.78
United Kingdon Atomic Energy Authority,United Kingdon Atomic Energy Authority,23/12/2013,GASES,FUSION,BOC LTD,5100298007,243.05
United Kingdon Atomic Energy Authority,United Kingdon Atomic Energy Authority,23/12/2013,GASES,FUSION,BOC LTD,5100297942,246.78
United Kingdon Atomic Energy Authority,United Kingdon Atomic Energy Authority,16/12/2013,GASES,FUSION,BOC LTD,5100297346,246.97
United Kingdon Atomic Energy Authority,United Kingdon Atomic Energy Authority,18/12/2013,GASES,FUSION,BOC LTD,5100297674,256.05
United Kingdon Atomic Energy Authority,United Kingdon Atomic Energy Authority,18/12/2013,GASES,FUSION,BOC LTD,5100297347,453.9
United Kingdon Atomic Energy Authority,United Kingdon Atomic Energy Authority,09/12/2013,GASES,FUSION,BOC LTD,5100297092,687.38
United Kingdon Atomic Energy Authority,United Kingdon Atomic Energy Authority,23/12/2013,GASES,FUSION,BOC LTD,5100297889,1338.66
United Kingdon Atomic Energy Authority,United Kingdon Atomic Energy Authority,18/12/2013,GASES,FUSION,BOC LTD,5100296396,12848.4
United Kingdon Atomic Energy Authority,United Kingdon Atomic Energy Authority,18/12/2013,GASES,FUSION,BOC LTD,5100297407,13809.29
United Kingdon Atomic Energy Authority,United Kingdon Atomic Energy Authority,18/12/2013,GASES,FUSION,BOC LTD,5100296491,14474.99
United Kingdon Atomic Energy Authority,United Kingdon Atomic Energy Authority,09/12/2013,GASES,FUSION,BOC LTD,5100296397,15112.5
United Kingdon Atomic Energy Authority,United Kingdon Atomic Energy Authority,09/12/2013,GASES,FUSION,BOC LTD,5100296507,19213.04
United Kingdon Atomic Energy Authority,United Kingdon Atomic Energy Authority,18/12/2013,GASES,FUSION,BOC LTD,5100297358,23933.55
United Kingdon Atomic Energy Authority,United Kingdon Atomic Energy Authority,25/11/2013,PLANT & EQUIPMENT,FUSION,BRAMLEY ENGINEERING,5100296721,620
United Kingdon Atomic Energy Authority,United Kingdon Atomic Energy Authority,16/12/2013,PLANT & EQUIPMENT,FUSION,BRAMLEY ENGINEERING,5100297623,1400
United Kingdon Atomic Energy Authority,United Kingdon Atomic Energy Authority,23/12/2013,PLANT & EQUIPMENT,FUSION,BRAMLEY ENGINEERING,5100296796,2150
United Kingdon Atomic Energy Authority,United Kingdon Atomic Energy Authority,11/12/2013,PLANT & EQUIPMENT,FUSION,BRAMLEY ENGINEERING,5100296720,7370
United Kingdon Atomic Energy Authority,United Kingdon Atomic Energy Authority,23/12/2013,PLANT & EQUIPMENT,FUSION,BRAMLEY ENGINEERING,5100296795,20650
United Kingdon Atomic Energy Authority,United Kingdon Atomic Energy Authority,11/12/2013,PLANT SPARES,FUSION,BRITE PRECISION,5100297204,600
United Kingdon Atomic Energy Authority,United Kingdon Atomic Energy Authority,02/12/2013,PLANT SPARES,FUSION,BRITE PRECISION,5100296556,1190
United Kingdon Atomic Energy Authority,United Kingdon Atomic Energy Authority,16/12/2013,PLANT SPARES,FUSION,BRITE PRECISION,5100297708,7347.52
United Kingdon Atomic Energy Authority,United Kingdon Atomic Energy Authority,16/12/2013,UTILITIES/ELECTRICITY,PROPERTY,BRITISH GAS BUSINESS,5100296024,41.93
United Kingdon Atomic Energy Authority,United Kingdon Atomic Energy Authority,16/12/2013,UTILITIES/ELECTRICITY,PROPERTY,BRITISH GAS BUSINESS,5100297647,46.98
United Kingdon Atomic Energy Authority,United Kingdon Atomic Energy Authority,16/12/2013,UTILITIES/ELECTRICITY,PROPERTY,BRITISH GAS BUSINESS,5100297654,63.74
United Kingdon Atomic Energy Authority,United Kingdon Atomic Energy Authority,16/12/2013,UTILITIES/ELECTRICITY,PROPERTY,BRITISH GAS BUSINESS,5100297655,91.22
United Kingdon Atomic Energy Authority,United Kingdon Atomic Energy Authority,16/12/2013,UTILITIES/ELECTRICITY,PROPERTY,BRITISH GAS BUSINESS,5100296018,104.57
United Kingdon Atomic Energy Authority,United Kingdon Atomic Energy Authority,16/12/2013,UTILITIES/ELECTRICITY,PROPERTY,BRITISH GAS BUSINESS,5100296023,150.81
United Kingdon Atomic Energy Authority,United Kingdon Atomic Energy Authority,16/12/2013,UTILITIES/ELECTRICITY,PROPERTY,BRITISH GAS BUSINESS,5100297649,203.73
United Kingdon Atomic Energy Authority,United Kingdon Atomic Energy Authority,16/12/2013,UTILITIES/ELECTRICITY,PROPERTY,BRITISH GAS BUSINESS,5100297651,279.06
United Kingdon Atomic Energy Authority,United Kingdon Atomic Energy Authority,16/12/2013,UTILITIES/ELECTRICITY,PROPERTY,BRITISH GAS BUSINESS,5100297658,460.19
United Kingdon Atomic Energy Authority,United Kingdon Atomic Energy Authority,16/12/2013,UTILITIES/ELECTRICITY,PROPERTY,BRITISH GAS BUSINESS,5100297656,576.96
United Kingdon Atomic Energy Authority,United Kingdon Atomic Energy Authority,16/12/2013,UTILITIES/ELECTRICITY,PROPERTY,BRITISH GAS BUSINESS,5100297657,849.11
United Kingdon Atomic Energy Authority,United Kingdon Atomic Energy Authority,16/12/2013,UTILITIES/ELECTRICITY,PROPERTY,BRITISH GAS BUSINESS,5100296022,934.15
United Kingdon Atomic Energy Authority,United Kingdon Atomic Energy Authority,16/12/2013,UTILITIES/ELECTRICITY,PROPERTY,BRITISH GAS BUSINESS,5100296021,949.46
United Kingdon Atomic Energy Authority,United Kingdon Atomic Energy Authority,16/12/2013,UTILITIES/ELECTRICITY,PROPERTY,BRITISH GAS BUSINESS,5100296020,1021.31
United Kingdon Atomic Energy Authority,United Kingdon Atomic Energy Authority,02/12/2013,TRAINING COURSE FEES,FUSION,BRITISH SAFETY COUNCIL,5100296913,3771
United Kingdon Atomic Energy Authority,United Kingdon Atomic Energy Authority,09/12/2013,PROFESSIONAL SERVICES,PROPERTY,BSP CONSULTING,5100297242,1432.5
United Kingdon Atomic Energy Authority,United Kingdon Atomic Energy Authority,16/12/2013,MATERIALS & SPARES,FUSION,BSS OXFORD,5100297423,49.25
United Kingdon Atomic Energy Authority,United Kingdon Atomic Energy Authority,02/12/2013,MATERIALS & SPARES,FUSION,BSS OXFORD,5100296816,55.07
United Kingdon Atomic Energy Authority,United Kingdon Atomic Energy Authority,23/12/2013,MATERIALS & SPARES,FUSION,BSS OXFORD,5100297897,68.95
United Kingdon Atomic Energy Authority,United Kingdon Atomic Energy Authority,23/12/2013,MATERIALS & SPARES,FUSION,BSS OXFORD,5100297665,146.49
United Kingdon Atomic Energy Authority,United Kingdon Atomic Energy Authority,09/12/2013,MATERIALS & SPARES,FUSION,BSS OXFORD,5100297231,354.08
United Kingdon Atomic Energy Authority,United Kingdon Atomic Energy Authority,16/12/2013,MATERIALS & SPARES,FUSION,BSS OXFORD,5100297422,449.35
United Kingdon Atomic Energy Authority,United Kingdon Atomic Energy Authority,23/12/2013,PERSONAL PROTECTIVE EQUIPMENT,FUSION,BUCK & HICKMAN LTD,5100298036,148.34
United Kingdon Atomic Energy Authority,United Kingdon Atomic Energy Authority,04/12/2013,PERSONAL PROTECTIVE EQUIPMENT,FUSION,BUCK & HICKMAN LTD,5100296947,271.21
United Kingdon Atomic Energy Authority,United Kingdon Atomic Energy Authority,16/12/2013,PERSONAL PROTECTIVE EQUIPMENT,FUSION,BUCK & HICKMAN LTD,5100297610,333.94
United Kingdon Atomic Energy Authority,United Kingdon Atomic Energy Authority,04/12/2013,MATERIALS & SPARES,PROPERTY,BUDGET FORKTRUCKS LTD,5100296895,268.67
United Kingdon Atomic Energy Authority,United Kingdon Atomic Energy Authority,09/12/2013,MATERIALS & SPARES,FUSION,BUDGET FORKTRUCKS LTD,5100297086,297.7
United Kingdon Atomic Energy Authority,United Kingdon Atomic Energy Authority,16/12/2013,MATERIALS & SPARES,FUSION,BUDGET FORKTRUCKS LTD,5100296897,312
United Kingdon Atomic Energy Authority,United Kingdon Atomic Energy Authority,11/12/2013,MATERIALS & SPARES,FUSION,BUDGET FORKTRUCKS LTD,5100296896,342.33
United Kingdon Atomic Energy Authority,United Kingdon Atomic Energy Authority,04/12/2013,MATERIALS & SPARES,PROPERTY,BUDGET FORKTRUCKS LTD,5100296898,342.33
United Kingdon Atomic Energy Authority,United Kingdon Atomic Energy Authority,04/12/2013,MATERIALS & SPARES,FUSION,BUDGET FORKTRUCKS LTD,5100296894,390
United Kingdon Atomic Energy Authority,United Kingdon Atomic Energy Authority,27/11/2013,CONSUMABLES,PROPERTY,BUNCE (ASHBURY) LTD,5100295698,2383.63
United Kingdon Atomic Energy Authority,United Kingdon Atomic Energy Authority,16/12/2013,CATERING SUPPLIES,SUPPORT SERVICES,BWT UK LTD,5100297385,1458.45
United Kingdon Atomic Energy Authority,United Kingdon Atomic Energy Authority,18/12/2013,REPAIRS & MAINTENANCE,FUSION,CALZONI HYDRO S.p.A,5100297432,1894.72
United Kingdon Atomic Energy Authority,United Kingdon Atomic Energy Authority,18/12/2013,REPAIRS & MAINTENANCE,FUSION,CALZONI HYDRO S.p.A,5100297430,3392.05
United Kingdon Atomic Energy Authority,United Kingdon Atomic Energy Authority,18/12/2013,REPAIRS & MAINTENANCE,FUSION,CALZONI HYDRO S.p.A,5100297431,22634.63
United Kingdon Atomic Energy Authority,United Kingdon Atomic Energy Authority,27/11/2013,MATERIALS & SPARES,FUSION,CANBERRA UK LTD,5100296657,1550
United Kingdon Atomic Energy Authority,United Kingdon Atomic Energy Authority,09/12/2013,MATERIALS & SPARES,FUSION,CANBERRA UK LTD,5100297265,4373
United Kingdon Atomic Energy Authority,United Kingdon Atomic Energy Authority,25/11/2013,MATERIALS & SPARES,FUSION,CANBERRA UK LTD,5100296517,13440
United Kingdon Atomic Energy Authority,United Kingdon Atomic Energy Authority,09/12/2013,TRAINING COURSE FEES,SUPPORT SERVICES,CANON FIRE PROTECTION,5100297127,320
United Kingdon Atomic Energy Authority,United Kingdon Atomic Energy Authority,02/12/2013,CONSUMABLES,FUSION,CAPARO TESTING TECHNOLOGIES,5100296857,283.1
United Kingdon Atomic Energy Authority,United Kingdon Atomic Energy Authority,09/12/2013,TRAVEL,SUPPORT SERVICES,CAPITA BUSINESS TRAVEL,5100297323,23870.58
United Kingdon Atomic Energy Authority,United Kingdon Atomic Energy Authority,16/12/2013,CONSUMABLES,FUSION,CARILLON INDUSTRIAL SERVICES LTD,5100297767,58.32
United Kingdon Atomic Energy Authority,United Kingdon Atomic Energy Authority,16/12/2013,CONSUMABLES,FUSION,CARILLON INDUSTRIAL SERVICES LTD,5100297769,296.09
United Kingdon Atomic Energy Authority,United Kingdon Atomic Energy Authority,25/11/2013,MATERIALS & SPARES,FUSION,CASELLA CEL LTD,5100296497,195
United Kingdon Atomic Energy Authority,United Kingdon Atomic Energy Authority,02/12/2013,MATERIALS & SPARES,FUSION,CASTELL SAFETY INTERNATIONAL,5100296848,296.11
United Kingdon Atomic Energy Authority,United Kingdon Atomic Energy Authority,16/12/2013,LEGAL FEES,SUPPORT SERVICES,CATER LEYDON MILLARD LTD,5100297399,1802.5
United Kingdon Atomic Energy Authority,United Kingdon Atomic Energy Authority,16/12/2013,LEGAL FEES,SUPPORT SERVICES,CATER LEYDON MILLARD LTD,5100297400,2275
United Kingdon Atomic Energy Authority,United Kingdon Atomic Energy Authority,16/12/2013,LEGAL FEES,SUPPORT SERVICES,CATER LEYDON MILLARD LTD,5100295739,2467.5
United Kingdon Atomic Energy Authority,United Kingdon Atomic Energy Authority,16/12/2013,LEGAL FEES,SUPPORT SERVICES,CATER LEYDON MILLARD LTD,5100295740,2485
United Kingdon Atomic Energy Authority,United Kingdon Atomic Energy Authority,16/12/2013,LEGAL FEES,SUPPORT SERVICES,CATER LEYDON MILLARD LTD,5100297401,4847.5
United Kingdon Atomic Energy Authority,United Kingdon Atomic Energy Authority,09/12/2013,MATERIALS & SPARES,FUSION,CBL ELECTRIC VEHICLES LTD,5100297274,171
United Kingdon Atomic Energy Authority,United Kingdon Atomic Energy Authority,09/12/2013,MATERIALS & SPARES,FUSION,CBL ELECTRIC VEHICLES LTD,5100297275,720
United Kingdon Atomic Energy Authority,United Kingdon Atomic Energy Authority,19/12/2013,TRAINING COURSE FEES,FUSION,CEA ,1900059210,1430.3,CUL12611
United Kingdon Atomic Energy Authority,United Kingdon Atomic Energy Authority,09/12/2013,PROFESSIONAL SERVICES,FUSION,CELTECH CONSULTANCY LTD,5100297105,350
United Kingdon Atomic Energy Authority,United Kingdon Atomic Energy Authority,27/11/2013,PROFESSIONAL SERVICES,SUPPORT SERVICES,CELTECH CONSULTANCY LTD,5100296200,350
United Kingdon Atomic Energy Authority,United Kingdon Atomic Energy Authority,16/12/2013,CONSUMABLES,FUSION,CERAMIC SEALS LTD,5100297550,273.44
United Kingdon Atomic Energy Authority,United Kingdon Atomic Energy Authority,16/12/2013,MATERIALS: HAZARDOUS,FUSION,CHEMTECH WASTE MANAGEMENT,5100296941,5901
United Kingdon Atomic Energy Authority,United Kingdon Atomic Energy Authority,02/12/2013,MATERIALS & SPARES,FUSION,CITY ELECTRICAL FACTORS,5100296675,195.04
United Kingdon Atomic Energy Authority,United Kingdon Atomic Energy Authority,11/12/2013,MATERIALS & SPARES,FUSION,CITY ENGINEERING LTD,5100296371,232.75
United Kingdon Atomic Energy Authority,United Kingdon Atomic Energy Authority,11/12/2013,MATERIALS & SPARES,FUSION,CITY ENGINEERING LTD,5100296176,272
United Kingdon Atomic Energy Authority,United Kingdon Atomic Energy Authority,11/12/2013,MATERIALS & SPARES,FUSION,CITY ENGINEERING LTD,5100296175,1289.25
United Kingdon Atomic Energy Authority,United Kingdon Atomic Energy Authority,23/12/2013,MATERIALS & SPARES,FUSION,CITY ENGINEERING LTD,5100298028,2552.89
United Kingdon Atomic Energy Authority,United Kingdon Atomic Energy Authority,11/12/2013,MATERIALS & SPARES,FUSION,CITY ENGINEERING LTD,5100296173,3040.7
United Kingdon Atomic Energy Authority,United Kingdon Atomic Energy Authority,23/12/2013,MATERIALS & SPARES,FUSION,CITY ENGINEERING LTD,5100297536,43841.01
United Kingdon Atomic Energy Authority,United Kingdon Atomic Energy Authority,09/12/2013,LAUNDRY,FUSION,CLEAN LINEN SERVICES LTD,5100297293,64.72
United Kingdon Atomic Energy Authority,United Kingdon Atomic Energy Authority,04/12/2013,SOFTWARE,FUSION,CLEANSCAPE SOFTWARE INTERNATIONAL,5100296924,1111.39
United Kingdon Atomic Energy Authority,United Kingdon Atomic Energy Authority,25/11/2013,CATERING,PROPERTY,CLEANSING SERVICE GROUP LTD,5100296483,54.6
United Kingdon Atomic Energy Authority,United Kingdon Atomic Energy Authority,11/12/2013,CATERING,PROPERTY,CLEANSING SERVICE GROUP LTD,5100297292,54.6
United Kingdon Atomic Energy Authority,United Kingdon Atomic Energy Authority,25/11/2013,CATERING,PROPERTY,CLEANSING SERVICE GROUP LTD,5100296482,74.3
United Kingdon Atomic Energy Authority,United Kingdon Atomic Energy Authority,11/12/2013,CATERING,PROPERTY,CLEANSING SERVICE GROUP LTD,5100297291,74.3
United Kingdon Atomic Energy Authority,United Kingdon Atomic Energy Authority,23/12/2013,MATERIALS & SPARES,FUSION,CO-CHANNEL ELECTRONICS LTD,5100298046,25
United Kingdon Atomic Energy Authority,United Kingdon Atomic Energy Authority,23/12/2013,MATERIALS & SPARES,FUSION,CO-CHANNEL ELECTRONICS LTD,5100298045,109.9
United Kingdon Atomic Energy Authority,United Kingdon Atomic Energy Authority,27/11/2013,UTILITIES/GAS,PROPERTY,COFELY LTD,5100296637,2112.6
United Kingdon Atomic Energy Authority,United Kingdon Atomic Energy Authority,27/11/2013,UTILITIES/GAS,PROPERTY,COFELY LTD,5100296554,20044.73
United Kingdon Atomic Energy Authority,United Kingdon Atomic Energy Authority,09/12/2013,UTILITIES/GAS,PROPERTY,COFELY LTD,5100297122,20044.73
United Kingdon Atomic Energy Authority,United Kingdon Atomic Energy Authority,27/11/2013,UTILITIES/GAS,PROPERTY,COFELY LTD,5100296555,26582.5
United Kingdon Atomic Energy Authority,United Kingdon Atomic Energy Authority,09/12/2013,UTILITIES/GAS,PROPERTY,COFELY LTD,5100297123,26582.5
United Kingdon Atomic Energy Authority,United Kingdon Atomic Energy Authority,27/11/2013,UTILITIES/GAS,PROPERTY,COFELY LTD,5100296636,34783.18
United Kingdon Atomic Energy Authority,United Kingdon Atomic Energy Authority,09/12/2013,STATIONERY,FUSION,COLOURCOM,5100297137,453
United Kingdon Atomic Energy Authority,United Kingdon Atomic Energy Authority,19/12/2013,COMPENSATION,SUPPORT SERVICES,COMPENSATION CLAIMANT,1900059213,6750,CUL12608
United Kingdon Atomic Energy Authority,United Kingdon Atomic Energy Authority,12/12/2013,COMPENSATION,SUPPORT SERVICES,COMPENSATION CLAIMANT,1900059197,26259,CUL12589
United Kingdon Atomic Energy Authority,United Kingdon Atomic Energy Authority,09/12/2013,REPAIRS & MAINTENANCE,FUSION,COMPRESSOR ENGINEERING LTD,5100297249,815.85
United Kingdon Atomic Energy Authority,United Kingdon Atomic Energy Authority,02/12/2013,PLANT SPARES,FUSION,CONDEC INDUSTRIAL MAINTENANCE,5100296878,65
United Kingdon Atomic Energy Authority,United Kingdon Atomic Energy Authority,04/12/2013,PLANT SPARES,FUSION,CONDEC INDUSTRIAL MAINTENANCE,5100296942,85
United Kingdon Atomic Energy Authority,United Kingdon Atomic Energy Authority,04/12/2013,PLANT SPARES,FUSION,CONDEC INDUSTRIAL MAINTENANCE,5100296880,710
United Kingdon Atomic Energy Authority,United Kingdon Atomic Energy Authority,11/12/2013,PLANT SPARES,FUSION,CONDEC INDUSTRIAL MAINTENANCE,5100297011,7936
United Kingdon Atomic Energy Authority,United Kingdon Atomic Energy Authority,19/12/2013,MATERIALS & SPARES,FUSION,ConRo Electronics Ltd,1900059221,1701,CUL12600
United Kingdon Atomic Energy Authority,United Kingdon Atomic Energy Authority,23/12/2013,MATERIALS & SPARES,FUSION,CPC PLC,5100298087,7.09
United Kingdon Atomic Energy Authority,United Kingdon Atomic Energy Authority,23/12/2013,MATERIALS & SPARES,FUSION,CPC PLC,5100298091,11.74
United Kingdon Atomic Energy Authority,United Kingdon Atomic Energy Authority,16/12/2013,MATERIALS & SPARES,FUSION,CPC PLC,5100297409,18.17
United Kingdon Atomic Energy Authority,United Kingdon Atomic Energy Authority,16/12/2013,MATERIALS & SPARES,FUSION,CPC PLC,5100297408,41.52
United Kingdon Atomic Energy Authority,United Kingdon Atomic Energy Authority,23/12/2013,MATERIALS & SPARES,FUSION,CPC PLC,5100298089,145.54
United Kingdon Atomic Energy Authority,United Kingdon Atomic Energy Authority,23/12/2013,MATERIALS & SPARES,FUSION,CPC PLC,5100298088,149.28
United Kingdon Atomic Energy Authority,United Kingdon Atomic Energy Authority,25/11/2013,MATERIALS & SPARES,FUSION,CPC PLC,5100296516,186.85
United Kingdon Atomic Energy Authority,United Kingdon Atomic Energy Authority,25/11/2013,MATERIALS & SPARES,FUSION,CPC PLC,5100296515,192.53
United Kingdon Atomic Energy Authority,United Kingdon Atomic Energy Authority,27/11/2013,MATERIALS & SPARES,FUSION,CPC PLC,5100296788,249.48
United Kingdon Atomic Energy Authority,United Kingdon Atomic Energy Authority,09/12/2013,REPAIRS & MAINTENANCE,FUSION,CRANE CARE LTD,5100297100,200
United Kingdon Atomic Energy Authority,United Kingdon Atomic Energy Authority,16/12/2013,REPAIRS & MAINTENANCE,FUSION,CRANE CARE LTD,5100297605,210
United Kingdon Atomic Energy Authority,United Kingdon Atomic Energy Authority,16/12/2013,REPAIRS & MAINTENANCE,FUSION,CRANE CARE LTD,5100297607,312
United Kingdon Atomic Energy Authority,United Kingdon Atomic Energy Authority,09/12/2013,REPAIRS & MAINTENANCE,FUSION,CRANE CARE LTD,5100297121,800
United Kingdon Atomic Energy Authority,United Kingdon Atomic Energy Authority,09/12/2013,REPAIRS & MAINTENANCE,FUSION,CRANE CARE LTD,5100297119,1870
United Kingdon Atomic Energy Authority,United Kingdon Atomic Energy Authority,23/12/2013,PROFESSIONAL SERVICES,FUSION,Create,1900059237,1877.19,CUL12621
United Kingdon Atomic Energy Authority,United Kingdon Atomic Energy Authority,02/12/2013,MATERIALS & SPARES,FUSION,CROMWELL LTD,5100297044,-36.06
United Kingdon Atomic Energy Authority,United Kingdon Atomic Energy Authority,16/12/2013,MATERIALS & SPARES,FUSION,CROMWELL LTD,5100297627,-4.12
United Kingdon Atomic Energy Authority,United Kingdon Atomic Energy Authority,25/11/2013,MATERIALS & SPARES,FUSION,CROMWELL LTD,5100296485,3.41
United Kingdon Atomic Energy Authority,United Kingdon Atomic Energy Authority,16/12/2013,MATERIALS & SPARES,FUSION,CROMWELL LTD,5100297382,10.52
United Kingdon Atomic Energy Authority,United Kingdon Atomic Energy Authority,25/11/2013,MATERIALS & SPARES,FUSION,CROMWELL LTD,5100296490,16.17
United Kingdon Atomic Energy Authority,United Kingdon Atomic Energy Authority,23/12/2013,MATERIALS & SPARES,FUSION,CROMWELL LTD,5100297981,17.4
United Kingdon Atomic Energy Authority,United Kingdon Atomic Energy Authority,25/11/2013,MATERIALS & SPARES,FUSION,CROMWELL LTD,5100296695,18.27
United Kingdon Atomic Energy Authority,United Kingdon Atomic Energy Authority,04/12/2013,MATERIALS & SPARES,FUSION,CROMWELL LTD,5100297036,29.92
United Kingdon Atomic Energy Authority,United Kingdon Atomic Energy Authority,02/12/2013,MATERIALS & SPARES,FUSION,CROMWELL LTD,5100297030,31.08
United Kingdon Atomic Energy Authority,United Kingdon Atomic Energy Authority,16/12/2013,MATERIALS & SPARES,FUSION,CROMWELL LTD,5100297038,32.18
United Kingdon Atomic Energy Authority,United Kingdon Atomic Energy Authority,25/11/2013,MATERIALS & SPARES,FUSION,CROMWELL LTD,5100296486,36.06
United Kingdon Atomic Energy Authority,United Kingdon Atomic Energy Authority,02/12/2013,MATERIALS & SPARES,FUSION,CROMWELL LTD,5100297040,36.06
United Kingdon Atomic Energy Authority,United Kingdon Atomic Energy Authority,16/12/2013,MATERIALS & SPARES,FUSION,CROMWELL LTD,5100297698,37.27
United Kingdon Atomic Energy Authority,United Kingdon Atomic Energy Authority,23/12/2013,MATERIALS & SPARES,FUSION,CROMWELL LTD,5100297979,39.38
United Kingdon Atomic Energy Authority,United Kingdon Atomic Energy Authority,04/12/2013,MATERIALS & SPARES,FUSION,CROMWELL LTD,5100297035,52.76
United Kingdon Atomic Energy Authority,United Kingdon Atomic Energy Authority,02/12/2013,MATERIALS & SPARES,FUSION,CROMWELL LTD,5100297041,53.97
United Kingdon Atomic Energy Authority,United Kingdon Atomic Energy Authority,25/11/2013,MATERIALS & SPARES,FUSION,CROMWELL LTD,5100296488,68.22
United Kingdon Atomic Energy Authority,United Kingdon Atomic Energy Authority,04/12/2013,MATERIALS & SPARES,FUSION,CROMWELL LTD,5100297032,76.12
United Kingdon Atomic Energy Authority,United Kingdon Atomic Energy Authority,04/12/2013,MATERIALS & SPARES,FUSION,CROMWELL LTD,5100297043,76.56
United Kingdon Atomic Energy Authority,United Kingdon Atomic Energy Authority,23/12/2013,MATERIALS & SPARES,FUSION,CROMWELL LTD,5100297980,79.03
United Kingdon Atomic Energy Authority,United Kingdon Atomic Energy Authority,25/11/2013,MATERIALS & SPARES,FUSION,CROMWELL LTD,5100296694,89.81
United Kingdon Atomic Energy Authority,United Kingdon Atomic Energy Authority,25/11/2013,MATERIALS & SPARES,FUSION,CROMWELL LTD,5100296692,108
United Kingdon Atomic Energy Authority,United Kingdon Atomic Energy Authority,16/12/2013,MATERIALS & SPARES,FUSION,CROMWELL LTD,5100297703,109.47
United Kingdon Atomic Energy Authority,United Kingdon Atomic Energy Authority,04/12/2013,MATERIALS & SPARES,FUSION,CROMWELL LTD,5100297042,111.67
United Kingdon Atomic Energy Authority,United Kingdon Atomic Energy Authority,16/12/2013,MATERIALS & SPARES,FUSION,CROMWELL LTD,5100297383,113.02
United Kingdon Atomic Energy Authority,United Kingdon Atomic Energy Authority,02/12/2013,MATERIALS & SPARES,FUSION,CROMWELL LTD,5100297039,113.5
United Kingdon Atomic Energy Authority,United Kingdon Atomic Energy Authority,25/11/2013,MATERIALS & SPARES,FUSION,CROMWELL LTD,5100296487,126.55
United Kingdon Atomic Energy Authority,United Kingdon Atomic Energy Authority,16/12/2013,MATERIALS & SPARES,FUSION,CROMWELL LTD,5100297707,326.08
United Kingdon Atomic Energy Authority,United Kingdon Atomic Energy Authority,25/11/2013,MATERIALS & SPARES,FUSION,CROMWELL LTD,5100296489,328.26
United Kingdon Atomic Energy Authority,United Kingdon Atomic Energy Authority,25/11/2013,MATERIALS & SPARES,FUSION,CROMWELL LTD,5100296484,369.99
United Kingdon Atomic Energy Authority,United Kingdon Atomic Energy Authority,25/11/2013,MATERIALS & SPARES,FUSION,CROMWELL LTD,5100296693,549.48
United Kingdon Atomic Energy Authority,United Kingdon Atomic Energy Authority,16/12/2013,MATERIALS & SPARES,FUSION,CROMWELL LTD,5100297384,719.98
United Kingdon Atomic Energy Authority,United Kingdon Atomic Energy Authority,16/12/2013,MATERIALS & SPARES,FUSION,CROMWELL LTD,5100297381,720.38
United Kingdon Atomic Energy Authority,United Kingdon Atomic Energy Authority,11/12/2013,REPAIRS & MAINTENANCE,FUSION,CRYO ENGINEERING GMBH,5100296728,25474.51
United Kingdon Atomic Energy Authority,United Kingdon Atomic Energy Authority,23/12/2013,PROFESSIONAL SERVICES,SUPPORT SERVICES,CSC COMPUTER SERVICES,5100297939,5642.52
United Kingdon Atomic Energy Authority,United Kingdon Atomic Energy Authority,25/11/2013,PROFESSIONAL SERVICES,SUPPORT SERVICES,CSC COMPUTER SERVICES,5100296518,8868.41
United Kingdon Atomic Energy Authority,United Kingdon Atomic Energy Authority,23/12/2013,PROFESSIONAL SERVICES,SUPPORT SERVICES,CSC COMPUTER SERVICES,5100297937,13599.4
United Kingdon Atomic Energy Authority,United Kingdon Atomic Energy Authority,23/12/2013,PROFESSIONAL SERVICES,SUPPORT SERVICES,CSC COMPUTER SERVICES,5100297938,22769.97
United Kingdon Atomic Energy Authority,United Kingdon Atomic Energy Authority,27/11/2013,PROFESSIONAL SERVICES,SUPPORT SERVICES,CSS WORKSAFE,5100296678,750
United Kingdon Atomic Energy Authority,United Kingdon Atomic Energy Authority,02/12/2013,PROFESSIONAL SERVICES,SUPPORT SERVICES,CSS WORKSAFE,5100296835,750
United Kingdon Atomic Energy Authority,United Kingdon Atomic Energy Authority,02/12/2013,SOFTWARE,FUSION,CULHAM ELECTROMAGNETICS LTD,5100296922,210.8
United Kingdon Atomic Energy Authority,United Kingdon Atomic Energy Authority,02/12/2013,SOFTWARE,FUSION,CULHAM ELECTROMAGNETICS LTD,5100296920,6202.95
United Kingdon Atomic Energy Authority,United Kingdon Atomic Energy Authority,25/11/2013,MATERIALS & SPARES,FUSION,CYCLOPS ELECTRONICS LIMITED,5100296724,434
United Kingdon Atomic Energy Authority,United Kingdon Atomic Energy Authority,20/12/2013,TRAINING COURSE FEES,FUSION,Develop Training Ltd,1900059226,1591.92,CUL12616
United Kingdon Atomic Energy Authority,United Kingdon Atomic Energy Authority,18/12/2013,PLANT & EQUIPMENT,FUSION,DIGIKEY CORPORATION,5100297878,121.5
United Kingdon Atomic Energy Authority,United Kingdon Atomic Energy Authority,23/12/2013,PROFESSIONAL SERVICES,SUPPORT SERVICES,DISCLOSURE SCOTLAND,5100298112,300
United Kingdon Atomic Energy Authority,United Kingdon Atomic Energy Authority,25/11/2013,PLANT SPARES,FUSION,DRAWTREND LTD,5100296503,430
United Kingdon Atomic Energy Authority,United Kingdon Atomic Energy Authority,16/12/2013,PLANT SPARES,FUSION,DRAWTREND LTD,5100297243,7621
United Kingdon Atomic Energy Authority,United Kingdon Atomic Energy Authority,04/12/2013,MATERIALS & SPARES,FUSION,DURBIN METAL INDUSTRIES LTD,5100297077,34.9
United Kingdon Atomic Energy Authority,United Kingdon Atomic Energy Authority,16/12/2013,MATERIALS & SPARES,FUSION,DURBIN METAL INDUSTRIES LTD,5100297677,36.7
United Kingdon Atomic Energy Authority,United Kingdon Atomic Energy Authority,16/12/2013,MATERIALS & SPARES,FUSION,DURBIN METAL INDUSTRIES LTD,5100297370,41.5
United Kingdon Atomic Energy Authority,United Kingdon Atomic Energy Authority,16/12/2013,MATERIALS & SPARES,FUSION,DURBIN METAL INDUSTRIES LTD,5100297373,43.75
United Kingdon Atomic Energy Authority,United Kingdon Atomic Energy Authority,02/12/2013,MATERIALS & SPARES,FUSION,DURBIN METAL INDUSTRIES LTD,5100296155,52.5
United Kingdon Atomic Energy Authority,United Kingdon Atomic Energy Authority,16/12/2013,MATERIALS & SPARES,FUSION,DURBIN METAL INDUSTRIES LTD,5100297366,91.5
United Kingdon Atomic Energy Authority,United Kingdon Atomic Energy Authority,16/12/2013,MATERIALS & SPARES,FUSION,DURBIN METAL INDUSTRIES LTD,5100297372,97.9
United Kingdon Atomic Energy Authority,United Kingdon Atomic Energy Authority,16/12/2013,MATERIALS & SPARES,FUSION,DURBIN METAL INDUSTRIES LTD,5100297371,125.15
United Kingdon Atomic Energy Authority,United Kingdon Atomic Energy Authority,16/12/2013,MATERIALS & SPARES,FUSION,DURBIN METAL INDUSTRIES LTD,5100297676,129.5
United Kingdon Atomic Energy Authority,United Kingdon Atomic Energy Authority,02/12/2013,MATERIALS & SPARES,FUSION,DURBIN METAL INDUSTRIES LTD,5100296502,132
United Kingdon Atomic Energy Authority,United Kingdon Atomic Energy Authority,16/12/2013,MATERIALS & SPARES,FUSION,DURBIN METAL INDUSTRIES LTD,5100297367,135
United Kingdon Atomic Energy Authority,United Kingdon Atomic Energy Authority,16/12/2013,MATERIALS & SPARES,FUSION,DURBIN METAL INDUSTRIES LTD,5100297369,138.5
United Kingdon Atomic Energy Authority,United Kingdon Atomic Energy Authority,16/12/2013,MATERIALS & SPARES,FUSION,DURBIN METAL INDUSTRIES LTD,5100297368,156
United Kingdon Atomic Energy Authority,United Kingdon Atomic Energy Authority,16/12/2013,PROFESSIONAL SERVICES,FUSION,E.H. OAKLEY & CO LTD,5100297380,295
United Kingdon Atomic Energy Authority,United Kingdon Atomic Energy Authority,18/12/2013,UTILITIES/ELECTRICITY,PROPERTY,EDF ENERGY,5100297792,-37324.43
United Kingdon Atomic Energy Authority,United Kingdon Atomic Energy Authority,18/12/2013,UTILITIES/ELECTRICITY,PROPERTY,EDF ENERGY,5100297791,-24362.2
United Kingdon Atomic Energy Authority,United Kingdon Atomic Energy Authority,18/12/2013,UTILITIES/ELECTRICITY,PROPERTY,EDF ENERGY,5100297793,-11.23
United Kingdon Atomic Energy Authority,United Kingdon Atomic Energy Authority,09/12/2013,UTILITIES/ELECTRICITY,PROPERTY,EDF ENERGY,5100297214,0.26
United Kingdon Atomic Energy Authority,United Kingdon Atomic Energy Authority,09/12/2013,UTILITIES/ELECTRICITY,PROPERTY,EDF ENERGY,5100297216,0.4
United Kingdon Atomic Energy Authority,United Kingdon Atomic Energy Authority,09/12/2013,UTILITIES/ELECTRICITY,PROPERTY,EDF ENERGY,5100297218,1.03
United Kingdon Atomic Energy Authority,United Kingdon Atomic Energy Authority,09/12/2013,UTILITIES/ELECTRICITY,PROPERTY,EDF ENERGY,5100297222,1.84
United Kingdon Atomic Energy Authority,United Kingdon Atomic Energy Authority,09/12/2013,UTILITIES/ELECTRICITY,PROPERTY,EDF ENERGY,5100297308,11.23
United Kingdon Atomic Energy Authority,United Kingdon Atomic Energy Authority,18/12/2013,UTILITIES/ELECTRICITY,PROPERTY,EDF ENERGY,5100297795,11.23
United Kingdon Atomic Energy Authority,United Kingdon Atomic Energy Authority,09/12/2013,UTILITIES/ELECTRICITY,PROPERTY,EDF ENERGY,5100297220,15.49
United Kingdon Atomic Energy Authority,United Kingdon Atomic Energy Authority,09/12/2013,UTILITIES/ELECTRICITY,PROPERTY,EDF ENERGY,5100297224,15.67
United Kingdon Atomic Energy Authority,United Kingdon Atomic Energy Authority,09/12/2013,UTILITIES/ELECTRICITY,PROPERTY,EDF ENERGY,5100297213,489.08
United Kingdon Atomic Energy Authority,United Kingdon Atomic Energy Authority,09/12/2013,UTILITIES/ELECTRICITY,PROPERTY,EDF ENERGY,5100297215,785.06
United Kingdon Atomic Energy Authority,United Kingdon Atomic Energy Authority,09/12/2013,UTILITIES/ELECTRICITY,PROPERTY,EDF ENERGY,5100297217,1610.53
United Kingdon Atomic Energy Authority,United Kingdon Atomic Energy Authority,09/12/2013,UTILITIES/ELECTRICITY,PROPERTY,EDF ENERGY,5100297221,3340.51
United Kingdon Atomic Energy Authority,United Kingdon Atomic Energy Authority,09/12/2013,UTILITIES/ELECTRICITY,PROPERTY,EDF ENERGY,5100297219,22650.88
United Kingdon Atomic Energy Authority,United Kingdon Atomic Energy Authority,09/12/2013,UTILITIES/ELECTRICITY,PROPERTY,EDF ENERGY,5100297223,24274.56
United Kingdon Atomic Energy Authority,United Kingdon Atomic Energy Authority,09/12/2013,UTILITIES/ELECTRICITY,FUSION,EDF ENERGY,5100297225,28882.8
United Kingdon Atomic Energy Authority,United Kingdon Atomic Energy Authority,18/12/2013,UTILITIES/ELECTRICITY,PROPERTY,EDF ENERGY,5100297796,31058.01
United Kingdon Atomic Energy Authority,United Kingdon Atomic Energy Authority,09/12/2013,UTILITIES/ELECTRICITY,PROPERTY,EDF ENERGY,5100297307,37324.43
United Kingdon Atomic Energy Authority,United Kingdon Atomic Energy Authority,18/12/2013,UTILITIES/ELECTRICITY,PROPERTY,EDF ENERGY,5100297794,37324.43
United Kingdon Atomic Energy Authority,United Kingdon Atomic Energy Authority,09/12/2013,UTILITIES/ELECTRICITY,FUSION,EDF ENERGY,5100297311,265262.05
United Kingdon Atomic Energy Authority,United Kingdon Atomic Energy Authority,09/12/2013,PLANT SPARES,FUSION,EDINBURGH INSTRUMENTS,5100297094,1400
United Kingdon Atomic Energy Authority,United Kingdon Atomic Energy Authority,09/12/2013,PROFESSIONAL SERVICES,FUSION,EDM PRECISION TECHNOLOGIES,5100297287,56351.5
United Kingdon Atomic Energy Authority,United Kingdon Atomic Energy Authority,16/12/2013,MATERIALS & SPARES,FUSION,EDMUND OPTICS LTD,5100297438,265.9
United Kingdon Atomic Energy Authority,United Kingdon Atomic Energy Authority,02/12/2013,PLANT & EQUIPMENT,FUSION,EDMUNDSON ELECTRICALS LTD,5100296682,6.47
United Kingdon Atomic Energy Authority,United Kingdon Atomic Energy Authority,09/12/2013,PLANT & EQUIPMENT,FUSION,EDMUNDSON ELECTRICALS LTD,5100297304,8.35
United Kingdon Atomic Energy Authority,United Kingdon Atomic Energy Authority,25/11/2013,PLANT & EQUIPMENT,FUSION,EDMUNDSON ELECTRICALS LTD,5100296647,13.7
United Kingdon Atomic Energy Authority,United Kingdon Atomic Energy Authority,02/12/2013,PLANT & EQUIPMENT,FUSION,EDMUNDSON ELECTRICALS LTD,5100296681,14.1
United Kingdon Atomic Energy Authority,United Kingdon Atomic Energy Authority,23/12/2013,PLANT & EQUIPMENT,FUSION,EDMUNDSON ELECTRICALS LTD,5100297904,16.68
United Kingdon Atomic Energy Authority,United Kingdon Atomic Energy Authority,23/12/2013,PLANT & EQUIPMENT,FUSION,EDMUNDSON ELECTRICALS LTD,5100297681,29.84
United Kingdon Atomic Energy Authority,United Kingdon Atomic Energy Authority,23/12/2013,PLANT & EQUIPMENT,FUSION,EDMUNDSON ELECTRICALS LTD,5100297679,32.92
United Kingdon Atomic Energy Authority,United Kingdon Atomic Energy Authority,16/12/2013,PLANT & EQUIPMENT,FUSION,EDMUNDSON ELECTRICALS LTD,5100297375,58.25
United Kingdon Atomic Energy Authority,United Kingdon Atomic Energy Authority,25/11/2013,PLANT & EQUIPMENT,SUPPORT SERVICES,EDMUNDSON ELECTRICALS LTD,5100296643,76.02
United Kingdon Atomic Energy Authority,United Kingdon Atomic Energy Authority,25/11/2013,PLANT & EQUIPMENT,FUSION,EDMUNDSON ELECTRICALS LTD,5100296645,76.02
United Kingdon Atomic Energy Authority,United Kingdon Atomic Energy Authority,23/12/2013,PLANT & EQUIPMENT,FUSION,EDMUNDSON ELECTRICALS LTD,5100297907,76.33
United Kingdon Atomic Energy Authority,United Kingdon Atomic Energy Authority,16/12/2013,PLANT & EQUIPMENT,FUSION,EDMUNDSON ELECTRICALS LTD,5100297374,108.9
United Kingdon Atomic Energy Authority,United Kingdon Atomic Energy Authority,09/12/2013,PLANT & EQUIPMENT,FUSION,EDMUNDSON ELECTRICALS LTD,5100297303,108.97
United Kingdon Atomic Energy Authority,United Kingdon Atomic Energy Authority,04/12/2013,PLANT & EQUIPMENT,FUSION,EDMUNDSON ELECTRICALS LTD,5100296940,114.1
United Kingdon Atomic Energy Authority,United Kingdon Atomic Energy Authority,23/12/2013,PLANT & EQUIPMENT,FUSION,EDMUNDSON ELECTRICALS LTD,5100297684,138.12
United Kingdon Atomic Energy Authority,United Kingdon Atomic Energy Authority,23/12/2013,PLANT & EQUIPMENT,FUSION,EDMUNDSON ELECTRICALS LTD,5100297908,149.4
United Kingdon Atomic Energy Authority,United Kingdon Atomic Energy Authority,09/12/2013,PLANT & EQUIPMENT,FUSION,EDMUNDSON ELECTRICALS LTD,5100297111,154.73
United Kingdon Atomic Energy Authority,United Kingdon Atomic Energy Authority,09/12/2013,PLANT & EQUIPMENT,FUSION,EDMUNDSON ELECTRICALS LTD,5100295653,163.27
United Kingdon Atomic Energy Authority,United Kingdon Atomic Energy Authority,16/12/2013,PLANT & EQUIPMENT,FUSION,EDMUNDSON ELECTRICALS LTD,5100297376,174.06
United Kingdon Atomic Energy Authority,United Kingdon Atomic Energy Authority,23/12/2013,PLANT & EQUIPMENT,FUSION,EDMUNDSON ELECTRICALS LTD,5100297905,202.78
United Kingdon Atomic Energy Authority,United Kingdon Atomic Energy Authority,23/12/2013,PLANT & EQUIPMENT,FUSION,EDMUNDSON ELECTRICALS LTD,5100297890,219.38
United Kingdon Atomic Energy Authority,United Kingdon Atomic Energy Authority,02/12/2013,PLANT & EQUIPMENT,FUSION,EDMUNDSON ELECTRICALS LTD,5100296679,227.05
United Kingdon Atomic Energy Authority,United Kingdon Atomic Energy Authority,02/12/2013,PLANT & EQUIPMENT,FUSION,EDMUNDSON ELECTRICALS LTD,5100296680,249.2
United Kingdon Atomic Energy Authority,United Kingdon Atomic Energy Authority,23/12/2013,PLANT & EQUIPMENT,FUSION,EDMUNDSON ELECTRICALS LTD,5100297888,261.93
United Kingdon Atomic Energy Authority,United Kingdon Atomic Energy Authority,09/12/2013,PLANT & EQUIPMENT,FUSION,EDMUNDSON ELECTRICALS LTD,5100297112,262.13
United Kingdon Atomic Energy Authority,United Kingdon Atomic Energy Authority,23/12/2013,PLANT & EQUIPMENT,FUSION,EDMUNDSON ELECTRICALS LTD,5100297680,288
United Kingdon Atomic Energy Authority,United Kingdon Atomic Energy Authority,23/12/2013,PLANT & EQUIPMENT,FUSION,EDMUNDSON ELECTRICALS LTD,5100297903,337.52
United Kingdon Atomic Energy Authority,United Kingdon Atomic Energy Authority,04/12/2013,PLANT & EQUIPMENT,FUSION,EDMUNDSON ELECTRICALS LTD,5100296938,380.37
United Kingdon Atomic Energy Authority,United Kingdon Atomic Energy Authority,16/12/2013,PLANT & EQUIPMENT,FUSION,EDMUNDSON ELECTRICALS LTD,5100297377,494.21
United Kingdon Atomic Energy Authority,United Kingdon Atomic Energy Authority,23/12/2013,PLANT & EQUIPMENT,FUSION,EDMUNDSON ELECTRICALS LTD,5100297682,587.24
United Kingdon Atomic Energy Authority,United Kingdon Atomic Energy Authority,04/12/2013,PLANT & EQUIPMENT,FUSION,EDMUNDSON ELECTRICALS LTD,5100297004,619.97
United Kingdon Atomic Energy Authority,United Kingdon Atomic Energy Authority,25/11/2013,PLANT & EQUIPMENT,FUSION,EDMUNDSON ELECTRICALS LTD,5100296646,728.73
United Kingdon Atomic Energy Authority,United Kingdon Atomic Energy Authority,04/12/2013,PLANT & EQUIPMENT,FUSION,EDMUNDSON ELECTRICALS LTD,5100296939,942.67
United Kingdon Atomic Energy Authority,United Kingdon Atomic Energy Authority,09/12/2013,PLANT & EQUIPMENT,FUSION,EDMUNDSON ELECTRICALS LTD,5100297306,985.1
United Kingdon Atomic Energy Authority,United Kingdon Atomic Energy Authority,23/12/2013,PLANT & EQUIPMENT,FUSION,EDMUNDSON ELECTRICALS LTD,5100297886,2285
United Kingdon Atomic Energy Authority,United Kingdon Atomic Energy Authority,23/12/2013,F&F,SUPPORT SERVICES,EFG MATTHEWS OFFICE FURNITURE LTD,5100297893,64.1
United Kingdon Atomic Energy Authority,United Kingdon Atomic Energy Authority,09/12/2013,F&F,FUSION,EFG MATTHEWS OFFICE FURNITURE LTD,5100297296,81.9
United Kingdon Atomic Energy Authority,United Kingdon Atomic Energy Authority,09/12/2013,F&F,PROPERTY,EFG MATTHEWS OFFICE FURNITURE LTD,5100297297,120
United Kingdon Atomic Energy Authority,United Kingdon Atomic Energy Authority,23/12/2013,F&F,FUSION,EFG MATTHEWS OFFICE FURNITURE LTD,5100297891,122.3
United Kingdon Atomic Energy Authority,United Kingdon Atomic Energy Authority,09/12/2013,F&F,PROPERTY,EFG MATTHEWS OFFICE FURNITURE LTD,5100297301,148
United Kingdon Atomic Energy Authority,United Kingdon Atomic Energy Authority,02/12/2013,F&F,SUPPORT SERVICES,EFG MATTHEWS OFFICE FURNITURE LTD,5100296943,155.5
United Kingdon Atomic Energy Authority,United Kingdon Atomic Energy Authority,09/12/2013,F&F,SUPPORT SERVICES,EFG MATTHEWS OFFICE FURNITURE LTD,5100297298,253.6
United Kingdon Atomic Energy Authority,United Kingdon Atomic Energy Authority,02/12/2013,F&F,SUPPORT SERVICES,EFG MATTHEWS OFFICE FURNITURE LTD,5100296944,365
United Kingdon Atomic Energy Authority,United Kingdon Atomic Energy Authority,09/12/2013,F&F,SUPPORT SERVICES,EFG MATTHEWS OFFICE FURNITURE LTD,5100297299,370.2
United Kingdon Atomic Energy Authority,United Kingdon Atomic Energy Authority,16/12/2013,F&F,FUSION,EFG MATTHEWS OFFICE FURNITURE LTD,5100297425,382.3
United Kingdon Atomic Energy Authority,United Kingdon Atomic Energy Authority,23/12/2013,F&F,SUPPORT SERVICES,EFG MATTHEWS OFFICE FURNITURE LTD,5100297894,526.4
United Kingdon Atomic Energy Authority,United Kingdon Atomic Energy Authority,09/12/2013,F&F,SUPPORT SERVICES,EFG MATTHEWS OFFICE FURNITURE LTD,5100297300,666
United Kingdon Atomic Energy Authority,United Kingdon Atomic Energy Authority,16/12/2013,F&F,SUPPORT SERVICES,EFG MATTHEWS OFFICE FURNITURE LTD,5100297427,1288
United Kingdon Atomic Energy Authority,United Kingdon Atomic Energy Authority,02/12/2013,PROFESSIONAL SERVICES,FUSION,ELECTRIC STUDIO LTD,5100296803,47.88
United Kingdon Atomic Energy Authority,United Kingdon Atomic Energy Authority,23/12/2013,MATERIALS & SPARES,FUSION,ELECTRICAL OIL SERVICES LTD,5100297887,757.08
United Kingdon Atomic Energy Authority,United Kingdon Atomic Energy Authority,18/12/2013,MATERIALS & SPARES,FUSION,ELEMENT SIX BV,5100297075,711.74
United Kingdon Atomic Energy Authority,United Kingdon Atomic Energy Authority,11/12/2013,MATERIALS & SPARES,FUSION,ELEMENT SIX BV,5100294028,722.16
United Kingdon Atomic Energy Authority,United Kingdon Atomic Energy Authority,17/12/2013,PROFESSIONAL SERVICES,FUSION,Elga Process Water,1900059206,751.2,CUL12596
United Kingdon Atomic Energy Authority,United Kingdon Atomic Energy Authority,02/12/2013,PROFESSIONAL SERVICES,FUSION,EMERSON PROCESS MANAGEMENT LTD,5100296849,1170
United Kingdon Atomic Energy Authority,United Kingdon Atomic Energy Authority,11/12/2013,MATERIALS & SPARES,FUSION,EMPIRE MAGNETICS INC,5100297263,8839.36
United Kingdon Atomic Energy Authority,United Kingdon Atomic Energy Authority,05/12/2013,RAIL TRAVEL,FUSION,EMPLOYEE EXPENSES,100703715,1.08
United Kingdon Atomic Energy Authority,United Kingdon Atomic Energy Authority,07/12/2013,RAIL TRAVEL,FUSION,EMPLOYEE EXPENSES,100703745,1.09
United Kingdon Atomic Energy Authority,United Kingdon Atomic Energy Authority,12/12/2013,SUBSISTENCE,FUSION,EMPLOYEE EXPENSES,100703805,1.25
United Kingdon Atomic Energy Authority,United Kingdon Atomic Energy Authority,14/12/2013,SUBSISTENCE,FUSION,EMPLOYEE EXPENSES,100708393,1.58
United Kingdon Atomic Energy Authority,United Kingdon Atomic Energy Authority,14/12/2013,SUBSISTENCE,FUSION,EMPLOYEE EXPENSES,100708393,1.58
United Kingdon Atomic Energy Authority,United Kingdon Atomic Energy Authority,21/12/2013,RAIL TRAVEL,FUSION,EMPLOYEE EXPENSES,100708775,1.62
United Kingdon Atomic Energy Authority,United Kingdon Atomic Energy Authority,14/12/2013,SUBSISTENCE,FUSION,EMPLOYEE EXPENSES,100708393,1.89
United Kingdon Atomic Energy Authority,United Kingdon Atomic Energy Authority,14/12/2013,SUBSISTENCE,FUSION,EMPLOYEE EXPENSES,100708393,1.90
United Kingdon Atomic Energy Authority,United Kingdon Atomic Energy Authority,05/12/2013,ROAD TRAVEL,FUSION,EMPLOYEE EXPENSES,100703707,2.00
United Kingdon Atomic Energy Authority,United Kingdon Atomic Energy Authority,12/12/2013,SUBSISTENCE,FUSION,EMPLOYEE EXPENSES,100703823,2.04
United Kingdon Atomic Energy Authority,United Kingdon Atomic Energy Authority,07/12/2013,ROAD TRAVEL,FUSION,EMPLOYEE EXPENSES,100703753,2.22
United Kingdon Atomic Energy Authority,United Kingdon Atomic Energy Authority,30/11/2013,TAXIS,FUSION,EMPLOYEE EXPENSES,100703666,2.25
United Kingdon Atomic Energy Authority,United Kingdon Atomic Energy Authority,12/12/2013,ROAD TRAVEL,FUSION,EMPLOYEE EXPENSES,100703817,2.50
United Kingdon Atomic Energy Authority,United Kingdon Atomic Energy Authority,19/12/2013,ROAD TRAVEL,FUSION,EMPLOYEE EXPENSES,100708704,2.50
United Kingdon Atomic Energy Authority,United Kingdon Atomic Energy Authority,30/11/2013,SUBSISTENCE,FUSION,EMPLOYEE EXPENSES,100703650,2.58
United Kingdon Atomic Energy Authority,United Kingdon Atomic Energy Authority,30/11/2013,SUBSISTENCE,FUSION,EMPLOYEE EXPENSES,100703647,2.58
United Kingdon Atomic Energy Authority,United Kingdon Atomic Energy Authority,30/11/2013,MILEAGE ALLOWANCE,FUSION,EMPLOYEE EXPENSES,100703621,2.70
United Kingdon Atomic Energy Authority,United Kingdon Atomic Energy Authority,14/12/2013,RAIL TRAVEL,FUSION,EMPLOYEE EXPENSES,100708418,2.74
United Kingdon Atomic Energy Authority,United Kingdon Atomic Energy Authority,30/11/2013,SUBSISTENCE,FUSION,EMPLOYEE EXPENSES,100703674,2.86
United Kingdon Atomic Energy Authority,United Kingdon Atomic Energy Authority,21/12/2013,RAIL TRAVEL,FUSION,EMPLOYEE EXPENSES,100708725,2.86
United Kingdon Atomic Energy Authority,United Kingdon Atomic Energy Authority,30/11/2013,SUBSISTENCE,FUSION,EMPLOYEE EXPENSES,100703616,2.92
United Kingdon Atomic Energy Authority,United Kingdon Atomic Energy Authority,21/12/2013,OTHER EMPLOYEE EXPENSES,SUPPORT SERVICES,EMPLOYEE EXPENSES,100708724,3.00
United Kingdon Atomic Energy Authority,United Kingdon Atomic Energy Authority,30/11/2013,OTHER EMPLOYEE EXPENSES,FUSION,EMPLOYEE EXPENSES,100703645,3.00
United Kingdon Atomic Energy Authority,United Kingdon Atomic Energy Authority,14/12/2013,SUBSISTENCE,FUSION,EMPLOYEE EXPENSES,100708397,3.00
United Kingdon Atomic Energy Authority,United Kingdon Atomic Energy Authority,12/12/2013,ROAD TRAVEL,FUSION,EMPLOYEE EXPENSES,100703802,3.00
United Kingdon Atomic Energy Authority,United Kingdon Atomic Energy Authority,19/12/2013,ROAD TRAVEL,FUSION,EMPLOYEE EXPENSES,100708698,3.00
United Kingdon Atomic Energy Authority,United Kingdon Atomic Energy Authority,30/11/2013,OTHER EMPLOYEE EXPENSES,FUSION,EMPLOYEE EXPENSES,100703621,3.00
United Kingdon Atomic Energy Authority,United Kingdon Atomic Energy Authority,07/12/2013,OTHER EMPLOYEE EXPENSES,FUSION,EMPLOYEE EXPENSES,100703751,3.00
United Kingdon Atomic Energy Authority,United Kingdon Atomic Energy Authority,19/12/2013,OTHER EMPLOYEE EXPENSES,FUSION,EMPLOYEE EXPENSES,100708702,3.03
United Kingdon Atomic Energy Authority,United Kingdon Atomic Energy Authority,21/12/2013,SUBSISTENCE,FUSION,EMPLOYEE EXPENSES,100708731,3.16
United Kingdon Atomic Energy Authority,United Kingdon Atomic Energy Authority,21/12/2013,SUBSISTENCE,FUSION,EMPLOYEE EXPENSES,100708732,3.16
United Kingdon Atomic Energy Authority,United Kingdon Atomic Energy Authority,21/12/2013,SUBSISTENCE,FUSION,EMPLOYEE EXPENSES,100708725,3.21
United Kingdon Atomic Energy Authority,United Kingdon Atomic Energy Authority,30/11/2013,OTHER EMPLOYEE EXPENSES,FUSION,EMPLOYEE EXPENSES,100703627,3.23
United Kingdon Atomic Energy Authority,United Kingdon Atomic Energy Authority,30/11/2013,SUBSISTENCE,SUPPORT SERVICES,EMPLOYEE EXPENSES,100703638,3.24
United Kingdon Atomic Energy Authority,United Kingdon Atomic Energy Authority,14/12/2013,SUBSISTENCE,FUSION,EMPLOYEE EXPENSES,100708396,3.29
United Kingdon Atomic Energy Authority,United Kingdon Atomic Energy Authority,30/11/2013,ROAD TRAVEL,FUSION,EMPLOYEE EXPENSES,100703640,3.30
United Kingdon Atomic Energy Authority,United Kingdon Atomic Energy Authority,30/11/2013,SUBSISTENCE,SUPPORT SERVICES,EMPLOYEE EXPENSES,100703642,3.37
United Kingdon Atomic Energy Authority,United Kingdon Atomic Energy Authority,12/12/2013,SUBSISTENCE,FUSION,EMPLOYEE EXPENSES,100703801,3.42
United Kingdon Atomic Energy Authority,United Kingdon Atomic Energy Authority,30/11/2013,SUBSISTENCE,SUPPORT SERVICES,EMPLOYEE EXPENSES,100703639,3.50
United Kingdon Atomic Energy Authority,United Kingdon Atomic Energy Authority,30/11/2013,SUBSISTENCE,SUPPORT SERVICES,EMPLOYEE EXPENSES,100703615,3.54
United Kingdon Atomic Energy Authority,United Kingdon Atomic Energy Authority,19/12/2013,OTHER EMPLOYEE EXPENSES,FUSION,EMPLOYEE EXPENSES,100708705,3.70
United Kingdon Atomic Energy Authority,United Kingdon Atomic Energy Authority,12/12/2013,SUBSISTENCE,FUSION,EMPLOYEE EXPENSES,100703805,3.75
United Kingdon Atomic Energy Authority,United Kingdon Atomic Energy Authority,30/11/2013,OTHER EMPLOYEE EXPENSES,FUSION,EMPLOYEE EXPENSES,100703663,3.77
United Kingdon Atomic Energy Authority,United Kingdon Atomic Energy Authority,30/11/2013,SUBSISTENCE,SUPPORT SERVICES,EMPLOYEE EXPENSES,100703622,3.91
United Kingdon Atomic Energy Authority,United Kingdon Atomic Energy Authority,30/11/2013,EFDA TRAVEL EXPENSES,FUSION,EMPLOYEE EXPENSES,100703657,3.94
United Kingdon Atomic Energy Authority,United Kingdon Atomic Energy Authority,12/12/2013,OTHER EMPLOYEE EXPENSES,FUSION,EMPLOYEE EXPENSES,100703802,3.99
United Kingdon Atomic Energy Authority,United Kingdon Atomic Energy Authority,07/12/2013,OTHER EMPLOYEE EXPENSES,FUSION,EMPLOYEE EXPENSES,100703755,3.99
United Kingdon Atomic Energy Authority,United Kingdon Atomic Energy Authority,30/11/2013,ROAD TRAVEL,FUSION,EMPLOYEE EXPENSES,100703646,4.00
United Kingdon Atomic Energy Authority,United Kingdon Atomic Energy Authority,12/12/2013,SUBSISTENCE,FUSION,EMPLOYEE EXPENSES,100703817,4.08
United Kingdon Atomic Energy Authority,United Kingdon Atomic Energy Authority,19/12/2013,SUBSISTENCE,FUSION,EMPLOYEE EXPENSES,100708704,4.08
United Kingdon Atomic Energy Authority,United Kingdon Atomic Energy Authority,30/11/2013,SUBSISTENCE,FUSION,EMPLOYEE EXPENSES,100703690,4.08
United Kingdon Atomic Energy Authority,United Kingdon Atomic Energy Authority,05/12/2013,RAIL TRAVEL,FUSION,EMPLOYEE EXPENSES,100703718,4.20
United Kingdon Atomic Energy Authority,United Kingdon Atomic Energy Authority,19/12/2013,ROAD TRAVEL,FUSION,EMPLOYEE EXPENSES,100708703,4.30
United Kingdon Atomic Energy Authority,United Kingdon Atomic Energy Authority,05/12/2013,SUBSISTENCE,SUPPORT SERVICES,EMPLOYEE EXPENSES,100703724,4.33
United Kingdon Atomic Energy Authority,United Kingdon Atomic Energy Authority,30/11/2013,RELOCATION COSTS,FUSION,EMPLOYEE EXPENSES,100703679,4.50
United Kingdon Atomic Energy Authority,United Kingdon Atomic Energy Authority,21/12/2013,ROAD TRAVEL,FUSION,EMPLOYEE EXPENSES,100708756,4.60
United Kingdon Atomic Energy Authority,United Kingdon Atomic Energy Authority,30/11/2013,ROAD TRAVEL,SUPPORT SERVICES,EMPLOYEE EXPENSES,100703622,4.75
United Kingdon Atomic Energy Authority,United Kingdon Atomic Energy Authority,05/12/2013,ROAD TRAVEL,SUPPORT SERVICES,EMPLOYEE EXPENSES,100703709,4.75
United Kingdon Atomic Energy Authority,United Kingdon Atomic Energy Authority,30/11/2013,OTHER EMPLOYEE EXPENSES,FUSION,EMPLOYEE EXPENSES,100703650,4.78
United Kingdon Atomic Energy Authority,United Kingdon Atomic Energy Authority,30/11/2013,ROAD TRAVEL,FUSION,EMPLOYEE EXPENSES,100703646,4.80
United Kingdon Atomic Energy Authority,United Kingdon Atomic Energy Authority,30/11/2013,SUBSISTENCE,FUSION,EMPLOYEE EXPENSES,100703640,4.95
United Kingdon Atomic Energy Authority,United Kingdon Atomic Energy Authority,30/11/2013,SUBSISTENCE,FUSION,EMPLOYEE EXPENSES,100703627,5.00
United Kingdon Atomic Energy Authority,United Kingdon Atomic Energy Authority,07/12/2013,SUBSISTENCE,FUSION,EMPLOYEE EXPENSES,100703764,5.00
United Kingdon Atomic Energy Authority,United Kingdon Atomic Energy Authority,19/12/2013,SUBSISTENCE,FUSION,EMPLOYEE EXPENSES,100708705,5.00
United Kingdon Atomic Energy Authority,United Kingdon Atomic Energy Authority,19/12/2013,SUBSISTENCE,FUSION,EMPLOYEE EXPENSES,100708698,5.00
United Kingdon Atomic Energy Authority,United Kingdon Atomic Energy Authority,21/12/2013,SUBSISTENCE,FUSION,EMPLOYEE EXPENSES,100708755,5.00
United Kingdon Atomic Energy Authority,United Kingdon Atomic Energy Authority,30/11/2013,SUBSISTENCE,FUSION,EMPLOYEE EXPENSES,100703620,5.00
United Kingdon Atomic Energy Authority,United Kingdon Atomic Energy Authority,30/11/2013,SUBSISTENCE,FUSION,EMPLOYEE EXPENSES,100703669,5.00
United Kingdon Atomic Energy Authority,United Kingdon Atomic Energy Authority,21/12/2013,SUBSISTENCE,FUSION,EMPLOYEE EXPENSES,100708727,5.00
United Kingdon Atomic Energy Authority,United Kingdon Atomic Energy Authority,21/12/2013,SUBSISTENCE,FUSION,EMPLOYEE EXPENSES,100708730,5.00
United Kingdon Atomic Energy Authority,United Kingdon Atomic Energy Authority,21/12/2013,SUBSISTENCE,FUSION,EMPLOYEE EXPENSES,100708769,5.00
United Kingdon Atomic Energy Authority,United Kingdon Atomic Energy Authority,19/12/2013,SUBSISTENCE,FUSION,EMPLOYEE EXPENSES,100708699,5.00
United Kingdon Atomic Energy Authority,United Kingdon Atomic Energy Authority,21/12/2013,SUBSISTENCE,SUPPORT SERVICES,EMPLOYEE EXPENSES,100708774,5.00
United Kingdon Atomic Energy Authority,United Kingdon Atomic Energy Authority,12/12/2013,SUBSISTENCE,SUPPORT SERVICES,EMPLOYEE EXPENSES,100703807,5.00
United Kingdon Atomic Energy Authority,United Kingdon Atomic Energy Authority,21/12/2013,ROAD TRAVEL,FUSION,EMPLOYEE EXPENSES,100708758,5.02
United Kingdon Atomic Energy Authority,United Kingdon Atomic Energy Authority,21/12/2013,RAIL TRAVEL,FUSION,EMPLOYEE EXPENSES,100708759,5.10
United Kingdon Atomic Energy Authority,United Kingdon Atomic Energy Authority,05/12/2013,ROAD TRAVEL,FUSION,EMPLOYEE EXPENSES,100703703,5.17
United Kingdon Atomic Energy Authority,United Kingdon Atomic Energy Authority,05/12/2013,ROAD TRAVEL,FUSION,EMPLOYEE EXPENSES,100703704,5.17
United Kingdon Atomic Energy Authority,United Kingdon Atomic Energy Authority,21/12/2013,ROAD TRAVEL,FUSION,EMPLOYEE EXPENSES,100708725,5.17
United Kingdon Atomic Energy Authority,United Kingdon Atomic Energy Authority,14/12/2013,ROAD TRAVEL,FUSION,EMPLOYEE EXPENSES,100708408,5.17
United Kingdon Atomic Energy Authority,United Kingdon Atomic Energy Authority,05/12/2013,MILEAGE ALLOWANCE,FUSION,EMPLOYEE EXPENSES,100703704,5.40
United Kingdon Atomic Energy Authority,United Kingdon Atomic Energy Authority,21/12/2013,MILEAGE ALLOWANCE,FUSION,EMPLOYEE EXPENSES,100708725,5.40
United Kingdon Atomic Energy Authority,United Kingdon Atomic Energy Authority,14/12/2013,SUBSISTENCE,SUPPORT SERVICES,EMPLOYEE EXPENSES,100708388,5.40
United Kingdon Atomic Energy Authority,United Kingdon Atomic Energy Authority,30/11/2013,ROAD TRAVEL,SUPPORT SERVICES,EMPLOYEE EXPENSES,100703637,5.42
United Kingdon Atomic Energy Authority,United Kingdon Atomic Energy Authority,30/11/2013,ROAD TRAVEL,SUPPORT SERVICES,EMPLOYEE EXPENSES,100703638,5.42
United Kingdon Atomic Energy Authority,United Kingdon Atomic Energy Authority,21/12/2013,SUBSISTENCE,FUSION,EMPLOYEE EXPENSES,100708725,5.64
United Kingdon Atomic Energy Authority,United Kingdon Atomic Energy Authority,12/12/2013,SUBSISTENCE,FUSION,EMPLOYEE EXPENSES,100703809,5.67
United Kingdon Atomic Energy Authority,United Kingdon Atomic Energy Authority,14/12/2013,SUBSISTENCE,FUSION,EMPLOYEE EXPENSES,100708408,5.69
United Kingdon Atomic Energy Authority,United Kingdon Atomic Energy Authority,30/11/2013,RAIL TRAVEL,FUSION,EMPLOYEE EXPENSES,100703666,5.70
United Kingdon Atomic Energy Authority,United Kingdon Atomic Energy Authority,12/12/2013,ROAD TRAVEL,FUSION,EMPLOYEE EXPENSES,100703802,5.78
United Kingdon Atomic Energy Authority,United Kingdon Atomic Energy Authority,30/11/2013,OTHER EMPLOYEE EXPENSES,FUSION,EMPLOYEE EXPENSES,100703647,5.86
United Kingdon Atomic Energy Authority,United Kingdon Atomic Energy Authority,14/12/2013,ROAD TRAVEL,FUSION,EMPLOYEE EXPENSES,100708391,6.00
United Kingdon Atomic Energy Authority,United Kingdon Atomic Energy Authority,05/12/2013,TAXIS,FUSION,EMPLOYEE EXPENSES,100703713,6.00
United Kingdon Atomic Energy Authority,United Kingdon Atomic Energy Authority,30/11/2013,SUBSISTENCE,FUSION,EMPLOYEE EXPENSES,100703663,6.03
United Kingdon Atomic Energy Authority,United Kingdon Atomic Energy Authority,05/12/2013,SUBSISTENCE,SUPPORT SERVICES,EMPLOYEE EXPENSES,100703709,6.21
United Kingdon Atomic Energy Authority,United Kingdon Atomic Energy Authority,19/12/2013,MILEAGE ALLOWANCE,FUSION,EMPLOYEE EXPENSES,100708689,6.30
United Kingdon Atomic Energy Authority,United Kingdon Atomic Energy Authority,07/12/2013,SUBSISTENCE,FUSION,EMPLOYEE EXPENSES,100703750,6.31
United Kingdon Atomic Energy Authority,United Kingdon Atomic Energy Authority,21/12/2013,TAXIS,FUSION,EMPLOYEE EXPENSES,100708755,6.40
United Kingdon Atomic Energy Authority,United Kingdon Atomic Energy Authority,30/11/2013,RAIL TRAVEL,SUPPORT SERVICES,EMPLOYEE EXPENSES,100703615,6.47
United Kingdon Atomic Energy Authority,United Kingdon Atomic Energy Authority,21/12/2013,RAIL TRAVEL,FUSION,EMPLOYEE EXPENSES,100708735,6.47
United Kingdon Atomic Energy Authority,United Kingdon Atomic Energy Authority,05/12/2013,ROAD TRAVEL,SUPPORT SERVICES,EMPLOYEE EXPENSES,100703725,6.50
United Kingdon Atomic Energy Authority,United Kingdon Atomic Energy Authority,19/12/2013,OTHER EMPLOYEE EXPENSES,FUSION,EMPLOYEE EXPENSES,100708705,6.62
United Kingdon Atomic Energy Authority,United Kingdon Atomic Energy Authority,30/11/2013,ROAD TRAVEL,FUSION,EMPLOYEE EXPENSES,100703619,6.66
United Kingdon Atomic Energy Authority,United Kingdon Atomic Energy Authority,30/11/2013,SUBSISTENCE,FUSION,EMPLOYEE EXPENSES,100703686,6.83
United Kingdon Atomic Energy Authority,United Kingdon Atomic Energy Authority,14/12/2013,SUBSISTENCE,FUSION,EMPLOYEE EXPENSES,100708417,7.11
United Kingdon Atomic Energy Authority,United Kingdon Atomic Energy Authority,14/12/2013,MILEAGE ALLOWANCE,FUSION,EMPLOYEE EXPENSES,100708397,7.20
United Kingdon Atomic Energy Authority,United Kingdon Atomic Energy Authority,19/12/2013,MILEAGE ALLOWANCE,FUSION,EMPLOYEE EXPENSES,100708686,7.20
United Kingdon Atomic Energy Authority,United Kingdon Atomic Energy Authority,30/11/2013,SUBSISTENCE,FUSION,EMPLOYEE EXPENSES,100703618,7.45
United Kingdon Atomic Energy Authority,United Kingdon Atomic Energy Authority,12/12/2013,SUBSISTENCE,FUSION,EMPLOYEE EXPENSES,100703802,7.47
United Kingdon Atomic Energy Authority,United Kingdon Atomic Energy Authority,30/11/2013,OTHER EMPLOYEE EXPENSES,FUSION,EMPLOYEE EXPENSES,100703627,7.50
United Kingdon Atomic Energy Authority,United Kingdon Atomic Energy Authority,30/11/2013,ROAD TRAVEL,SUPPORT SERVICES,EMPLOYEE EXPENSES,100703676,7.52
United Kingdon Atomic Energy Authority,United Kingdon Atomic Energy Authority,05/12/2013,SUBSISTENCE,FUSION,EMPLOYEE EXPENSES,100703730,7.66
United Kingdon Atomic Energy Authority,United Kingdon Atomic Energy Authority,14/12/2013,OTHER EMPLOYEE EXPENSES,FUSION,EMPLOYEE EXPENSES,100708410,7.98
United Kingdon Atomic Energy Authority,United Kingdon Atomic Energy Authority,14/12/2013,TAXIS,SUPPORT SERVICES,EMPLOYEE EXPENSES,100708390,8.00
United Kingdon Atomic Energy Authority,United Kingdon Atomic Energy Authority,21/12/2013,TAXIS,SUPPORT SERVICES,EMPLOYEE EXPENSES,100708774,8.00
United Kingdon Atomic Energy Authority,United Kingdon Atomic Energy Authority,12/12/2013,ROAD TRAVEL,FUSION,EMPLOYEE EXPENSES,100703805,8.33
United Kingdon Atomic Energy Authority,United Kingdon Atomic Energy Authority,14/12/2013,SUBSISTENCE,FUSION,EMPLOYEE EXPENSES,100708397,8.37
United Kingdon Atomic Energy Authority,United Kingdon Atomic Energy Authority,19/12/2013,TAXIS,FUSION,EMPLOYEE EXPENSES,100708700,8.50
United Kingdon Atomic Energy Authority,United Kingdon Atomic Energy Authority,14/12/2013,SUBSISTENCE,FUSION,EMPLOYEE EXPENSES,100708417,8.53
United Kingdon Atomic Energy Authority,United Kingdon Atomic Energy Authority,30/11/2013,RAIL TRAVEL,SUPPORT SERVICES,EMPLOYEE EXPENSES,100703671,8.67
United Kingdon Atomic Energy Authority,United Kingdon Atomic Energy Authority,19/12/2013,ROAD TRAVEL,FUSION,EMPLOYEE EXPENSES,100708698,9.00
United Kingdon Atomic Energy Authority,United Kingdon Atomic Energy Authority,30/11/2013,MILEAGE ALLOWANCE,FUSION,EMPLOYEE EXPENSES,100703684,9.00
United Kingdon Atomic Energy Authority,United Kingdon Atomic Energy Authority,30/11/2013,MILEAGE ALLOWANCE,FUSION,EMPLOYEE EXPENSES,100703685,9.00
United Kingdon Atomic Energy Authority,United Kingdon Atomic Energy Authority,30/11/2013,ROAD TRAVEL,FUSION,EMPLOYEE EXPENSES,100703669,9.17
United Kingdon Atomic Energy Authority,United Kingdon Atomic Energy Authority,30/11/2013,ROAD TRAVEL,FUSION,EMPLOYEE EXPENSES,100703666,9.23
United Kingdon Atomic Energy Authority,United Kingdon Atomic Energy Authority,07/12/2013,ROAD TRAVEL,FUSION,EMPLOYEE EXPENSES,100703767,9.30
United Kingdon Atomic Energy Authority,United Kingdon Atomic Energy Authority,19/12/2013,RAIL TRAVEL,FUSION,EMPLOYEE EXPENSES,100708691,9.37
United Kingdon Atomic Energy Authority,United Kingdon Atomic Energy Authority,14/12/2013,ROAD TRAVEL,SUPPORT SERVICES,EMPLOYEE EXPENSES,100708388,9.50
United Kingdon Atomic Energy Authority,United Kingdon Atomic Energy Authority,30/11/2013,TAXIS,FUSION,EMPLOYEE EXPENSES,100703627,9.60
United Kingdon Atomic Energy Authority,United Kingdon Atomic Energy Authority,30/11/2013,TAXIS,FUSION,EMPLOYEE EXPENSES,100703651,9.69
United Kingdon Atomic Energy Authority,United Kingdon Atomic Energy Authority,19/12/2013,ROAD TRAVEL,FUSION,EMPLOYEE EXPENSES,100708702,9.90
United Kingdon Atomic Energy Authority,United Kingdon Atomic Energy Authority,21/12/2013,ROAD TRAVEL,SUPPORT SERVICES,EMPLOYEE EXPENSES,100708774,9.92
United Kingdon Atomic Energy Authority,United Kingdon Atomic Energy Authority,30/11/2013,SUBSISTENCE,FUSION,EMPLOYEE EXPENSES,100703621,9.96
United Kingdon Atomic Energy Authority,United Kingdon Atomic Energy Authority,14/12/2013,SUBSISTENCE,SUPPORT SERVICES,EMPLOYEE EXPENSES,100708390,10.00
United Kingdon Atomic Energy Authority,United Kingdon Atomic Energy Authority,14/12/2013,SUBSISTENCE,SUPPORT SERVICES,EMPLOYEE EXPENSES,100708405,10.00
United Kingdon Atomic Energy Authority,United Kingdon Atomic Energy Authority,30/11/2013,SUBSISTENCE,FUSION,EMPLOYEE EXPENSES,100703667,10.00
United Kingdon Atomic Energy Authority,United Kingdon Atomic Energy Authority,05/12/2013,SUBSISTENCE,FUSION,EMPLOYEE EXPENSES,100703720,10.00
United Kingdon Atomic Energy Authority,United Kingdon Atomic Energy Authority,21/12/2013,SUBSISTENCE,FUSION,EMPLOYEE EXPENSES,100708746,10.00
United Kingdon Atomic Energy Authority,United Kingdon Atomic Energy Authority,21/12/2013,SUBSISTENCE,FUSION,EMPLOYEE EXPENSES,100708747,10.00
United Kingdon Atomic Energy Authority,United Kingdon Atomic Energy Authority,21/12/2013,SUBSISTENCE,FUSION,EMPLOYEE EXPENSES,100708748,10.00
United Kingdon Atomic Energy Authority,United Kingdon Atomic Energy Authority,21/12/2013,SUBSISTENCE,FUSION,EMPLOYEE EXPENSES,100708749,10.00
United Kingdon Atomic Energy Authority,United Kingdon Atomic Energy Authority,21/12/2013,SUBSISTENCE,FUSION,EMPLOYEE EXPENSES,100708750,10.00
United Kingdon Atomic Energy Authority,United Kingdon Atomic Energy Authority,05/12/2013,TAXIS,FUSION,EMPLOYEE EXPENSES,100703707,10.00
United Kingdon Atomic Energy Authority,United Kingdon Atomic Energy Authority,05/12/2013,SUBSISTENCE,FUSION,EMPLOYEE EXPENSES,100703719,10.00
United Kingdon Atomic Energy Authority,United Kingdon Atomic Energy Authority,12/12/2013,TAXIS,SUPPORT SERVICES,EMPLOYEE EXPENSES,100703824,10.00
United Kingdon Atomic Energy Authority,United Kingdon Atomic Energy Authority,12/12/2013,MILEAGE ALLOWANCE,FUSION,EMPLOYEE EXPENSES,100703805,10.01
United Kingdon Atomic Energy Authority,United Kingdon Atomic Energy Authority,19/12/2013,SUBSISTENCE,FUSION,EMPLOYEE EXPENSES,100708690,10.04
United Kingdon Atomic Energy Authority,United Kingdon Atomic Energy Authority,30/11/2013,SUBSISTENCE,FUSION,EMPLOYEE EXPENSES,100703623,10.32
United Kingdon Atomic Energy Authority,United Kingdon Atomic Energy Authority,19/12/2013,SUBSISTENCE,FUSION,EMPLOYEE EXPENSES,100708710,10.54
United Kingdon Atomic Energy Authority,United Kingdon Atomic Energy Authority,12/12/2013,ROAD TRAVEL,FUSION,EMPLOYEE EXPENSES,100703819,10.56
United Kingdon Atomic Energy Authority,United Kingdon Atomic Energy Authority,21/12/2013,ROAD TRAVEL,FUSION,EMPLOYEE EXPENSES,100708738,10.60
United Kingdon Atomic Energy Authority,United Kingdon Atomic Energy Authority,30/11/2013,MILEAGE ALLOWANCE,SUPPORT SERVICES,EMPLOYEE EXPENSES,100703637,10.80
United Kingdon Atomic Energy Authority,United Kingdon Atomic Energy Authority,30/11/2013,MILEAGE ALLOWANCE,SUPPORT SERVICES,EMPLOYEE EXPENSES,100703638,10.80
United Kingdon Atomic Energy Authority,United Kingdon Atomic Energy Authority,19/12/2013,RAIL TRAVEL,FUSION,EMPLOYEE EXPENSES,100708693,10.86
United Kingdon Atomic Energy Authority,United Kingdon Atomic Energy Authority,30/11/2013,TAXIS,FUSION,EMPLOYEE EXPENSES,100703616,10.87
United Kingdon Atomic Energy Authority,United Kingdon Atomic Energy Authority,14/12/2013,SUBSISTENCE,FUSION,EMPLOYEE EXPENSES,100708414,10.90
United Kingdon Atomic Energy Authority,United Kingdon Atomic Energy Authority,19/12/2013,TAXIS,FUSION,EMPLOYEE EXPENSES,100708693,11.05
United Kingdon Atomic Energy Authority,United Kingdon Atomic Energy Authority,05/12/2013,RAIL TRAVEL,FUSION,EMPLOYEE EXPENSES,100703722,11.40
United Kingdon Atomic Energy Authority,United Kingdon Atomic Energy Authority,21/12/2013,ROAD TRAVEL,FUSION,EMPLOYEE EXPENSES,100708769,11.40
United Kingdon Atomic Energy Authority,United Kingdon Atomic Energy Authority,21/12/2013,MILEAGE ALLOWANCE,SUPPORT SERVICES,EMPLOYEE EXPENSES,100708734,11.70
United Kingdon Atomic Energy Authority,United Kingdon Atomic Energy Authority,21/12/2013,SUBSISTENCE,FUSION,EMPLOYEE EXPENSES,100708770,11.79
United Kingdon Atomic Energy Authority,United Kingdon Atomic Energy Authority,14/12/2013,TAXIS,FUSION,EMPLOYEE EXPENSES,100708391,12.00
United Kingdon Atomic Energy Authority,United Kingdon Atomic Energy Authority,21/12/2013,RAIL TRAVEL,FUSION,EMPLOYEE EXPENSES,100708729,12.05
United Kingdon Atomic Energy Authority,United Kingdon Atomic Energy Authority,12/12/2013,SUBSISTENCE,FUSION,EMPLOYEE EXPENSES,100703811,12.50
United Kingdon Atomic Energy Authority,United Kingdon Atomic Energy Authority,14/12/2013,SUBSISTENCE,FUSION,EMPLOYEE EXPENSES,100708406,12.50
United Kingdon Atomic Energy Authority,United Kingdon Atomic Energy Authority,12/12/2013,EFDA TRAVEL EXPENSES,FUSION,EMPLOYEE EXPENSES,100703814,12.60
United Kingdon Atomic Energy Authority,United Kingdon Atomic Energy Authority,30/11/2013,MILEAGE ALLOWANCE,SUPPORT SERVICES,EMPLOYEE EXPENSES,100703622,12.60
United Kingdon Atomic Energy Authority,United Kingdon Atomic Energy Authority,05/12/2013,MILEAGE ALLOWANCE,SUPPORT SERVICES,EMPLOYEE EXPENSES,100703709,12.60
United Kingdon Atomic Energy Authority,United Kingdon Atomic Energy Authority,19/12/2013,SUBSISTENCE,FUSION,EMPLOYEE EXPENSES,100708693,12.75
United Kingdon Atomic Energy Authority,United Kingdon Atomic Energy Authority,12/12/2013,ROAD TRAVEL,SUPPORT SERVICES,EMPLOYEE EXPENSES,100703807,12.80
United Kingdon Atomic Energy Authority,United Kingdon Atomic Energy Authority,14/12/2013,RAIL TRAVEL,FUSION,EMPLOYEE EXPENSES,100708396,12.94
United Kingdon Atomic Energy Authority,United Kingdon Atomic Energy Authority,14/12/2013,SUBSISTENCE,FUSION,EMPLOYEE EXPENSES,100708414,13.08
United Kingdon Atomic Energy Authority,United Kingdon Atomic Energy Authority,12/12/2013,RAIL TRAVEL,FUSION,EMPLOYEE EXPENSES,100703801,13.09
United Kingdon Atomic Energy Authority,United Kingdon Atomic Energy Authority,05/12/2013,OTHER EMPLOYEE EXPENSES,FUSION,EMPLOYEE EXPENSES,100703708,13.23
United Kingdon Atomic Energy Authority,United Kingdon Atomic Energy Authority,21/12/2013,ROAD TRAVEL,FUSION,EMPLOYEE EXPENSES,100708732,13.38
United Kingdon Atomic Energy Authority,United Kingdon Atomic Energy Authority,19/12/2013,MILEAGE ALLOWANCE,FUSION,EMPLOYEE EXPENSES,100708694,13.50
United Kingdon Atomic Energy Authority,United Kingdon Atomic Energy Authority,30/11/2013,TAXIS,FUSION,EMPLOYEE EXPENSES,100703621,13.77
United Kingdon Atomic Energy Authority,United Kingdon Atomic Energy Authority,05/12/2013,SUBSISTENCE,FUSION,EMPLOYEE EXPENSES,100703726,14.28
United Kingdon Atomic Energy Authority,United Kingdon Atomic Energy Authority,14/12/2013,OTHER EMPLOYEE EXPENSES,FUSION,EMPLOYEE EXPENSES,100708409,14.36
United Kingdon Atomic Energy Authority,United Kingdon Atomic Energy Authority,12/12/2013,MILEAGE ALLOWANCE,FUSION,EMPLOYEE EXPENSES,100703804,14.40
United Kingdon Atomic Energy Authority,United Kingdon Atomic Energy Authority,21/12/2013,ROAD TRAVEL,FUSION,EMPLOYEE EXPENSES,100708731,14.72
United Kingdon Atomic Energy Authority,United Kingdon Atomic Energy Authority,21/12/2013,SUBSISTENCE,SUPPORT SERVICES,EMPLOYEE EXPENSES,100708724,14.83
United Kingdon Atomic Energy Authority,United Kingdon Atomic Energy Authority,21/12/2013,PROFESSIONAL SUBSCRIPTION,FUSION,EMPLOYEE EXPENSES,100708760,15.00
United Kingdon Atomic Energy Authority,United Kingdon Atomic Energy Authority,05/12/2013,ROAD TRAVEL,FUSION,EMPLOYEE EXPENSES,100703722,15.00
United Kingdon Atomic Energy Authority,United Kingdon Atomic Energy Authority,07/12/2013,OTHER EMPLOYEE EXPENSES,FUSION,EMPLOYEE EXPENSES,100703754,15.00
United Kingdon Atomic Energy Authority,United Kingdon Atomic Energy Authority,14/12/2013,SUBSISTENCE,FUSION,EMPLOYEE EXPENSES,100708418,15.47
United Kingdon Atomic Energy Authority,United Kingdon Atomic Energy Authority,30/11/2013,SUBSISTENCE,FUSION,EMPLOYEE EXPENSES,100703688,15.91
United Kingdon Atomic Energy Authority,United Kingdon Atomic Energy Authority,30/11/2013,ROAD TRAVEL,FUSION,EMPLOYEE EXPENSES,100703623,15.92
United Kingdon Atomic Energy Authority,United Kingdon Atomic Energy Authority,30/11/2013,ROAD TRAVEL,SUPPORT SERVICES,EMPLOYEE EXPENSES,100703673,16.45
United Kingdon Atomic Energy Authority,United Kingdon Atomic Energy Authority,30/11/2013,ROAD TRAVEL,FUSION,EMPLOYEE EXPENSES,100703621,16.52
United Kingdon Atomic Energy Authority,United Kingdon Atomic Energy Authority,30/11/2013,TAXIS,FUSION,EMPLOYEE EXPENSES,100703634,16.94
United Kingdon Atomic Energy Authority,United Kingdon Atomic Energy Authority,05/12/2013,ROAD TRAVEL,FUSION,EMPLOYEE EXPENSES,100703712,17.00
United Kingdon Atomic Energy Authority,United Kingdon Atomic Energy Authority,19/12/2013,ROAD TRAVEL,FUSION,EMPLOYEE EXPENSES,100708688,17.00
United Kingdon Atomic Energy Authority,United Kingdon Atomic Energy Authority,12/12/2013,MILEAGE ALLOWANCE,FUSION,EMPLOYEE EXPENSES,100703803,17.10
United Kingdon Atomic Energy Authority,United Kingdon Atomic Energy Authority,30/11/2013,RAIL TRAVEL,FUSION,EMPLOYEE EXPENSES,100703690,17.58
United Kingdon Atomic Energy Authority,United Kingdon Atomic Energy Authority,30/11/2013,ROAD TRAVEL,FUSION,EMPLOYEE EXPENSES,100703690,17.58
United Kingdon Atomic Energy Authority,United Kingdon Atomic Energy Authority,21/12/2013,SUBSISTENCE,FUSION,EMPLOYEE EXPENSES,100708742,17.92
United Kingdon Atomic Energy Authority,United Kingdon Atomic Energy Authority,05/12/2013,OTHER EMPLOYEE EXPENSES,FUSION,EMPLOYEE EXPENSES,100703705,18.00
United Kingdon Atomic Energy Authority,United Kingdon Atomic Energy Authority,30/11/2013,ROAD TRAVEL,FUSION,EMPLOYEE EXPENSES,100703666,18.00
United Kingdon Atomic Energy Authority,United Kingdon Atomic Energy Authority,05/12/2013,RAIL TRAVEL,SUPPORT SERVICES,EMPLOYEE EXPENSES,100703725,18.30
United Kingdon Atomic Energy Authority,United Kingdon Atomic Energy Authority,19/12/2013,RAIL TRAVEL,SUPPORT SERVICES,EMPLOYEE EXPENSES,100708707,18.30
United Kingdon Atomic Energy Authority,United Kingdon Atomic Energy Authority,30/11/2013,RAIL TRAVEL,FUSION,EMPLOYEE EXPENSES,100703616,18.48
United Kingdon Atomic Energy Authority,United Kingdon Atomic Energy Authority,19/12/2013,TAXIS,SUPPORT SERVICES,EMPLOYEE EXPENSES,100708707,19.00
United Kingdon Atomic Energy Authority,United Kingdon Atomic Energy Authority,07/12/2013,SUBSISTENCE,FUSION,EMPLOYEE EXPENSES,100703767,19.74
United Kingdon Atomic Energy Authority,United Kingdon Atomic Energy Authority,19/12/2013,MILEAGE ALLOWANCE,FUSION,EMPLOYEE EXPENSES,100708683,19.80
United Kingdon Atomic Energy Authority,United Kingdon Atomic Energy Authority,14/12/2013,SUBSISTENCE,SUPPORT SERVICES,EMPLOYEE EXPENSES,100708411,20.00
United Kingdon Atomic Energy Authority,United Kingdon Atomic Energy Authority,30/11/2013,SUBSISTENCE,FUSION,EMPLOYEE EXPENSES,100703682,20.00
United Kingdon Atomic Energy Authority,United Kingdon Atomic Energy Authority,30/11/2013,SUBSISTENCE,FUSION,EMPLOYEE EXPENSES,100703617,20.00
United Kingdon Atomic Energy Authority,United Kingdon Atomic Energy Authority,05/12/2013,RAIL TRAVEL,FUSION,EMPLOYEE EXPENSES,100703719,20.00
United Kingdon Atomic Energy Authority,United Kingdon Atomic Energy Authority,07/12/2013,SUBSISTENCE,FUSION,EMPLOYEE EXPENSES,100703763,20.00
United Kingdon Atomic Energy Authority,United Kingdon Atomic Energy Authority,21/12/2013,SUBSISTENCE,FUSION,EMPLOYEE EXPENSES,100708728,20.83
United Kingdon Atomic Energy Authority,United Kingdon Atomic Energy Authority,12/12/2013,ROAD TRAVEL,FUSION,EMPLOYEE EXPENSES,100703808,21.16
United Kingdon Atomic Energy Authority,United Kingdon Atomic Energy Authority,30/11/2013,RAIL TRAVEL,SUPPORT SERVICES,EMPLOYEE EXPENSES,100703642,21.25
United Kingdon Atomic Energy Authority,United Kingdon Atomic Energy Authority,21/12/2013,RAIL TRAVEL,FUSION,EMPLOYEE EXPENSES,100708776,21.42
United Kingdon Atomic Energy Authority,United Kingdon Atomic Energy Authority,19/12/2013,MILEAGE ALLOWANCE,FUSION,EMPLOYEE EXPENSES,100708684,21.60
United Kingdon Atomic Energy Authority,United Kingdon Atomic Energy Authority,19/12/2013,MILEAGE ALLOWANCE,FUSION,EMPLOYEE EXPENSES,100708685,21.60
United Kingdon Atomic Energy Authority,United Kingdon Atomic Energy Authority,30/11/2013,RELOCATION COSTS,FUSION,EMPLOYEE EXPENSES,100703679,21.64
United Kingdon Atomic Energy Authority,United Kingdon Atomic Energy Authority,21/12/2013,AIR TRAVEL,FUSION,EMPLOYEE EXPENSES,100708729,21.92
United Kingdon Atomic Energy Authority,United Kingdon Atomic Energy Authority,12/12/2013,RAIL TRAVEL,FUSION,EMPLOYEE EXPENSES,100703816,22.20
United Kingdon Atomic Energy Authority,United Kingdon Atomic Energy Authority,30/11/2013,RAIL TRAVEL,FUSION,EMPLOYEE EXPENSES,100703666,22.24
United Kingdon Atomic Energy Authority,United Kingdon Atomic Energy Authority,05/12/2013,ROAD TRAVEL,FUSION,EMPLOYEE EXPENSES,100703722,22.37
United Kingdon Atomic Energy Authority,United Kingdon Atomic Energy Authority,30/11/2013,ROAD TRAVEL,FUSION,EMPLOYEE EXPENSES,100703628,22.50
United Kingdon Atomic Energy Authority,United Kingdon Atomic Energy Authority,30/11/2013,MILEAGE ALLOWANCE,FUSION,EMPLOYEE EXPENSES,100703646,22.50
United Kingdon Atomic Energy Authority,United Kingdon Atomic Energy Authority,19/12/2013,MILEAGE ALLOWANCE,FUSION,EMPLOYEE EXPENSES,100708687,22.50
United Kingdon Atomic Energy Authority,United Kingdon Atomic Energy Authority,07/12/2013,RAIL TRAVEL,FUSION,EMPLOYEE EXPENSES,100703747,22.55
United Kingdon Atomic Energy Authority,United Kingdon Atomic Energy Authority,30/11/2013,ROAD TRAVEL,FUSION,EMPLOYEE EXPENSES,100703679,23.00
United Kingdon Atomic Energy Authority,United Kingdon Atomic Energy Authority,19/12/2013,ROAD TRAVEL,FUSION,EMPLOYEE EXPENSES,100708693,23.00
United Kingdon Atomic Energy Authority,United Kingdon Atomic Energy Authority,14/12/2013,ROAD TRAVEL,FUSION,EMPLOYEE EXPENSES,100708399,23.00
United Kingdon Atomic Energy Authority,United Kingdon Atomic Energy Authority,05/12/2013,ROAD TRAVEL,FUSION,EMPLOYEE EXPENSES,100703717,23.08
United Kingdon Atomic Energy Authority,United Kingdon Atomic Energy Authority,05/12/2013,RAIL TRAVEL,FUSION,EMPLOYEE EXPENSES,100703716,23.50
United Kingdon Atomic Energy Authority,United Kingdon Atomic Energy Authority,30/11/2013,ROAD TRAVEL,SUPPORT SERVICES,EMPLOYEE EXPENSES,100703642,24.00
United Kingdon Atomic Energy Authority,United Kingdon Atomic Energy Authority,21/12/2013,ROAD TRAVEL,FUSION,EMPLOYEE EXPENSES,100708726,24.00
United Kingdon Atomic Energy Authority,United Kingdon Atomic Energy Authority,05/12/2013,ROAD TRAVEL,FUSION,EMPLOYEE EXPENSES,100703726,24.00
United Kingdon Atomic Energy Authority,United Kingdon Atomic Energy Authority,05/12/2013,RAIL TRAVEL,SUPPORT SERVICES,EMPLOYEE EXPENSES,100703724,24.85
United Kingdon Atomic Energy Authority,United Kingdon Atomic Energy Authority,19/12/2013,SUBSISTENCE,SUPPORT SERVICES,EMPLOYEE EXPENSES,100708712,25.00
United Kingdon Atomic Energy Authority,United Kingdon Atomic Energy Authority,21/12/2013,ROAD TRAVEL,FUSION,EMPLOYEE EXPENSES,100708738,25.00
United Kingdon Atomic Energy Authority,United Kingdon Atomic Energy Authority,07/12/2013,TAXIS,FUSION,EMPLOYEE EXPENSES,100703753,25.00
United Kingdon Atomic Energy Authority,United Kingdon Atomic Energy Authority,12/12/2013,ROAD TRAVEL,FUSION,EMPLOYEE EXPENSES,100703805,25.01
United Kingdon Atomic Energy Authority,United Kingdon Atomic Energy Authority,30/11/2013,MILEAGE ALLOWANCE,SUPPORT SERVICES,EMPLOYEE EXPENSES,100703639,25.20
United Kingdon Atomic Energy Authority,United Kingdon Atomic Energy Authority,12/12/2013,TAXIS,FUSION,EMPLOYEE EXPENSES,100703802,25.39
United Kingdon Atomic Energy Authority,United Kingdon Atomic Energy Authority,21/12/2013,RAIL TRAVEL,FUSION,EMPLOYEE EXPENSES,100708733,25.43
United Kingdon Atomic Energy Authority,United Kingdon Atomic Energy Authority,21/12/2013,ROAD TRAVEL,FUSION,EMPLOYEE EXPENSES,100708735,26.00
United Kingdon Atomic Energy Authority,United Kingdon Atomic Energy Authority,19/12/2013,ROAD TRAVEL,SUPPORT SERVICES,EMPLOYEE EXPENSES,100708712,26.36
United Kingdon Atomic Energy Authority,United Kingdon Atomic Energy Authority,12/12/2013,SUBSISTENCE,FUSION,EMPLOYEE EXPENSES,100703805,26.39
United Kingdon Atomic Energy Authority,United Kingdon Atomic Energy Authority,21/12/2013,PROFESSIONAL SUBSCRIPTION,FUSION,EMPLOYEE EXPENSES,100708762,26.50
United Kingdon Atomic Energy Authority,United Kingdon Atomic Energy Authority,19/12/2013,RAIL TRAVEL,FUSION,EMPLOYEE EXPENSES,100708702,26.60
United Kingdon Atomic Energy Authority,United Kingdon Atomic Energy Authority,14/12/2013,TAXIS,FUSION,EMPLOYEE EXPENSES,100708413,27.34
United Kingdon Atomic Energy Authority,United Kingdon Atomic Energy Authority,30/11/2013,ROAD TRAVEL,FUSION,EMPLOYEE EXPENSES,100703640,27.52
United Kingdon Atomic Energy Authority,United Kingdon Atomic Energy Authority,30/11/2013,RAIL TRAVEL,FUSION,EMPLOYEE EXPENSES,100703665,27.70
United Kingdon Atomic Energy Authority,United Kingdon Atomic Energy Authority,30/11/2013,RAIL TRAVEL,FUSION,EMPLOYEE EXPENSES,100703687,27.70
United Kingdon Atomic Energy Authority,United Kingdon Atomic Energy Authority,05/12/2013,RAIL TRAVEL,SUPPORT SERVICES,EMPLOYEE EXPENSES,100703709,27.70
United Kingdon Atomic Energy Authority,United Kingdon Atomic Energy Authority,14/12/2013,SUBSISTENCE,FUSION,EMPLOYEE EXPENSES,100708415,27.80
United Kingdon Atomic Energy Authority,United Kingdon Atomic Energy Authority,19/12/2013,ROAD TRAVEL,FUSION,EMPLOYEE EXPENSES,100708709,28.51
United Kingdon Atomic Energy Authority,United Kingdon Atomic Energy Authority,12/12/2013,RAIL TRAVEL,SUPPORT SERVICES,EMPLOYEE EXPENSES,100703807,28.60
United Kingdon Atomic Energy Authority,United Kingdon Atomic Energy Authority,14/12/2013,ROAD TRAVEL,FUSION,EMPLOYEE EXPENSES,100708407,28.64
United Kingdon Atomic Energy Authority,United Kingdon Atomic Energy Authority,21/12/2013,TAXIS,FUSION,EMPLOYEE EXPENSES,100708729,28.71
United Kingdon Atomic Energy Authority,United Kingdon Atomic Energy Authority,30/11/2013,ROAD TRAVEL,FUSION,EMPLOYEE EXPENSES,100703621,29.00
United Kingdon Atomic Energy Authority,United Kingdon Atomic Energy Authority,30/11/2013,ROAD TRAVEL,FUSION,EMPLOYEE EXPENSES,100703690,29.00
United Kingdon Atomic Energy Authority,United Kingdon Atomic Energy Authority,07/12/2013,ROAD TRAVEL,FUSION,EMPLOYEE EXPENSES,100703752,29.00
United Kingdon Atomic Energy Authority,United Kingdon Atomic Energy Authority,19/12/2013,ROAD TRAVEL,FUSION,EMPLOYEE EXPENSES,100708692,29.00
United Kingdon Atomic Energy Authority,United Kingdon Atomic Energy Authority,21/12/2013,ROAD TRAVEL,FUSION,EMPLOYEE EXPENSES,100708729,29.00
United Kingdon Atomic Energy Authority,United Kingdon Atomic Energy Authority,14/12/2013,ROAD TRAVEL,FUSION,EMPLOYEE EXPENSES,100708413,29.00
United Kingdon Atomic Energy Authority,United Kingdon Atomic Energy Authority,30/11/2013,SUBSISTENCE,FUSION,EMPLOYEE EXPENSES,100703635,29.04
United Kingdon Atomic Energy Authority,United Kingdon Atomic Energy Authority,07/12/2013,TAXIS,FUSION,EMPLOYEE EXPENSES,100703745,29.36
United Kingdon Atomic Energy Authority,United Kingdon Atomic Energy Authority,14/12/2013,ROAD TRAVEL,FUSION,EMPLOYEE EXPENSES,100708406,29.66
United Kingdon Atomic Energy Authority,United Kingdon Atomic Energy Authority,12/12/2013,RAIL TRAVEL,FUSION,EMPLOYEE EXPENSES,100703829,29.80
United Kingdon Atomic Energy Authority,United Kingdon Atomic Energy Authority,21/12/2013,SUBSISTENCE,FUSION,EMPLOYEE EXPENSES,100708759,30.00
United Kingdon Atomic Energy Authority,United Kingdon Atomic Energy Authority,12/12/2013,MILEAGE ALLOWANCE,FUSION,EMPLOYEE EXPENSES,100703805,30.07
United Kingdon Atomic Energy Authority,United Kingdon Atomic Energy Authority,05/12/2013,RAIL TRAVEL,FUSION,EMPLOYEE EXPENSES,100703711,30.40
United Kingdon Atomic Energy Authority,United Kingdon Atomic Energy Authority,21/12/2013,RAIL TRAVEL,FUSION,EMPLOYEE EXPENSES,100708777,31.11
United Kingdon Atomic Energy Authority,United Kingdon Atomic Energy Authority,30/11/2013,RAIL TRAVEL,FUSION,EMPLOYEE EXPENSES,100703686,31.20
United Kingdon Atomic Energy Authority,United Kingdon Atomic Energy Authority,14/12/2013,ROAD TRAVEL,FUSION,EMPLOYEE EXPENSES,100708410,31.49
United Kingdon Atomic Energy Authority,United Kingdon Atomic Energy Authority,05/12/2013,RAIL TRAVEL,FUSION,EMPLOYEE EXPENSES,100703713,31.50
United Kingdon Atomic Energy Authority,United Kingdon Atomic Energy Authority,21/12/2013,ROAD TRAVEL,SUPPORT SERVICES,EMPLOYEE EXPENSES,100708763,31.55
United Kingdon Atomic Energy Authority,United Kingdon Atomic Energy Authority,30/11/2013,ROAD TRAVEL,FUSION,EMPLOYEE EXPENSES,100703619,32.00
United Kingdon Atomic Energy Authority,United Kingdon Atomic Energy Authority,12/12/2013,TAXIS,FUSION,EMPLOYEE EXPENSES,100703820,32.56
United Kingdon Atomic Energy Authority,United Kingdon Atomic Energy Authority,21/12/2013,TAXIS,SUPPORT SERVICES,EMPLOYEE EXPENSES,100708724,32.98
United Kingdon Atomic Energy Authority,United Kingdon Atomic Energy Authority,21/12/2013,MILEAGE ALLOWANCE,SUPPORT SERVICES,EMPLOYEE EXPENSES,100708765,33.30
United Kingdon Atomic Energy Authority,United Kingdon Atomic Energy Authority,21/12/2013,MILEAGE ALLOWANCE,SUPPORT SERVICES,EMPLOYEE EXPENSES,100708766,33.30
United Kingdon Atomic Energy Authority,United Kingdon Atomic Energy Authority,21/12/2013,MILEAGE ALLOWANCE,SUPPORT SERVICES,EMPLOYEE EXPENSES,100708767,33.30
United Kingdon Atomic Energy Authority,United Kingdon Atomic Energy Authority,21/12/2013,MILEAGE ALLOWANCE,SUPPORT SERVICES,EMPLOYEE EXPENSES,100708768,33.30
United Kingdon Atomic Energy Authority,United Kingdon Atomic Energy Authority,30/11/2013,ROAD TRAVEL,FUSION,EMPLOYEE EXPENSES,100703688,33.33
United Kingdon Atomic Energy Authority,United Kingdon Atomic Energy Authority,19/12/2013,ROAD TRAVEL,FUSION,EMPLOYEE EXPENSES,100708692,33.77
United Kingdon Atomic Energy Authority,United Kingdon Atomic Energy Authority,19/12/2013,SUBSISTENCE,FUSION,EMPLOYEE EXPENSES,100708695,34.87
United Kingdon Atomic Energy Authority,United Kingdon Atomic Energy Authority,19/12/2013,ROAD TRAVEL,FUSION,EMPLOYEE EXPENSES,100708691,35.00
United Kingdon Atomic Energy Authority,United Kingdon Atomic Energy Authority,30/11/2013,PROFESSIONAL SUBSCRIPTION,FUSION,EMPLOYEE EXPENSES,100703689,35.00
United Kingdon Atomic Energy Authority,United Kingdon Atomic Energy Authority,19/12/2013,TAXIS,FUSION,EMPLOYEE EXPENSES,100708702,35.73
United Kingdon Atomic Energy Authority,United Kingdon Atomic Energy Authority,21/12/2013,ROAD TRAVEL,SUPPORT SERVICES,EMPLOYEE EXPENSES,100708773,36.00
United Kingdon Atomic Energy Authority,United Kingdon Atomic Energy Authority,05/12/2013,TAXIS,SUPPORT SERVICES,EMPLOYEE EXPENSES,100703724,37.47
United Kingdon Atomic Energy Authority,United Kingdon Atomic Energy Authority,07/12/2013,RAIL TRAVEL,SUPPORT SERVICES,EMPLOYEE EXPENSES,100703768,38.80
United Kingdon Atomic Energy Authority,United Kingdon Atomic Energy Authority,14/12/2013,ROAD TRAVEL,FUSION,EMPLOYEE EXPENSES,100708418,39.50
United Kingdon Atomic Energy Authority,United Kingdon Atomic Energy Authority,21/12/2013,TAXIS,FUSION,EMPLOYEE EXPENSES,100708739,39.74
United Kingdon Atomic Energy Authority,United Kingdon Atomic Energy Authority,21/12/2013,SUBSISTENCE,FUSION,EMPLOYEE EXPENSES,100708726,40.00
United Kingdon Atomic Energy Authority,United Kingdon Atomic Energy Authority,12/12/2013,ROAD TRAVEL,FUSION,EMPLOYEE EXPENSES,100703811,40.05
United Kingdon Atomic Energy Authority,United Kingdon Atomic Energy Authority,21/12/2013,TAXIS,FUSION,EMPLOYEE EXPENSES,100708733,40.95
United Kingdon Atomic Energy Authority,United Kingdon Atomic Energy Authority,19/12/2013,ROAD TRAVEL,FUSION,EMPLOYEE EXPENSES,100708698,41.02
United Kingdon Atomic Energy Authority,United Kingdon Atomic Energy Authority,30/11/2013,TAXIS,FUSION,EMPLOYEE EXPENSES,100703623,43.07
United Kingdon Atomic Energy Authority,United Kingdon Atomic Energy Authority,12/12/2013,PROFESSIONAL SUBSCRIPTION,FUSION,EMPLOYEE EXPENSES,100703828,43.50
United Kingdon Atomic Energy Authority,United Kingdon Atomic Energy Authority,19/12/2013,TAXIS,FUSION,EMPLOYEE EXPENSES,100708692,44.80
United Kingdon Atomic Energy Authority,United Kingdon Atomic Energy Authority,21/12/2013,RAIL TRAVEL,FUSION,EMPLOYEE EXPENSES,100708776,45.20
United Kingdon Atomic Energy Authority,United Kingdon Atomic Energy Authority,14/12/2013,OTHER EMPLOYEE EXPENSES,FUSION,EMPLOYEE EXPENSES,100708387,45.79
United Kingdon Atomic Energy Authority,United Kingdon Atomic Energy Authority,14/12/2013,RAIL TRAVEL,FUSION,EMPLOYEE EXPENSES,100708397,46.00
United Kingdon Atomic Energy Authority,United Kingdon Atomic Energy Authority,19/12/2013,MILEAGE ALLOWANCE,FUSION,EMPLOYEE EXPENSES,100708695,46.08
United Kingdon Atomic Energy Authority,United Kingdon Atomic Energy Authority,19/12/2013,PROFESSIONAL SUBSCRIPTION,FUSION,EMPLOYEE EXPENSES,100708711,47.00
United Kingdon Atomic Energy Authority,United Kingdon Atomic Energy Authority,21/12/2013,MILEAGE ALLOWANCE,FUSION,EMPLOYEE EXPENSES,100708756,47.04
United Kingdon Atomic Energy Authority,United Kingdon Atomic Energy Authority,21/12/2013,ROAD TRAVEL,FUSION,EMPLOYEE EXPENSES,100708769,48.37
United Kingdon Atomic Energy Authority,United Kingdon Atomic Energy Authority,21/12/2013,RAIL TRAVEL,FUSION,EMPLOYEE EXPENSES,100708723,48.50
United Kingdon Atomic Energy Authority,United Kingdon Atomic Energy Authority,12/12/2013,MILEAGE ALLOWANCE,SUPPORT SERVICES,EMPLOYEE EXPENSES,100703825,48.96
United Kingdon Atomic Energy Authority,United Kingdon Atomic Energy Authority,05/12/2013,MILEAGE ALLOWANCE,FUSION,EMPLOYEE EXPENSES,100703714,49.50
United Kingdon Atomic Energy Authority,United Kingdon Atomic Energy Authority,05/12/2013,ROAD TRAVEL,FUSION,EMPLOYEE EXPENSES,100703726,49.89
United Kingdon Atomic Energy Authority,United Kingdon Atomic Energy Authority,30/11/2013,PROFESSIONAL SUBSCRIPTION,FUSION,EMPLOYEE EXPENSES,100703648,50.00
United Kingdon Atomic Energy Authority,United Kingdon Atomic Energy Authority,21/12/2013,SUBSISTENCE,FUSION,EMPLOYEE EXPENSES,100708757,50.00
United Kingdon Atomic Energy Authority,United Kingdon Atomic Energy Authority,14/12/2013,OTHER EMPLOYEE EXPENSES,FUSION,EMPLOYEE EXPENSES,100708418,51.89
United Kingdon Atomic Energy Authority,United Kingdon Atomic Energy Authority,19/12/2013,PROFESSIONAL SUBSCRIPTION,FUSION,EMPLOYEE EXPENSES,100708713,52.00
United Kingdon Atomic Energy Authority,United Kingdon Atomic Energy Authority,19/12/2013,TAXIS,FUSION,EMPLOYEE EXPENSES,100708701,52.19
United Kingdon Atomic Energy Authority,United Kingdon Atomic Energy Authority,21/12/2013,PROFESSIONAL SUBSCRIPTION,FUSION,EMPLOYEE EXPENSES,100708752,53.00
United Kingdon Atomic Energy Authority,United Kingdon Atomic Energy Authority,12/12/2013,PROFESSIONAL SUBSCRIPTION,FUSION,EMPLOYEE EXPENSES,100703827,53.00
United Kingdon Atomic Energy Authority,United Kingdon Atomic Energy Authority,30/11/2013,MILEAGE ALLOWANCE,FUSION,EMPLOYEE EXPENSES,100703620,54.00
United Kingdon Atomic Energy Authority,United Kingdon Atomic Energy Authority,21/12/2013,MILEAGE ALLOWANCE,FUSION,EMPLOYEE EXPENSES,100708727,54.00
United Kingdon Atomic Energy Authority,United Kingdon Atomic Energy Authority,21/12/2013,MILEAGE ALLOWANCE,FUSION,EMPLOYEE EXPENSES,100708728,54.00
United Kingdon Atomic Energy Authority,United Kingdon Atomic Energy Authority,05/12/2013,MILEAGE ALLOWANCE,FUSION,EMPLOYEE EXPENSES,100703732,55.80
United Kingdon Atomic Energy Authority,United Kingdon Atomic Energy Authority,19/12/2013,SUBSISTENCE,FUSION,EMPLOYEE EXPENSES,100708690,56.03
United Kingdon Atomic Energy Authority,United Kingdon Atomic Energy Authority,05/12/2013,RAIL TRAVEL,FUSION,EMPLOYEE EXPENSES,100703704,56.40
United Kingdon Atomic Energy Authority,United Kingdon Atomic Energy Authority,07/12/2013,TAXIS,FUSION,EMPLOYEE EXPENSES,100703755,59.52
United Kingdon Atomic Energy Authority,United Kingdon Atomic Energy Authority,21/12/2013,TRAINING COURSE FEES,FUSION,EMPLOYEE EXPENSES,100708772,60.00
United Kingdon Atomic Energy Authority,United Kingdon Atomic Energy Authority,30/11/2013,ROAD TRAVEL,FUSION,EMPLOYEE EXPENSES,100703632,60.11
United Kingdon Atomic Energy Authority,United Kingdon Atomic Energy Authority,14/12/2013,MILEAGE ALLOWANCE,FUSION,EMPLOYEE EXPENSES,100708400,60.30
United Kingdon Atomic Energy Authority,United Kingdon Atomic Energy Authority,14/12/2013,MILEAGE ALLOWANCE,FUSION,EMPLOYEE EXPENSES,100708401,60.30
United Kingdon Atomic Energy Authority,United Kingdon Atomic Energy Authority,14/12/2013,MILEAGE ALLOWANCE,FUSION,EMPLOYEE EXPENSES,100708402,60.30
United Kingdon Atomic Energy Authority,United Kingdon Atomic Energy Authority,14/12/2013,MILEAGE ALLOWANCE,FUSION,EMPLOYEE EXPENSES,100708403,60.30
United Kingdon Atomic Energy Authority,United Kingdon Atomic Energy Authority,19/12/2013,MILEAGE ALLOWANCE,FUSION,EMPLOYEE EXPENSES,100708696,60.30
United Kingdon Atomic Energy Authority,United Kingdon Atomic Energy Authority,14/12/2013,TAXIS,FUSION,EMPLOYEE EXPENSES,100708409,61.87
United Kingdon Atomic Energy Authority,United Kingdon Atomic Energy Authority,14/12/2013,ROAD TRAVEL,SUPPORT SERVICES,EMPLOYEE EXPENSES,100708405,61.95
United Kingdon Atomic Energy Authority,United Kingdon Atomic Energy Authority,21/12/2013,TAXIS,FUSION,EMPLOYEE EXPENSES,100708728,62.06
United Kingdon Atomic Energy Authority,United Kingdon Atomic Energy Authority,05/12/2013,RAIL TRAVEL,SUPPORT SERVICES,EMPLOYEE EXPENSES,100703723,62.40
United Kingdon Atomic Energy Authority,United Kingdon Atomic Energy Authority,30/11/2013,RAIL TRAVEL,FUSION,EMPLOYEE EXPENSES,100703664,62.40
United Kingdon Atomic Energy Authority,United Kingdon Atomic Energy Authority,30/11/2013,RAIL TRAVEL,FUSION,EMPLOYEE EXPENSES,100703661,62.40
United Kingdon Atomic Energy Authority,United Kingdon Atomic Energy Authority,30/11/2013,RAIL TRAVEL,FUSION,EMPLOYEE EXPENSES,100703662,62.40
United Kingdon Atomic Energy Authority,United Kingdon Atomic Energy Authority,05/12/2013,RAIL TRAVEL,FUSION,EMPLOYEE EXPENSES,100703707,62.40
United Kingdon Atomic Energy Authority,United Kingdon Atomic Energy Authority,21/12/2013,SUBSISTENCE,FUSION,EMPLOYEE EXPENSES,100708755,62.87
United Kingdon Atomic Energy Authority,United Kingdon Atomic Energy Authority,14/12/2013,MILEAGE ALLOWANCE,SUPPORT SERVICES,EMPLOYEE EXPENSES,100708411,63.00
United Kingdon Atomic Energy Authority,United Kingdon Atomic Energy Authority,07/12/2013,ROAD TRAVEL,FUSION,EMPLOYEE EXPENSES,100703764,63.03
United Kingdon Atomic Energy Authority,United Kingdon Atomic Energy Authority,30/11/2013,SUBSISTENCE,FUSION,EMPLOYEE EXPENSES,100703627,64.00
United Kingdon Atomic Energy Authority,United Kingdon Atomic Energy Authority,14/12/2013,OTHER EMPLOYEE EXPENSES,FUSION,EMPLOYEE EXPENSES,100708387,64.31
United Kingdon Atomic Energy Authority,United Kingdon Atomic Energy Authority,12/12/2013,RAIL TRAVEL,SUPPORT SERVICES,EMPLOYEE EXPENSES,100703824,64.50
United Kingdon Atomic Energy Authority,United Kingdon Atomic Energy Authority,12/12/2013,PROFESSIONAL SUBSCRIPTION,FUSION,EMPLOYEE EXPENSES,100703826,65.00
United Kingdon Atomic Energy Authority,United Kingdon Atomic Energy Authority,21/12/2013,SUBSISTENCE,SUPPORT SERVICES,EMPLOYEE EXPENSES,100708774,65.83
United Kingdon Atomic Energy Authority,United Kingdon Atomic Energy Authority,14/12/2013,RAIL TRAVEL,FUSION,EMPLOYEE EXPENSES,100708415,66.40
United Kingdon Atomic Energy Authority,United Kingdon Atomic Energy Authority,07/12/2013,MILEAGE ALLOWANCE,FUSION,EMPLOYEE EXPENSES,100703759,66.60
United Kingdon Atomic Energy Authority,United Kingdon Atomic Energy Authority,07/12/2013,MILEAGE ALLOWANCE,FUSION,EMPLOYEE EXPENSES,100703760,66.60
United Kingdon Atomic Energy Authority,United Kingdon Atomic Energy Authority,07/12/2013,MILEAGE ALLOWANCE,FUSION,EMPLOYEE EXPENSES,100703761,66.60
United Kingdon Atomic Energy Authority,United Kingdon Atomic Energy Authority,07/12/2013,MILEAGE ALLOWANCE,FUSION,EMPLOYEE EXPENSES,100703762,66.60
United Kingdon Atomic Energy Authority,United Kingdon Atomic Energy Authority,19/12/2013,MILEAGE ALLOWANCE,FUSION,EMPLOYEE EXPENSES,100708697,66.60
United Kingdon Atomic Energy Authority,United Kingdon Atomic Energy Authority,21/12/2013,ROAD TRAVEL,FUSION,EMPLOYEE EXPENSES,100708757,66.67
United Kingdon Atomic Energy Authority,United Kingdon Atomic Energy Authority,21/12/2013,SUBSISTENCE,FUSION,EMPLOYEE EXPENSES,100708769,66.67
United Kingdon Atomic Energy Authority,United Kingdon Atomic Energy Authority,19/12/2013,SUBSISTENCE,FUSION,EMPLOYEE EXPENSES,100708699,68.33
United Kingdon Atomic Energy Authority,United Kingdon Atomic Energy Authority,05/12/2013,MILEAGE ALLOWANCE,SUPPORT SERVICES,EMPLOYEE EXPENSES,100703728,68.40
United Kingdon Atomic Energy Authority,United Kingdon Atomic Energy Authority,21/12/2013,MILEAGE ALLOWANCE,FUSION,EMPLOYEE EXPENSES,100708746,69.30
United Kingdon Atomic Energy Authority,United Kingdon Atomic Energy Authority,21/12/2013,MILEAGE ALLOWANCE,FUSION,EMPLOYEE EXPENSES,100708747,69.30
United Kingdon Atomic Energy Authority,United Kingdon Atomic Energy Authority,21/12/2013,MILEAGE ALLOWANCE,FUSION,EMPLOYEE EXPENSES,100708748,69.30
United Kingdon Atomic Energy Authority,United Kingdon Atomic Energy Authority,21/12/2013,MILEAGE ALLOWANCE,FUSION,EMPLOYEE EXPENSES,100708749,69.30
United Kingdon Atomic Energy Authority,United Kingdon Atomic Energy Authority,21/12/2013,MILEAGE ALLOWANCE,FUSION,EMPLOYEE EXPENSES,100708750,69.30
United Kingdon Atomic Energy Authority,United Kingdon Atomic Energy Authority,21/12/2013,MILEAGE ALLOWANCE,FUSION,EMPLOYEE EXPENSES,100708757,69.30
United Kingdon Atomic Energy Authority,United Kingdon Atomic Energy Authority,30/11/2013,MILEAGE ALLOWANCE,FUSION,EMPLOYEE EXPENSES,100703667,69.75
United Kingdon Atomic Energy Authority,United Kingdon Atomic Energy Authority,05/12/2013,MILEAGE ALLOWANCE,FUSION,EMPLOYEE EXPENSES,100703720,69.75
United Kingdon Atomic Energy Authority,United Kingdon Atomic Energy Authority,12/12/2013,MILEAGE ALLOWANCE,FUSION,EMPLOYEE EXPENSES,100703817,69.75
United Kingdon Atomic Energy Authority,United Kingdon Atomic Energy Authority,19/12/2013,MILEAGE ALLOWANCE,FUSION,EMPLOYEE EXPENSES,100708704,69.75
United Kingdon Atomic Energy Authority,United Kingdon Atomic Energy Authority,21/12/2013,TAXIS,FUSION,EMPLOYEE EXPENSES,100708759,70.00
United Kingdon Atomic Energy Authority,United Kingdon Atomic Energy Authority,21/12/2013,PROFESSIONAL SUBSCRIPTION,FUSION,EMPLOYEE EXPENSES,100708778,71.00
United Kingdon Atomic Energy Authority,United Kingdon Atomic Energy Authority,30/11/2013,SUBSISTENCE,FUSION,EMPLOYEE EXPENSES,100703620,71.22
United Kingdon Atomic Energy Authority,United Kingdon Atomic Energy Authority,21/12/2013,SUBSISTENCE,FUSION,EMPLOYEE EXPENSES,100708727,71.22
United Kingdon Atomic Energy Authority,United Kingdon Atomic Energy Authority,30/11/2013,RAIL TRAVEL,FUSION,EMPLOYEE EXPENSES,100703682,71.50
United Kingdon Atomic Energy Authority,United Kingdon Atomic Energy Authority,30/11/2013,OTHER EMPLOYEE EXPENSES,FUSION,EMPLOYEE EXPENSES,100703630,75.00
United Kingdon Atomic Energy Authority,United Kingdon Atomic Energy Authority,21/12/2013,PROFESSIONAL SUBSCRIPTION,FUSION,EMPLOYEE EXPENSES,100708761,75.50
United Kingdon Atomic Energy Authority,United Kingdon Atomic Energy Authority,30/11/2013,SUBSISTENCE,FUSION,EMPLOYEE EXPENSES,100703633,76.96
United Kingdon Atomic Energy Authority,United Kingdon Atomic Energy Authority,19/12/2013,SUBSISTENCE,FUSION,EMPLOYEE EXPENSES,100708691,78.77
United Kingdon Atomic Energy Authority,United Kingdon Atomic Energy Authority,21/12/2013,RAIL TRAVEL,FUSION,EMPLOYEE EXPENSES,100708735,78.99
United Kingdon Atomic Energy Authority,United Kingdon Atomic Energy Authority,12/12/2013,SUBSISTENCE,SUPPORT SERVICES,EMPLOYEE EXPENSES,100703824,79.00
United Kingdon Atomic Energy Authority,United Kingdon Atomic Energy Authority,12/12/2013,SUBSISTENCE,FUSION,EMPLOYEE EXPENSES,100703805,79.20
United Kingdon Atomic Energy Authority,United Kingdon Atomic Energy Authority,14/12/2013,MILEAGE ALLOWANCE,FUSION,EMPLOYEE EXPENSES,100708416,79.20
United Kingdon Atomic Energy Authority,United Kingdon Atomic Energy Authority,30/11/2013,SUBSISTENCE,FUSION,EMPLOYEE EXPENSES,100703674,79.50
United Kingdon Atomic Energy Authority,United Kingdon Atomic Energy Authority,30/11/2013,OTHER EMPLOYEE EXPENSES,FUSION,EMPLOYEE EXPENSES,100703682,80.00
United Kingdon Atomic Energy Authority,United Kingdon Atomic Energy Authority,14/12/2013,OTHER EMPLOYEE EXPENSES,FUSION,EMPLOYEE EXPENSES,100708415,80.00
United Kingdon Atomic Energy Authority,United Kingdon Atomic Energy Authority,05/12/2013,OTHER EMPLOYEE EXPENSES,FUSION,EMPLOYEE EXPENSES,100703716,80.00
United Kingdon Atomic Energy Authority,United Kingdon Atomic Energy Authority,30/11/2013,SUBSISTENCE,FUSION,EMPLOYEE EXPENSES,100703683,80.43
United Kingdon Atomic Energy Authority,United Kingdon Atomic Energy Authority,12/12/2013,MILEAGE ALLOWANCE,SUPPORT SERVICES,EMPLOYEE EXPENSES,100703822,81.90
United Kingdon Atomic Energy Authority,United Kingdon Atomic Energy Authority,30/11/2013,OTHER EMPLOYEE EXPENSES,FUSION,EMPLOYEE EXPENSES,100703665,83.86
United Kingdon Atomic Energy Authority,United Kingdon Atomic Energy Authority,19/12/2013,SUBSISTENCE,FUSION,EMPLOYEE EXPENSES,100708703,87.81
United Kingdon Atomic Energy Authority,United Kingdon Atomic Energy Authority,30/11/2013,SUBSISTENCE,FUSION,EMPLOYEE EXPENSES,100703669,88.30
United Kingdon Atomic Energy Authority,United Kingdon Atomic Energy Authority,12/12/2013,SUBSISTENCE,FUSION,EMPLOYEE EXPENSES,100703809,89.43
United Kingdon Atomic Energy Authority,United Kingdon Atomic Energy Authority,07/12/2013,SUBSISTENCE,FUSION,EMPLOYEE EXPENSES,100703764,93.12
United Kingdon Atomic Energy Authority,United Kingdon Atomic Energy Authority,07/12/2013,TAXIS,FUSION,EMPLOYEE EXPENSES,100703752,93.51
United Kingdon Atomic Energy Authority,United Kingdon Atomic Energy Authority,30/11/2013,SUBSISTENCE,SUPPORT SERVICES,EMPLOYEE EXPENSES,100703671,94.18
United Kingdon Atomic Energy Authority,United Kingdon Atomic Energy Authority,19/12/2013,MILEAGE ALLOWANCE,SUPPORT SERVICES,EMPLOYEE EXPENSES,100708708,94.50
United Kingdon Atomic Energy Authority,United Kingdon Atomic Energy Authority,14/12/2013,SUBSISTENCE,FUSION,EMPLOYEE EXPENSES,100708396,94.73
United Kingdon Atomic Energy Authority,United Kingdon Atomic Energy Authority,21/12/2013,ROAD TRAVEL,FUSION,EMPLOYEE EXPENSES,100708728,94.90
United Kingdon Atomic Energy Authority,United Kingdon Atomic Energy Authority,21/12/2013,PROFESSIONAL SUBSCRIPTION,FUSION,EMPLOYEE EXPENSES,100708753,95.00
United Kingdon Atomic Energy Authority,United Kingdon Atomic Energy Authority,30/11/2013,SUBSISTENCE,FUSION,EMPLOYEE EXPENSES,100703630,95.00
United Kingdon Atomic Energy Authority,United Kingdon Atomic Energy Authority,14/12/2013,TAXIS,FUSION,EMPLOYEE EXPENSES,100708392,95.10
United Kingdon Atomic Energy Authority,United Kingdon Atomic Energy Authority,05/12/2013,MILEAGE ALLOWANCE,FUSION,EMPLOYEE EXPENSES,100703731,95.85
United Kingdon Atomic Energy Authority,United Kingdon Atomic Energy Authority,30/11/2013,SUBSISTENCE,SUPPORT SERVICES,EMPLOYEE EXPENSES,100703680,97.51
United Kingdon Atomic Energy Authority,United Kingdon Atomic Energy Authority,30/11/2013,SUBSISTENCE,FUSION,EMPLOYEE EXPENSES,100703672,97.51
United Kingdon Atomic Energy Authority,United Kingdon Atomic Energy Authority,19/12/2013,PROFESSIONAL SUBSCRIPTION,FUSION,EMPLOYEE EXPENSES,100708692,99.94
United Kingdon Atomic Energy Authority,United Kingdon Atomic Energy Authority,30/11/2013,MILEAGE ALLOWANCE,FUSION,EMPLOYEE EXPENSES,100703625,100.35
United Kingdon Atomic Energy Authority,United Kingdon Atomic Energy Authority,07/12/2013,SUBSISTENCE,FUSION,EMPLOYEE EXPENSES,100703745,100.68
United Kingdon Atomic Energy Authority,United Kingdon Atomic Energy Authority,21/12/2013,SUBSISTENCE,FUSION,EMPLOYEE EXPENSES,100708758,101.13
United Kingdon Atomic Energy Authority,United Kingdon Atomic Energy Authority,05/12/2013,SUBSISTENCE,FUSION,EMPLOYEE EXPENSES,100703715,101.65
United Kingdon Atomic Energy Authority,United Kingdon Atomic Energy Authority,21/12/2013,MILEAGE ALLOWANCE,FUSION,EMPLOYEE EXPENSES,100708741,103.50
United Kingdon Atomic Energy Authority,United Kingdon Atomic Energy Authority,30/11/2013,SUBSISTENCE,FUSION,EMPLOYEE EXPENSES,100703641,104.90
United Kingdon Atomic Energy Authority,United Kingdon Atomic Energy Authority,21/12/2013,RAIL TRAVEL,FUSION,EMPLOYEE EXPENSES,100708755,105.00
United Kingdon Atomic Energy Authority,United Kingdon Atomic Energy Authority,12/12/2013,MILEAGE ALLOWANCE,SUPPORT SERVICES,EMPLOYEE EXPENSES,100703821,105.60
United Kingdon Atomic Energy Authority,United Kingdon Atomic Energy Authority,21/12/2013,SUBSISTENCE,FUSION,EMPLOYEE EXPENSES,100708730,105.83
United Kingdon Atomic Energy Authority,United Kingdon Atomic Energy Authority,21/12/2013,AIR TRAVEL,FUSION,EMPLOYEE EXPENSES,100708729,106.83
United Kingdon Atomic Energy Authority,United Kingdon Atomic Energy Authority,12/12/2013,EFDA TRAVEL EXPENSES,FUSION,EMPLOYEE EXPENSES,100703812,107.49
United Kingdon Atomic Energy Authority,United Kingdon Atomic Energy Authority,19/12/2013,SUBSISTENCE,FUSION,EMPLOYEE EXPENSES,100708705,109.18
United Kingdon Atomic Energy Authority,United Kingdon Atomic Energy Authority,30/11/2013,OTHER EMPLOYEE EXPENSES,FUSION,EMPLOYEE EXPENSES,100703616,109.18
United Kingdon Atomic Energy Authority,United Kingdon Atomic Energy Authority,21/12/2013,SUBSISTENCE,SUPPORT SERVICES,EMPLOYEE EXPENSES,100708724,110.54
United Kingdon Atomic Energy Authority,United Kingdon Atomic Energy Authority,30/11/2013,SUBSISTENCE,FUSION,EMPLOYEE EXPENSES,100703631,110.84
United Kingdon Atomic Energy Authority,United Kingdon Atomic Energy Authority,21/12/2013,MILEAGE ALLOWANCE,SUPPORT SERVICES,EMPLOYEE EXPENSES,100708764,112.77
United Kingdon Atomic Energy Authority,United Kingdon Atomic Energy Authority,14/12/2013,BOOKS & PUBLICATIONS,FUSION,EMPLOYEE EXPENSES,100708387,113.06
United Kingdon Atomic Energy Authority,United Kingdon Atomic Energy Authority,05/12/2013,SUBSISTENCE,FUSION,EMPLOYEE EXPENSES,100703730,114.00
United Kingdon Atomic Energy Authority,United Kingdon Atomic Energy Authority,07/12/2013,SUBSISTENCE,FUSION,EMPLOYEE EXPENSES,100703753,116.51
United Kingdon Atomic Energy Authority,United Kingdon Atomic Energy Authority,30/11/2013,PROFESSIONAL SUBSCRIPTION,SUPPORT SERVICES,EMPLOYEE EXPENSES,100703660,120.00
United Kingdon Atomic Energy Authority,United Kingdon Atomic Energy Authority,14/12/2013,PROFESSIONAL SUBSCRIPTION,FUSION,EMPLOYEE EXPENSES,100708395,120.00
United Kingdon Atomic Energy Authority,United Kingdon Atomic Energy Authority,30/11/2013,PROFESSIONAL SUBSCRIPTION,SUPPORT SERVICES,EMPLOYEE EXPENSES,100703659,122.00
United Kingdon Atomic Energy Authority,United Kingdon Atomic Energy Authority,21/12/2013,SUBSISTENCE,FUSION,EMPLOYEE EXPENSES,100708777,122.91
United Kingdon Atomic Energy Authority,United Kingdon Atomic Energy Authority,14/12/2013,RAIL TRAVEL,FUSION,EMPLOYEE EXPENSES,100708391,124.80
United Kingdon Atomic Energy Authority,United Kingdon Atomic Energy Authority,07/12/2013,AIR TRAVEL,FUSION,EMPLOYEE EXPENSES,100703747,129.87
United Kingdon Atomic Energy Authority,United Kingdon Atomic Energy Authority,05/12/2013,PROFESSIONAL SUBSCRIPTION,FUSION,EMPLOYEE EXPENSES,100703729,133.00
United Kingdon Atomic Energy Authority,United Kingdon Atomic Energy Authority,30/11/2013,PROFESSIONAL SUBSCRIPTION,FUSION,EMPLOYEE EXPENSES,100703677,133.00
United Kingdon Atomic Energy Authority,United Kingdon Atomic Energy Authority,14/12/2013,PROFESSIONAL SUBSCRIPTION,FUSION,EMPLOYEE EXPENSES,100708398,133.00
United Kingdon Atomic Energy Authority,United Kingdon Atomic Energy Authority,21/12/2013,PROFESSIONAL SUBSCRIPTION,FUSION,EMPLOYEE EXPENSES,100708751,133.00
United Kingdon Atomic Energy Authority,United Kingdon Atomic Energy Authority,12/12/2013,PROFESSIONAL SUBSCRIPTION,FUSION,EMPLOYEE EXPENSES,100703810,133.00
United Kingdon Atomic Energy Authority,United Kingdon Atomic Energy Authority,19/12/2013,SUBSISTENCE,FUSION,EMPLOYEE EXPENSES,100708695,133.35
United Kingdon Atomic Energy Authority,United Kingdon Atomic Energy Authority,30/11/2013,SUBSISTENCE,FUSION,EMPLOYEE EXPENSES,100703678,135.38
United Kingdon Atomic Energy Authority,United Kingdon Atomic Energy Authority,19/12/2013,TRAINING COURSE FEES,FUSION,EMPLOYEE EXPENSES,100708688,136.00
United Kingdon Atomic Energy Authority,United Kingdon Atomic Energy Authority,14/12/2013,PROFESSIONAL SUBSCRIPTION,FUSION,EMPLOYEE EXPENSES,100708412,136.00
United Kingdon Atomic Energy Authority,United Kingdon Atomic Energy Authority,14/12/2013,OTHER EMPLOYEE EXPENSES,FUSION,EMPLOYEE EXPENSES,100708399,138.85
United Kingdon Atomic Energy Authority,United Kingdon Atomic Energy Authority,05/12/2013,SUBSISTENCE,FUSION,EMPLOYEE EXPENSES,100703726,141.05
United Kingdon Atomic Energy Authority,United Kingdon Atomic Energy Authority,21/12/2013,SUBSISTENCE,FUSION,EMPLOYEE EXPENSES,100708775,153.71
United Kingdon Atomic Energy Authority,United Kingdon Atomic Energy Authority,30/11/2013,PROFESSIONAL SUBSCRIPTION,SUPPORT SERVICES,EMPLOYEE EXPENSES,100703643,155.00
United Kingdon Atomic Energy Authority,United Kingdon Atomic Energy Authority,14/12/2013,PROFESSIONAL SUBSCRIPTION,SUPPORT SERVICES,EMPLOYEE EXPENSES,100708389,155.00
United Kingdon Atomic Energy Authority,United Kingdon Atomic Energy Authority,12/12/2013,PROFESSIONAL SUBSCRIPTION,FUSION,EMPLOYEE EXPENSES,100703818,156.00
United Kingdon Atomic Energy Authority,United Kingdon Atomic Energy Authority,12/12/2013,AIR TRAVEL,FUSION,EMPLOYEE EXPENSES,100703802,158.42
United Kingdon Atomic Energy Authority,United Kingdon Atomic Energy Authority,30/11/2013,PROFESSIONAL SUBSCRIPTION,FUSION,EMPLOYEE EXPENSES,100703654,162.30
United Kingdon Atomic Energy Authority,United Kingdon Atomic Energy Authority,07/12/2013,PROFESSIONAL SUBSCRIPTION,FUSION,EMPLOYEE EXPENSES,100703756,162.30
United Kingdon Atomic Energy Authority,United Kingdon Atomic Energy Authority,21/12/2013,PROFESSIONAL SUBSCRIPTION,FUSION,EMPLOYEE EXPENSES,100708737,162.30
United Kingdon Atomic Energy Authority,United Kingdon Atomic Energy Authority,30/11/2013,MILEAGE ALLOWANCE,FUSION,EMPLOYEE EXPENSES,100703626,166.50
United Kingdon Atomic Energy Authority,United Kingdon Atomic Energy Authority,21/12/2013,MILEAGE ALLOWANCE,FUSION,EMPLOYEE EXPENSES,100708730,166.95
United Kingdon Atomic Energy Authority,United Kingdon Atomic Energy Authority,30/11/2013,EFDA TRAVEL EXPENSES,FUSION,EMPLOYEE EXPENSES,100703656,168.81
United Kingdon Atomic Energy Authority,United Kingdon Atomic Energy Authority,14/12/2013,RAIL TRAVEL,FUSION,EMPLOYEE EXPENSES,100708399,171.97
United Kingdon Atomic Energy Authority,United Kingdon Atomic Energy Authority,30/11/2013,AIR TRAVEL,FUSION,EMPLOYEE EXPENSES,100703666,178.26
United Kingdon Atomic Energy Authority,United Kingdon Atomic Energy Authority,07/12/2013,SUBSISTENCE,FUSION,EMPLOYEE EXPENSES,100703748,178.55
United Kingdon Atomic Energy Authority,United Kingdon Atomic Energy Authority,30/11/2013,RAIL TRAVEL,FUSION,EMPLOYEE EXPENSES,100703618,190.00
United Kingdon Atomic Energy Authority,United Kingdon Atomic Energy Authority,30/11/2013,PROFESSIONAL SUBSCRIPTION,FUSION,EMPLOYEE EXPENSES,100703629,192.30
United Kingdon Atomic Energy Authority,United Kingdon Atomic Energy Authority,07/12/2013,PROFESSIONAL SUBSCRIPTION,FUSION,EMPLOYEE EXPENSES,100703765,192.30
United Kingdon Atomic Energy Authority,United Kingdon Atomic Energy Authority,07/12/2013,PROFESSIONAL SUBSCRIPTION,FUSION,EMPLOYEE EXPENSES,100703766,192.30
United Kingdon Atomic Energy Authority,United Kingdon Atomic Energy Authority,21/12/2013,SUBSISTENCE,FUSION,EMPLOYEE EXPENSES,100708738,193.84
United Kingdon Atomic Energy Authority,United Kingdon Atomic Energy Authority,30/11/2013,SUBSISTENCE,FUSION,EMPLOYEE EXPENSES,100703650,195.62
United Kingdon Atomic Energy Authority,United Kingdon Atomic Energy Authority,30/11/2013,PROFESSIONAL SUBSCRIPTION,FUSION,EMPLOYEE EXPENSES,100703649,197.50
United Kingdon Atomic Energy Authority,United Kingdon Atomic Energy Authority,12/12/2013,PROFESSIONAL SUBSCRIPTION,FUSION,EMPLOYEE EXPENSES,100703799,197.50
United Kingdon Atomic Energy Authority,United Kingdon Atomic Energy Authority,07/12/2013,PROFESSIONAL SUBSCRIPTION,FUSION,EMPLOYEE EXPENSES,100703758,197.50
United Kingdon Atomic Energy Authority,United Kingdon Atomic Energy Authority,05/12/2013,PROFESSIONAL SUBSCRIPTION,FUSION,EMPLOYEE EXPENSES,100703721,197.50
United Kingdon Atomic Energy Authority,United Kingdon Atomic Energy Authority,05/12/2013,PROFESSIONAL SUBSCRIPTION,FUSION,EMPLOYEE EXPENSES,100703706,197.50
United Kingdon Atomic Energy Authority,United Kingdon Atomic Energy Authority,05/12/2013,PROFESSIONAL SUBSCRIPTION,FUSION,EMPLOYEE EXPENSES,100703727,197.50
United Kingdon Atomic Energy Authority,United Kingdon Atomic Energy Authority,07/12/2013,PROFESSIONAL SUBSCRIPTION,FUSION,EMPLOYEE EXPENSES,100703749,197.50
United Kingdon Atomic Energy Authority,United Kingdon Atomic Energy Authority,07/12/2013,PROFESSIONAL SUBSCRIPTION,FUSION,EMPLOYEE EXPENSES,100703757,197.50
United Kingdon Atomic Energy Authority,United Kingdon Atomic Energy Authority,30/11/2013,PROFESSIONAL SUBSCRIPTION,FUSION,EMPLOYEE EXPENSES,100703668,197.50
United Kingdon Atomic Energy Authority,United Kingdon Atomic Energy Authority,30/11/2013,SUBSISTENCE,FUSION,EMPLOYEE EXPENSES,100703635,200.03
United Kingdon Atomic Energy Authority,United Kingdon Atomic Energy Authority,21/12/2013,SUBSISTENCE,FUSION,EMPLOYEE EXPENSES,100708754,200.48
United Kingdon Atomic Energy Authority,United Kingdon Atomic Energy Authority,21/12/2013,SUBSISTENCE,FUSION,EMPLOYEE EXPENSES,100708771,201.17
United Kingdon Atomic Energy Authority,United Kingdon Atomic Energy Authority,30/11/2013,SUBSISTENCE,FUSION,EMPLOYEE EXPENSES,100703663,201.50
United Kingdon Atomic Energy Authority,United Kingdon Atomic Energy Authority,05/12/2013,SUBSISTENCE,FUSION,EMPLOYEE EXPENSES,100703718,202.12
United Kingdon Atomic Energy Authority,United Kingdon Atomic Energy Authority,14/12/2013,PROFESSIONAL SUBSCRIPTION,FUSION,EMPLOYEE EXPENSES,100708404,202.50
United Kingdon Atomic Energy Authority,United Kingdon Atomic Energy Authority,19/12/2013,PROFESSIONAL SUBSCRIPTION,FUSION,EMPLOYEE EXPENSES,100708706,202.50
United Kingdon Atomic Energy Authority,United Kingdon Atomic Energy Authority,21/12/2013,SUBSISTENCE,FUSION,EMPLOYEE EXPENSES,100708736,202.50
United Kingdon Atomic Energy Authority,United Kingdon Atomic Energy Authority,21/12/2013,SUBSISTENCE,FUSION,EMPLOYEE EXPENSES,100708736,202.50
United Kingdon Atomic Energy Authority,United Kingdon Atomic Energy Authority,30/11/2013,SUBSISTENCE,FUSION,EMPLOYEE EXPENSES,100703634,202.57
United Kingdon Atomic Energy Authority,United Kingdon Atomic Energy Authority,30/11/2013,SUBSISTENCE,SUPPORT SERVICES,EMPLOYEE EXPENSES,100703615,210.10
United Kingdon Atomic Energy Authority,United Kingdon Atomic Energy Authority,07/12/2013,SUBSISTENCE,FUSION,EMPLOYEE EXPENSES,100703751,215.58
United Kingdon Atomic Energy Authority,United Kingdon Atomic Energy Authority,19/12/2013,SUBSISTENCE,FUSION,EMPLOYEE EXPENSES,100708701,216.50
United Kingdon Atomic Energy Authority,United Kingdon Atomic Energy Authority,12/12/2013,SUBSISTENCE,FUSION,EMPLOYEE EXPENSES,100703816,217.86
United Kingdon Atomic Energy Authority,United Kingdon Atomic Energy Authority,05/12/2013,PROFESSIONAL SUBSCRIPTION,FUSION,EMPLOYEE EXPENSES,100703710,219.50
United Kingdon Atomic Energy Authority,United Kingdon Atomic Energy Authority,21/12/2013,MILEAGE ALLOWANCE,SUPPORT SERVICES,EMPLOYEE EXPENSES,100708773,224.10
United Kingdon Atomic Energy Authority,United Kingdon Atomic Energy Authority,14/12/2013,SUBSISTENCE,SUPPORT SERVICES,EMPLOYEE EXPENSES,100708405,225.50
United Kingdon Atomic Energy Authority,United Kingdon Atomic Energy Authority,12/12/2013,EFDA TRAVEL EXPENSES,FUSION,EMPLOYEE EXPENSES,100703813,228.25
United Kingdon Atomic Energy Authority,United Kingdon Atomic Energy Authority,05/12/2013,SUBSISTENCE,SUPPORT SERVICES,EMPLOYEE EXPENSES,100703724,231.87
United Kingdon Atomic Energy Authority,United Kingdon Atomic Energy Authority,14/12/2013,SUBSISTENCE,FUSION,EMPLOYEE EXPENSES,100708394,234.16
United Kingdon Atomic Energy Authority,United Kingdon Atomic Energy Authority,14/12/2013,SUBSISTENCE,FUSION,EMPLOYEE EXPENSES,100708409,234.85
United Kingdon Atomic Energy Authority,United Kingdon Atomic Energy Authority,30/11/2013,PROFESSIONAL SUBSCRIPTION,SUPPORT SERVICES,EMPLOYEE EXPENSES,100703658,236.00
United Kingdon Atomic Energy Authority,United Kingdon Atomic Energy Authority,12/12/2013,PROFESSIONAL SUBSCRIPTION,FUSION,EMPLOYEE EXPENSES,100703800,236.00
United Kingdon Atomic Energy Authority,United Kingdon Atomic Energy Authority,30/11/2013,PROFESSIONAL SUBSCRIPTION,FUSION,EMPLOYEE EXPENSES,100703644,236.00
United Kingdon Atomic Energy Authority,United Kingdon Atomic Energy Authority,30/11/2013,PROFESSIONAL SUBSCRIPTION,FUSION,EMPLOYEE EXPENSES,100703670,236.00
United Kingdon Atomic Energy Authority,United Kingdon Atomic Energy Authority,12/12/2013,PROFESSIONAL SUBSCRIPTION,FUSION,EMPLOYEE EXPENSES,100703806,236.00
United Kingdon Atomic Energy Authority,United Kingdon Atomic Energy Authority,21/12/2013,RAIL TRAVEL,SUPPORT SERVICES,EMPLOYEE EXPENSES,100708773,252.20
United Kingdon Atomic Energy Authority,United Kingdon Atomic Energy Authority,30/11/2013,EFDA TRAVEL EXPENSES,FUSION,EMPLOYEE EXPENSES,100703653,257.03
United Kingdon Atomic Energy Authority,United Kingdon Atomic Energy Authority,30/11/2013,SUBSISTENCE,FUSION,EMPLOYEE EXPENSES,100703645,257.49
United Kingdon Atomic Energy Authority,United Kingdon Atomic Energy Authority,21/12/2013,OTHER EMPLOYEE EXPENSES,FUSION,EMPLOYEE EXPENSES,100708739,264.55
United Kingdon Atomic Energy Authority,United Kingdon Atomic Energy Authority,19/12/2013,SUBSISTENCE,FUSION,EMPLOYEE EXPENSES,100708702,266.12
United Kingdon Atomic Energy Authority,United Kingdon Atomic Energy Authority,21/12/2013,SUBSISTENCE,FUSION,EMPLOYEE EXPENSES,100708735,266.30
United Kingdon Atomic Energy Authority,United Kingdon Atomic Energy Authority,30/11/2013,PROFESSIONAL SUBSCRIPTION,FUSION,EMPLOYEE EXPENSES,100703652,271.00
United Kingdon Atomic Energy Authority,United Kingdon Atomic Energy Authority,30/11/2013,PROFESSIONAL SUBSCRIPTION,FUSION,EMPLOYEE EXPENSES,100703636,275.50
United Kingdon Atomic Energy Authority,United Kingdon Atomic Energy Authority,30/11/2013,MILEAGE ALLOWANCE,FUSION,EMPLOYEE EXPENSES,100703635,275.85
United Kingdon Atomic Energy Authority,United Kingdon Atomic Energy Authority,12/12/2013,SUBSISTENCE,FUSION,EMPLOYEE EXPENSES,100703802,276.72
United Kingdon Atomic Energy Authority,United Kingdon Atomic Energy Authority,19/12/2013,SUBSISTENCE,FUSION,EMPLOYEE EXPENSES,100708693,277.21
United Kingdon Atomic Energy Authority,United Kingdon Atomic Energy Authority,30/11/2013,MILEAGE ALLOWANCE,FUSION,EMPLOYEE EXPENSES,100703633,294.75
United Kingdon Atomic Energy Authority,United Kingdon Atomic Energy Authority,21/12/2013,SUBSISTENCE,SUPPORT SERVICES,EMPLOYEE EXPENSES,100708764,299.81
United Kingdon Atomic Energy Authority,United Kingdon Atomic Energy Authority,21/12/2013,SUBSISTENCE,FUSION,EMPLOYEE EXPENSES,100708728,300.51
United Kingdon Atomic Energy Authority,United Kingdon Atomic Energy Authority,21/12/2013,SUBSISTENCE,FUSION,EMPLOYEE EXPENSES,100708731,308.75
United Kingdon Atomic Energy Authority,United Kingdon Atomic Energy Authority,21/12/2013,SUBSISTENCE,FUSION,EMPLOYEE EXPENSES,100708733,316.51
United Kingdon Atomic Energy Authority,United Kingdon Atomic Energy Authority,12/12/2013,SUBSISTENCE,FUSION,EMPLOYEE EXPENSES,100703801,319.43
United Kingdon Atomic Energy Authority,United Kingdon Atomic Energy Authority,30/11/2013,SUBSISTENCE,SUPPORT SERVICES,EMPLOYEE EXPENSES,100703642,331.88
United Kingdon Atomic Energy Authority,United Kingdon Atomic Energy Authority,19/12/2013,SUBSISTENCE,SUPPORT SERVICES,EMPLOYEE EXPENSES,100708712,340.46
United Kingdon Atomic Energy Authority,United Kingdon Atomic Energy Authority,14/12/2013,SUBSISTENCE,SUPPORT SERVICES,EMPLOYEE EXPENSES,100708411,349.33
United Kingdon Atomic Energy Authority,United Kingdon Atomic Energy Authority,30/11/2013,SUBSISTENCE,FUSION,EMPLOYEE EXPENSES,100703666,355.16
United Kingdon Atomic Energy Authority,United Kingdon Atomic Energy Authority,21/12/2013,EFDA TRAVEL EXPENSES,FUSION,EMPLOYEE EXPENSES,100708744,387.79
United Kingdon Atomic Energy Authority,United Kingdon Atomic Energy Authority,21/12/2013,SUBSISTENCE,FUSION,EMPLOYEE EXPENSES,100708729,388.05
United Kingdon Atomic Energy Authority,United Kingdon Atomic Energy Authority,21/12/2013,SUBSISTENCE,FUSION,EMPLOYEE EXPENSES,100708732,406.19
United Kingdon Atomic Energy Authority,United Kingdon Atomic Energy Authority,21/12/2013,EFDA TRAVEL EXPENSES,FUSION,EMPLOYEE EXPENSES,100708743,433.35
United Kingdon Atomic Energy Authority,United Kingdon Atomic Energy Authority,12/12/2013,SUBSISTENCE,FUSION,EMPLOYEE EXPENSES,100703820,437.68
United Kingdon Atomic Energy Authority,United Kingdon Atomic Energy Authority,21/12/2013,SUBSISTENCE,FUSION,EMPLOYEE EXPENSES,100708740,439.93
United Kingdon Atomic Energy Authority,United Kingdon Atomic Energy Authority,21/12/2013,EFDA TRAVEL EXPENSES,FUSION,EMPLOYEE EXPENSES,100708745,440.44
United Kingdon Atomic Energy Authority,United Kingdon Atomic Energy Authority,12/12/2013,SUBSISTENCE,FUSION,EMPLOYEE EXPENSES,100703823,450.59
United Kingdon Atomic Energy Authority,United Kingdon Atomic Energy Authority,07/12/2013,SUBSISTENCE,FUSION,EMPLOYEE EXPENSES,100703747,456.53
United Kingdon Atomic Energy Authority,United Kingdon Atomic Energy Authority,14/12/2013,SUBSISTENCE,SUPPORT SERVICES,EMPLOYEE EXPENSES,100708390,475.54
United Kingdon Atomic Energy Authority,United Kingdon Atomic Energy Authority,30/11/2013,SUBSISTENCE,FUSION,EMPLOYEE EXPENSES,100703632,489.00
United Kingdon Atomic Energy Authority,United Kingdon Atomic Energy Authority,19/12/2013,OTHER EMPLOYEE EXPENSES,FUSION,EMPLOYEE EXPENSES,100708692,491.44
United Kingdon Atomic Energy Authority,United Kingdon Atomic Energy Authority,07/12/2013,PROFESSIONAL SUBSCRIPTION,PROPERTY,EMPLOYEE EXPENSES,100703744,499.00
United Kingdon Atomic Energy Authority,United Kingdon Atomic Energy Authority,30/11/2013,SUBSISTENCE,FUSION,EMPLOYEE EXPENSES,100703619,510.18
United Kingdon Atomic Energy Authority,United Kingdon Atomic Energy Authority,07/12/2013,SUBSISTENCE,FUSION,EMPLOYEE EXPENSES,100703755,541.13
United Kingdon Atomic Energy Authority,United Kingdon Atomic Energy Authority,14/12/2013,OTHER EMPLOYEE EXPENSES,FUSION,EMPLOYEE EXPENSES,100708392,542.56
United Kingdon Atomic Energy Authority,United Kingdon Atomic Energy Authority,07/12/2013,SUBSISTENCE,FUSION,EMPLOYEE EXPENSES,100703752,542.65
United Kingdon Atomic Energy Authority,United Kingdon Atomic Energy Authority,07/12/2013,SUBSISTENCE,FUSION,EMPLOYEE EXPENSES,100703767,544.20
United Kingdon Atomic Energy Authority,United Kingdon Atomic Energy Authority,30/11/2013,SUBSISTENCE,FUSION,EMPLOYEE EXPENSES,100703679,565.60
United Kingdon Atomic Energy Authority,United Kingdon Atomic Energy Authority,30/11/2013,SUBSISTENCE,FUSION,EMPLOYEE EXPENSES,100703651,570.37
United Kingdon Atomic Energy Authority,United Kingdon Atomic Energy Authority,30/11/2013,SUBSISTENCE,FUSION,EMPLOYEE EXPENSES,100703647,602.37
United Kingdon Atomic Energy Authority,United Kingdon Atomic Energy Authority,21/12/2013,SUBSISTENCE,FUSION,EMPLOYEE EXPENSES,100708776,636.96
United Kingdon Atomic Energy Authority,United Kingdon Atomic Energy Authority,14/12/2013,SUBSISTENCE,FUSION,EMPLOYEE EXPENSES,100708410,651.04
United Kingdon Atomic Energy Authority,United Kingdon Atomic Energy Authority,14/12/2013,RELOCATION COSTS,FUSION,EMPLOYEE EXPENSES,100708419,675.00
United Kingdon Atomic Energy Authority,United Kingdon Atomic Energy Authority,30/11/2013,SUBSISTENCE,FUSION,EMPLOYEE EXPENSES,100703616,704.76
United Kingdon Atomic Energy Authority,United Kingdon Atomic Energy Authority,30/11/2013,EFDA TRAVEL EXPENSES,FUSION,EMPLOYEE EXPENSES,100703655,706.63
United Kingdon Atomic Energy Authority,United Kingdon Atomic Energy Authority,14/12/2013,SUBSISTENCE,FUSION,EMPLOYEE EXPENSES,100708399,745.86
United Kingdon Atomic Energy Authority,United Kingdon Atomic Energy Authority,21/12/2013,SUBSISTENCE,SUPPORT SERVICES,EMPLOYEE EXPENSES,100708763,762.70
United Kingdon Atomic Energy Authority,United Kingdon Atomic Energy Authority,30/11/2013,SUBSISTENCE,FUSION,EMPLOYEE EXPENSES,100703690,769.69
United Kingdon Atomic Energy Authority,United Kingdon Atomic Energy Authority,14/12/2013,SUBSISTENCE,FUSION,EMPLOYEE EXPENSES,100708418,777.40
United Kingdon Atomic Energy Authority,United Kingdon Atomic Energy Authority,12/12/2013,SUBSISTENCE,FUSION,EMPLOYEE EXPENSES,100703819,828.74
United Kingdon Atomic Energy Authority,United Kingdon Atomic Energy Authority,14/12/2013,SUBSISTENCE,FUSION,EMPLOYEE EXPENSES,100708413,892.96
United Kingdon Atomic Energy Authority,United Kingdon Atomic Energy Authority,05/12/2013,SUBSISTENCE,FUSION,EMPLOYEE EXPENSES,100703713,893.95
United Kingdon Atomic Energy Authority,United Kingdon Atomic Energy Authority,30/11/2013,SUBSISTENCE,FUSION,EMPLOYEE EXPENSES,100703621,966.99
United Kingdon Atomic Energy Authority,United Kingdon Atomic Energy Authority,21/12/2013,SUBSISTENCE,FUSION,EMPLOYEE EXPENSES,100708739,"1,153.31"
United Kingdon Atomic Energy Authority,United Kingdon Atomic Energy Authority,30/11/2013,SUBSISTENCE,FUSION,EMPLOYEE EXPENSES,100703623,"1,162.26"
United Kingdon Atomic Energy Authority,United Kingdon Atomic Energy Authority,12/12/2013,EFDA TRAVEL EXPENSES,FUSION,EMPLOYEE EXPENSES,100703815,"1,247.49"
United Kingdon Atomic Energy Authority,United Kingdon Atomic Energy Authority,05/12/2013,SUBSISTENCE,FUSION,EMPLOYEE EXPENSES,100703722,"1,388.48"
United Kingdon Atomic Energy Authority,United Kingdon Atomic Energy Authority,07/12/2013,RELOCATION COSTS,FUSION,EMPLOYEE EXPENSES,100703769,"1,406.20"
United Kingdon Atomic Energy Authority,United Kingdon Atomic Energy Authority,19/12/2013,SUBSISTENCE,FUSION,EMPLOYEE EXPENSES,100708692,"1,503.50"
United Kingdon Atomic Energy Authority,United Kingdon Atomic Energy Authority,30/11/2013,SUBSISTENCE,FUSION,EMPLOYEE EXPENSES,100703675,"1,902.70"
United Kingdon Atomic Energy Authority,United Kingdon Atomic Energy Authority,21/12/2013,RELOCATION COSTS,FUSION,EMPLOYEE EXPENSES,100708779,"1,916.67"
United Kingdon Atomic Energy Authority,United Kingdon Atomic Energy Authority,11/12/2013,PROFESSIONAL SERVICES,FUSION,ENERGY SAFETY AND RISK CONSULTANTS,5100297250,19659.04
United Kingdon Atomic Energy Authority,United Kingdon Atomic Energy Authority,02/12/2013,MATERIALS & SPARES,FUSION,ERIKS UK,5100296843,51.6
United Kingdon Atomic Energy Authority,United Kingdon Atomic Energy Authority,02/12/2013,MATERIALS & SPARES,FUSION,ETS CABLE COMPONENTS,5100296832,308
United Kingdon Atomic Energy Authority,United Kingdon Atomic Energy Authority,23/12/2013,REPAIRS & MAINTENANCE,PROPERTY,EURO DISMANTLING SERVICES,5100297949,348.5
United Kingdon Atomic Energy Authority,United Kingdon Atomic Energy Authority,23/12/2013,REPAIRS & MAINTENANCE,PROPERTY,EURO DISMANTLING SERVICES,5100297950,663.98
United Kingdon Atomic Energy Authority,United Kingdon Atomic Energy Authority,23/12/2013,REPAIRS & MAINTENANCE,PROPERTY,EURO DISMANTLING SERVICES,5100297951,2998.93
United Kingdon Atomic Energy Authority,United Kingdon Atomic Energy Authority,25/11/2013,REPAIRS & MAINTENANCE,PROPERTY,EURO DISMANTLING SERVICES,5100296660,3588
United Kingdon Atomic Energy Authority,United Kingdon Atomic Energy Authority,18/12/2013,REPAIRS & MAINTENANCE,PROPERTY,EURO DISMANTLING SERVICES,5100297909,53113.5
United Kingdon Atomic Energy Authority,United Kingdon Atomic Energy Authority,23/12/2013,CONSUMABLES,FUSION,EUROTHERM LTD,5100297998,237.6
United Kingdon Atomic Energy Authority,United Kingdon Atomic Energy Authority,25/11/2013,REPAIRS & MAINTENANCE,FUSION,FACTAIR LTD,5100296088,428
United Kingdon Atomic Energy Authority,United Kingdon Atomic Energy Authority,27/11/2013,MATERIALS & SPARES,FUSION,FARNELL ELECTRONIC,5100296862,-234.21
United Kingdon Atomic Energy Authority,United Kingdon Atomic Energy Authority,13/12/2013,MATERIALS & SPARES,FUSION,FARNELL ELECTRONIC,5100297727,-21
United Kingdon Atomic Energy Authority,United Kingdon Atomic Energy Authority,25/11/2013,MATERIALS & SPARES,FUSION,FARNELL ELECTRONIC,5100296773,-17.28
United Kingdon Atomic Energy Authority,United Kingdon Atomic Energy Authority,25/11/2013,MATERIALS & SPARES,FUSION,FARNELL ELECTRONIC,5100296774,-17.22
United Kingdon Atomic Energy Authority,United Kingdon Atomic Energy Authority,25/11/2013,MATERIALS & SPARES,FUSION,FARNELL ELECTRONIC,5100296755,0.25
United Kingdon Atomic Energy Authority,United Kingdon Atomic Energy Authority,25/11/2013,MATERIALS & SPARES,FUSION,FARNELL ELECTRONIC,5100296581,2.9
United Kingdon Atomic Energy Authority,United Kingdon Atomic Energy Authority,23/12/2013,MATERIALS & SPARES,FUSION,FARNELL ELECTRONIC,5100297917,3.06
United Kingdon Atomic Energy Authority,United Kingdon Atomic Energy Authority,23/12/2013,MATERIALS & SPARES,FUSION,FARNELL ELECTRONIC,5100297962,3.06
United Kingdon Atomic Energy Authority,United Kingdon Atomic Energy Authority,16/12/2013,MATERIALS & SPARES,FUSION,FARNELL ELECTRONIC,5100297482,3.5
United Kingdon Atomic Energy Authority,United Kingdon Atomic Energy Authority,04/12/2013,MATERIALS & SPARES,FUSION,FARNELL ELECTRONIC,5100296846,3.79
United Kingdon Atomic Energy Authority,United Kingdon Atomic Energy Authority,25/11/2013,MATERIALS & SPARES,FUSION,FARNELL ELECTRONIC,5100296607,4.58
United Kingdon Atomic Energy Authority,United Kingdon Atomic Energy Authority,02/12/2013,MATERIALS & SPARES,FUSION,FARNELL ELECTRONIC,5100296827,5.98
United Kingdon Atomic Energy Authority,United Kingdon Atomic Energy Authority,02/12/2013,MATERIALS & SPARES,FUSION,FARNELL ELECTRONIC,5100296983,6.49
United Kingdon Atomic Energy Authority,United Kingdon Atomic Energy Authority,25/11/2013,MATERIALS & SPARES,FUSION,FARNELL ELECTRONIC,5100296653,6.95
United Kingdon Atomic Energy Authority,United Kingdon Atomic Energy Authority,25/11/2013,MATERIALS & SPARES,FUSION,FARNELL ELECTRONIC,5100296704,7.77
United Kingdon Atomic Energy Authority,United Kingdon Atomic Energy Authority,25/11/2013,MATERIALS & SPARES,FUSION,FARNELL ELECTRONIC,5100296582,8.45
United Kingdon Atomic Energy Authority,United Kingdon Atomic Energy Authority,09/12/2013,MATERIALS & SPARES,FUSION,FARNELL ELECTRONIC,5100297176,8.75
United Kingdon Atomic Energy Authority,United Kingdon Atomic Energy Authority,02/12/2013,MATERIALS & SPARES,FUSION,FARNELL ELECTRONIC,5100296982,9.76
United Kingdon Atomic Energy Authority,United Kingdon Atomic Energy Authority,23/12/2013,MATERIALS & SPARES,FUSION,FARNELL ELECTRONIC,5100297965,10.4
United Kingdon Atomic Energy Authority,United Kingdon Atomic Energy Authority,02/12/2013,MATERIALS & SPARES,FUSION,FARNELL ELECTRONIC,5100296829,11
United Kingdon Atomic Energy Authority,United Kingdon Atomic Energy Authority,25/11/2013,MATERIALS & SPARES,FUSION,FARNELL ELECTRONIC,5100296756,11.16
United Kingdon Atomic Energy Authority,United Kingdon Atomic Energy Authority,16/12/2013,MATERIALS & SPARES,FUSION,FARNELL ELECTRONIC,5100297598,11.9
United Kingdon Atomic Energy Authority,United Kingdon Atomic Energy Authority,23/12/2013,MATERIALS & SPARES,FUSION,FARNELL ELECTRONIC,5100297974,12.17
United Kingdon Atomic Energy Authority,United Kingdon Atomic Energy Authority,23/12/2013,MATERIALS & SPARES,FUSION,FARNELL ELECTRONIC,5100297912,13.23
United Kingdon Atomic Energy Authority,United Kingdon Atomic Energy Authority,16/12/2013,MATERIALS & SPARES,FUSION,FARNELL ELECTRONIC,5100297483,14.05
United Kingdon Atomic Energy Authority,United Kingdon Atomic Energy Authority,09/12/2013,MATERIALS & SPARES,FUSION,FARNELL ELECTRONIC,5100297170,14.19
United Kingdon Atomic Energy Authority,United Kingdon Atomic Energy Authority,09/12/2013,MATERIALS & SPARES,FUSION,FARNELL ELECTRONIC,5100297096,15.2
United Kingdon Atomic Energy Authority,United Kingdon Atomic Energy Authority,25/11/2013,MATERIALS & SPARES,FUSION,FARNELL ELECTRONIC,5100296601,15.9
United Kingdon Atomic Energy Authority,United Kingdon Atomic Energy Authority,23/12/2013,MATERIALS & SPARES,FUSION,FARNELL ELECTRONIC,5100297969,15.92
United Kingdon Atomic Energy Authority,United Kingdon Atomic Energy Authority,09/12/2013,MATERIALS & SPARES,FUSION,FARNELL ELECTRONIC,5100297261,17.12
United Kingdon Atomic Energy Authority,United Kingdon Atomic Energy Authority,09/12/2013,MATERIALS & SPARES,FUSION,FARNELL ELECTRONIC,5100297108,17.4
United Kingdon Atomic Energy Authority,United Kingdon Atomic Energy Authority,23/12/2013,MATERIALS & SPARES,FUSION,FARNELL ELECTRONIC,5100298051,20.5
United Kingdon Atomic Energy Authority,United Kingdon Atomic Energy Authority,13/12/2013,MATERIALS & SPARES,FUSION,FARNELL ELECTRONIC,5100297728,21
United Kingdon Atomic Energy Authority,United Kingdon Atomic Energy Authority,25/11/2013,MATERIALS & SPARES,FUSION,FARNELL ELECTRONIC,5100296701,22.08
United Kingdon Atomic Energy Authority,United Kingdon Atomic Energy Authority,16/12/2013,MATERIALS & SPARES,FUSION,FARNELL ELECTRONIC,5100297477,23.08
United Kingdon Atomic Energy Authority,United Kingdon Atomic Energy Authority,25/11/2013,MATERIALS & SPARES,FUSION,FARNELL ELECTRONIC,5100296578,24.15
United Kingdon Atomic Energy Authority,United Kingdon Atomic Energy Authority,27/11/2013,MATERIALS & SPARES,FUSION,FARNELL ELECTRONIC,5100296759,24.58
United Kingdon Atomic Energy Authority,United Kingdon Atomic Energy Authority,23/12/2013,MATERIALS & SPARES,FUSION,FARNELL ELECTRONIC,5100297971,25.56
United Kingdon Atomic Energy Authority,United Kingdon Atomic Energy Authority,09/12/2013,MATERIALS & SPARES,FUSION,FARNELL ELECTRONIC,5100297171,25.8
United Kingdon Atomic Energy Authority,United Kingdon Atomic Energy Authority,16/12/2013,MATERIALS & SPARES,FUSION,FARNELL ELECTRONIC,5100297255,26.19
United Kingdon Atomic Energy Authority,United Kingdon Atomic Energy Authority,02/12/2013,MATERIALS & SPARES,FUSION,FARNELL ELECTRONIC,5100296171,26.73
United Kingdon Atomic Energy Authority,United Kingdon Atomic Energy Authority,09/12/2013,MATERIALS & SPARES,FUSION,FARNELL ELECTRONIC,5100297259,28.04
United Kingdon Atomic Energy Authority,United Kingdon Atomic Energy Authority,02/12/2013,MATERIALS & SPARES,FUSION,FARNELL ELECTRONIC,5100296852,29.79
United Kingdon Atomic Energy Authority,United Kingdon Atomic Energy Authority,04/12/2013,MATERIALS & SPARES,FUSION,FARNELL ELECTRONIC,5100296978,30.64
United Kingdon Atomic Energy Authority,United Kingdon Atomic Energy Authority,04/12/2013,MATERIALS & SPARES,FUSION,FARNELL ELECTRONIC,5100296650,32.48
United Kingdon Atomic Energy Authority,United Kingdon Atomic Energy Authority,23/12/2013,MATERIALS & SPARES,FUSION,FARNELL ELECTRONIC,5100297915,33.96
United Kingdon Atomic Energy Authority,United Kingdon Atomic Energy Authority,25/11/2013,MATERIALS & SPARES,FUSION,FARNELL ELECTRONIC,5100296699,36.11
United Kingdon Atomic Energy Authority,United Kingdon Atomic Energy Authority,25/11/2013,MATERIALS & SPARES,FUSION,FARNELL ELECTRONIC,5100296641,37.24
United Kingdon Atomic Energy Authority,United Kingdon Atomic Energy Authority,25/11/2013,MATERIALS & SPARES,FUSION,FARNELL ELECTRONIC,5100296705,37.97
United Kingdon Atomic Energy Authority,United Kingdon Atomic Energy Authority,16/12/2013,MATERIALS & SPARES,FUSION,FARNELL ELECTRONIC,5100297588,39.8
United Kingdon Atomic Energy Authority,United Kingdon Atomic Energy Authority,16/12/2013,MATERIALS & SPARES,FUSION,FARNELL ELECTRONIC,5100297645,40.78
United Kingdon Atomic Energy Authority,United Kingdon Atomic Energy Authority,25/11/2013,MATERIALS & SPARES,FUSION,FARNELL ELECTRONIC,5100296592,46.39
United Kingdon Atomic Energy Authority,United Kingdon Atomic Energy Authority,18/12/2013,MATERIALS & SPARES,FUSION,FARNELL ELECTRONIC,5100297643,46.55
United Kingdon Atomic Energy Authority,United Kingdon Atomic Energy Authority,27/11/2013,MATERIALS & SPARES,FUSION,FARNELL ELECTRONIC,5100296595,47.86
United Kingdon Atomic Energy Authority,United Kingdon Atomic Energy Authority,11/12/2013,MATERIALS & SPARES,FUSION,FARNELL ELECTRONIC,5100297175,48.87
United Kingdon Atomic Energy Authority,United Kingdon Atomic Energy Authority,09/12/2013,MATERIALS & SPARES,FUSION,FARNELL ELECTRONIC,5100297253,49
United Kingdon Atomic Energy Authority,United Kingdon Atomic Energy Authority,25/11/2013,MATERIALS & SPARES,FUSION,FARNELL ELECTRONIC,5100296603,51.09
United Kingdon Atomic Energy Authority,United Kingdon Atomic Energy Authority,25/11/2013,MATERIALS & SPARES,FUSION,FARNELL ELECTRONIC,5100296757,55.14
United Kingdon Atomic Energy Authority,United Kingdon Atomic Energy Authority,02/12/2013,MATERIALS & SPARES,FUSION,FARNELL ELECTRONIC,5100296831,56.05
United Kingdon Atomic Energy Authority,United Kingdon Atomic Energy Authority,25/11/2013,MATERIALS & SPARES,FUSION,FARNELL ELECTRONIC,5100296600,56.6
United Kingdon Atomic Energy Authority,United Kingdon Atomic Energy Authority,25/11/2013,MATERIALS & SPARES,FUSION,FARNELL ELECTRONIC,5100296642,56.74
United Kingdon Atomic Energy Authority,United Kingdon Atomic Energy Authority,09/12/2013,MATERIALS & SPARES,FUSION,FARNELL ELECTRONIC,5100297257,57.87
United Kingdon Atomic Energy Authority,United Kingdon Atomic Energy Authority,02/12/2013,MATERIALS & SPARES,FUSION,FARNELL ELECTRONIC,5100296828,59.8
United Kingdon Atomic Energy Authority,United Kingdon Atomic Energy Authority,16/12/2013,MATERIALS & SPARES,FUSION,FARNELL ELECTRONIC,5100297475,61.1
United Kingdon Atomic Energy Authority,United Kingdon Atomic Energy Authority,09/12/2013,MATERIALS & SPARES,FUSION,FARNELL ELECTRONIC,5100297115,62.98
United Kingdon Atomic Energy Authority,United Kingdon Atomic Energy Authority,09/12/2013,MATERIALS & SPARES,FUSION,FARNELL ELECTRONIC,5100297260,63.4
United Kingdon Atomic Energy Authority,United Kingdon Atomic Energy Authority,16/12/2013,MATERIALS & SPARES,FUSION,FARNELL ELECTRONIC,5100297583,68.64
United Kingdon Atomic Energy Authority,United Kingdon Atomic Energy Authority,23/12/2013,MATERIALS & SPARES,FUSION,FARNELL ELECTRONIC,5100297972,70.89
United Kingdon Atomic Energy Authority,United Kingdon Atomic Energy Authority,27/11/2013,MATERIALS & SPARES,FUSION,FARNELL ELECTRONIC,5100296702,71.19
United Kingdon Atomic Energy Authority,United Kingdon Atomic Energy Authority,23/12/2013,MATERIALS & SPARES,FUSION,FARNELL ELECTRONIC,5100297976,74.18
United Kingdon Atomic Energy Authority,United Kingdon Atomic Energy Authority,02/12/2013,MATERIALS & SPARES,FUSION,FARNELL ELECTRONIC,5100296950,75
United Kingdon Atomic Energy Authority,United Kingdon Atomic Energy Authority,25/11/2013,MATERIALS & SPARES,FUSION,FARNELL ELECTRONIC,5100296605,82.46
United Kingdon Atomic Energy Authority,United Kingdon Atomic Energy Authority,25/11/2013,MATERIALS & SPARES,FUSION,FARNELL ELECTRONIC,5100296648,84.88
United Kingdon Atomic Energy Authority,United Kingdon Atomic Energy Authority,16/12/2013,MATERIALS & SPARES,FUSION,FARNELL ELECTRONIC,5100297587,88.74
United Kingdon Atomic Energy Authority,United Kingdon Atomic Energy Authority,02/12/2013,MATERIALS & SPARES,FUSION,FARNELL ELECTRONIC,5100297018,89.1
United Kingdon Atomic Energy Authority,United Kingdon Atomic Energy Authority,23/12/2013,MATERIALS & SPARES,FUSION,FARNELL ELECTRONIC,5100297913,89.4
United Kingdon Atomic Energy Authority,United Kingdon Atomic Energy Authority,16/12/2013,MATERIALS & SPARES,FUSION,FARNELL ELECTRONIC,5100297597,90.12
United Kingdon Atomic Energy Authority,United Kingdon Atomic Energy Authority,25/11/2013,MATERIALS & SPARES,FUSION,FARNELL ELECTRONIC,5100296576,95.2
United Kingdon Atomic Energy Authority,United Kingdon Atomic Energy Authority,09/12/2013,MATERIALS & SPARES,FUSION,FARNELL ELECTRONIC,5100297173,95.6
United Kingdon Atomic Energy Authority,United Kingdon Atomic Energy Authority,18/12/2013,MATERIALS & SPARES,FUSION,FARNELL ELECTRONIC,5100297639,96.59
United Kingdon Atomic Energy Authority,United Kingdon Atomic Energy Authority,02/12/2013,MATERIALS & SPARES,FUSION,FARNELL ELECTRONIC,5100296850,100.41
United Kingdon Atomic Energy Authority,United Kingdon Atomic Energy Authority,09/12/2013,MATERIALS & SPARES,FUSION,FARNELL ELECTRONIC,5100297256,100.46
United Kingdon Atomic Energy Authority,United Kingdon Atomic Energy Authority,23/12/2013,MATERIALS & SPARES,FUSION,FARNELL ELECTRONIC,5100298050,101.48
United Kingdon Atomic Energy Authority,United Kingdon Atomic Energy Authority,16/12/2013,MATERIALS & SPARES,FUSION,FARNELL ELECTRONIC,5100297594,108.6
United Kingdon Atomic Energy Authority,United Kingdon Atomic Energy Authority,25/11/2013,MATERIALS & SPARES,FUSION,FARNELL ELECTRONIC,5100294624,109.17
United Kingdon Atomic Energy Authority,United Kingdon Atomic Energy Authority,25/11/2013,MATERIALS & SPARES,FUSION,FARNELL ELECTRONIC,5100296640,111.88
United Kingdon Atomic Energy Authority,United Kingdon Atomic Energy Authority,25/11/2013,MATERIALS & SPARES,FUSION,FARNELL ELECTRONIC,5100296606,113.22
United Kingdon Atomic Energy Authority,United Kingdon Atomic Energy Authority,04/12/2013,MATERIALS & SPARES,FUSION,FARNELL ELECTRONIC,5100296830,115.59
United Kingdon Atomic Energy Authority,United Kingdon Atomic Energy Authority,02/12/2013,MATERIALS & SPARES,FUSION,FARNELL ELECTRONIC,5100296703,118.35
United Kingdon Atomic Energy Authority,United Kingdon Atomic Energy Authority,04/12/2013,MATERIALS & SPARES,FUSION,FARNELL ELECTRONIC,5100296604,122.85
United Kingdon Atomic Energy Authority,United Kingdon Atomic Energy Authority,25/11/2013,MATERIALS & SPARES,FUSION,FARNELL ELECTRONIC,5100296583,124.19
United Kingdon Atomic Energy Authority,United Kingdon Atomic Energy Authority,25/11/2013,MATERIALS & SPARES,FUSION,FARNELL ELECTRONIC,5100296577,125.12
United Kingdon Atomic Energy Authority,United Kingdon Atomic Energy Authority,09/12/2013,MATERIALS & SPARES,FUSION,FARNELL ELECTRONIC,5100297252,130.1
United Kingdon Atomic Energy Authority,United Kingdon Atomic Energy Authority,23/12/2013,MATERIALS & SPARES,FUSION,FARNELL ELECTRONIC,5100297873,130.1
United Kingdon Atomic Energy Authority,United Kingdon Atomic Energy Authority,02/12/2013,MATERIALS & SPARES,FUSION,FARNELL ELECTRONIC,5100296951,131.52
United Kingdon Atomic Energy Authority,United Kingdon Atomic Energy Authority,16/12/2013,MATERIALS & SPARES,FUSION,FARNELL ELECTRONIC,5100297592,131.6
United Kingdon Atomic Energy Authority,United Kingdon Atomic Energy Authority,02/12/2013,MATERIALS & SPARES,FUSION,FARNELL ELECTRONIC,5100296984,137.84
United Kingdon Atomic Energy Authority,United Kingdon Atomic Energy Authority,02/12/2013,MATERIALS & SPARES,FUSION,FARNELL ELECTRONIC,5100296975,142.81
United Kingdon Atomic Energy Authority,United Kingdon Atomic Energy Authority,25/11/2013,MATERIALS & SPARES,FUSION,FARNELL ELECTRONIC,5100296580,147.2
United Kingdon Atomic Energy Authority,United Kingdon Atomic Energy Authority,18/12/2013,MATERIALS & SPARES,FUSION,FARNELL ELECTRONIC,5100297644,153.75
United Kingdon Atomic Energy Authority,United Kingdon Atomic Energy Authority,23/12/2013,MATERIALS & SPARES,FUSION,FARNELL ELECTRONIC,5100297911,154.16
United Kingdon Atomic Energy Authority,United Kingdon Atomic Energy Authority,09/12/2013,MATERIALS & SPARES,FUSION,FARNELL ELECTRONIC,5100297258,159.99
United Kingdon Atomic Energy Authority,United Kingdon Atomic Energy Authority,16/12/2013,MATERIALS & SPARES,FUSION,FARNELL ELECTRONIC,5100297590,162.48
United Kingdon Atomic Energy Authority,United Kingdon Atomic Energy Authority,25/11/2013,MATERIALS & SPARES,FUSION,FARNELL ELECTRONIC,5100296638,165.26
United Kingdon Atomic Energy Authority,United Kingdon Atomic Energy Authority,02/12/2013,MATERIALS & SPARES,FUSION,FARNELL ELECTRONIC,5100297019,173.5
United Kingdon Atomic Energy Authority,United Kingdon Atomic Energy Authority,18/12/2013,MATERIALS & SPARES,FUSION,FARNELL ELECTRONIC,5100297642,184.5
United Kingdon Atomic Energy Authority,United Kingdon Atomic Energy Authority,02/12/2013,MATERIALS & SPARES,FUSION,FARNELL ELECTRONIC,5100296953,190.18
United Kingdon Atomic Energy Authority,United Kingdon Atomic Energy Authority,23/12/2013,MATERIALS & SPARES,FUSION,FARNELL ELECTRONIC,5100297973,208.45
United Kingdon Atomic Energy Authority,United Kingdon Atomic Energy Authority,16/12/2013,MATERIALS & SPARES,FUSION,FARNELL ELECTRONIC,5100297596,211.48
United Kingdon Atomic Energy Authority,United Kingdon Atomic Energy Authority,23/12/2013,MATERIALS & SPARES,FUSION,FARNELL ELECTRONIC,5100297977,213.14
United Kingdon Atomic Energy Authority,United Kingdon Atomic Energy Authority,27/11/2013,MATERIALS & SPARES,FUSION,FARNELL ELECTRONIC,5100296591,213.67
United Kingdon Atomic Energy Authority,United Kingdon Atomic Energy Authority,25/11/2013,MATERIALS & SPARES,FUSION,FARNELL ELECTRONIC,5100296635,214.99
United Kingdon Atomic Energy Authority,United Kingdon Atomic Energy Authority,18/12/2013,MATERIALS & SPARES,FUSION,FARNELL ELECTRONIC,5100297484,221.56
United Kingdon Atomic Energy Authority,United Kingdon Atomic Energy Authority,23/12/2013,MATERIALS & SPARES,FUSION,FARNELL ELECTRONIC,5100298049,222.28
United Kingdon Atomic Energy Authority,United Kingdon Atomic Energy Authority,23/12/2013,MATERIALS & SPARES,FUSION,FARNELL ELECTRONIC,5100297964,225.57
United Kingdon Atomic Energy Authority,United Kingdon Atomic Energy Authority,23/12/2013,MATERIALS & SPARES,FUSION,FARNELL ELECTRONIC,5100297968,229.95
United Kingdon Atomic Energy Authority,United Kingdon Atomic Energy Authority,25/11/2013,MATERIALS & SPARES,FUSION,FARNELL ELECTRONIC,5100296700,251.5
United Kingdon Atomic Energy Authority,United Kingdon Atomic Energy Authority,25/11/2013,MATERIALS & SPARES,FUSION,FARNELL ELECTRONIC,5100296698,259.93
United Kingdon Atomic Energy Authority,United Kingdon Atomic Energy Authority,23/12/2013,MATERIALS & SPARES,FUSION,FARNELL ELECTRONIC,5100297910,260.22
United Kingdon Atomic Energy Authority,United Kingdon Atomic Energy Authority,16/12/2013,MATERIALS & SPARES,FUSION,FARNELL ELECTRONIC,5100297595,270.29
United Kingdon Atomic Energy Authority,United Kingdon Atomic Energy Authority,25/11/2013,MATERIALS & SPARES,FUSION,FARNELL ELECTRONIC,5100296639,280.73
United Kingdon Atomic Energy Authority,United Kingdon Atomic Energy Authority,25/11/2013,MATERIALS & SPARES,FUSION,FARNELL ELECTRONIC,5100296758,281.72
United Kingdon Atomic Energy Authority,United Kingdon Atomic Energy Authority,02/12/2013,MATERIALS & SPARES,FUSION,FARNELL ELECTRONIC,5100296952,287.43
United Kingdon Atomic Energy Authority,United Kingdon Atomic Energy Authority,02/12/2013,MATERIALS & SPARES,FUSION,FARNELL ELECTRONIC,5100296979,338.86
United Kingdon Atomic Energy Authority,United Kingdon Atomic Energy Authority,25/11/2013,MATERIALS & SPARES,FUSION,FARNELL ELECTRONIC,5100296584,341.23
United Kingdon Atomic Energy Authority,United Kingdon Atomic Energy Authority,02/12/2013,MATERIALS & SPARES,FUSION,FARNELL ELECTRONIC,5100296644,346.61
United Kingdon Atomic Energy Authority,United Kingdon Atomic Energy Authority,04/12/2013,MATERIALS & SPARES,FUSION,FARNELL ELECTRONIC,5100296980,365.38
United Kingdon Atomic Energy Authority,United Kingdon Atomic Energy Authority,23/12/2013,MATERIALS & SPARES,FUSION,FARNELL ELECTRONIC,5100297970,374
United Kingdon Atomic Energy Authority,United Kingdon Atomic Energy Authority,25/11/2013,MATERIALS & SPARES,FUSION,FARNELL ELECTRONIC,5100296761,387.76
United Kingdon Atomic Energy Authority,United Kingdon Atomic Energy Authority,18/12/2013,MATERIALS & SPARES,FUSION,FARNELL ELECTRONIC,5100297600,390.56
United Kingdon Atomic Energy Authority,United Kingdon Atomic Energy Authority,16/12/2013,MATERIALS & SPARES,FUSION,FARNELL ELECTRONIC,5100297485,438.4
United Kingdon Atomic Energy Authority,United Kingdon Atomic Energy Authority,23/12/2013,MATERIALS & SPARES,FUSION,FARNELL ELECTRONIC,5100297174,460.52
United Kingdon Atomic Energy Authority,United Kingdon Atomic Energy Authority,23/12/2013,MATERIALS & SPARES,FUSION,FARNELL ELECTRONIC,5100297916,466.6
United Kingdon Atomic Energy Authority,United Kingdon Atomic Energy Authority,25/11/2013,MATERIALS & SPARES,FUSION,FARNELL ELECTRONIC,5100296586,493.9
United Kingdon Atomic Energy Authority,United Kingdon Atomic Energy Authority,02/12/2013,MATERIALS & SPARES,FUSION,FARNELL ELECTRONIC,5100296974,527.62
United Kingdon Atomic Energy Authority,United Kingdon Atomic Energy Authority,23/12/2013,MATERIALS & SPARES,FUSION,FARNELL ELECTRONIC,5100297963,554.32
United Kingdon Atomic Energy Authority,United Kingdon Atomic Energy Authority,11/12/2013,MATERIALS & SPARES,FUSION,FARNELL ELECTRONIC,5100297098,567.33
United Kingdon Atomic Energy Authority,United Kingdon Atomic Energy Authority,16/12/2013,MATERIALS & SPARES,FUSION,FARNELL ELECTRONIC,5100297476,594.97
United Kingdon Atomic Energy Authority,United Kingdon Atomic Energy Authority,25/11/2013,MATERIALS & SPARES,FUSION,FARNELL ELECTRONIC,5100296593,600.95
United Kingdon Atomic Energy Authority,United Kingdon Atomic Energy Authority,02/12/2013,MATERIALS & SPARES,FUSION,FARNELL ELECTRONIC,5100296058,718.55
United Kingdon Atomic Energy Authority,United Kingdon Atomic Energy Authority,04/12/2013,MATERIALS & SPARES,FUSION,FARNELL ELECTRONIC,5100296652,803.51
United Kingdon Atomic Energy Authority,United Kingdon Atomic Energy Authority,27/11/2013,MATERIALS & SPARES,FUSION,FARNELL ELECTRONIC,5100296753,892.57
United Kingdon Atomic Energy Authority,United Kingdon Atomic Energy Authority,02/12/2013,MATERIALS & SPARES,FUSION,FARNELL ELECTRONIC,5100295552,935.77
United Kingdon Atomic Energy Authority,United Kingdon Atomic Energy Authority,04/12/2013,MATERIALS & SPARES,FUSION,FARNELL ELECTRONIC,5100296754,1003
United Kingdon Atomic Energy Authority,United Kingdon Atomic Energy Authority,23/12/2013,MATERIALS & SPARES,FUSION,FARNELL ELECTRONIC,5100297914,1091.82
United Kingdon Atomic Energy Authority,United Kingdon Atomic Energy Authority,16/12/2013,MATERIALS & SPARES,FUSION,FARNELL ELECTRONIC,5100297591,3072.66
United Kingdon Atomic Energy Authority,United Kingdon Atomic Energy Authority,02/12/2013,PLANT & EQUIPMENT,FUSION,FISHER SCIENTIFIC UK LTD,5100296738,11.28
United Kingdon Atomic Energy Authority,United Kingdon Atomic Energy Authority,02/12/2013,PLANT & EQUIPMENT,FUSION,FISHER SCIENTIFIC UK LTD,5100296621,23.63
United Kingdon Atomic Energy Authority,United Kingdon Atomic Energy Authority,09/12/2013,PLANT & EQUIPMENT,FUSION,FISHER SCIENTIFIC UK LTD,5100297312,47.38
United Kingdon Atomic Energy Authority,United Kingdon Atomic Energy Authority,09/12/2013,PLANT & EQUIPMENT,FUSION,FISHER SCIENTIFIC UK LTD,5100297164,56.82
United Kingdon Atomic Energy Authority,United Kingdon Atomic Energy Authority,25/11/2013,PLANT & EQUIPMENT,SUPPORT SERVICES,FISHER SCIENTIFIC UK LTD,5100296571,72.88
United Kingdon Atomic Energy Authority,United Kingdon Atomic Energy Authority,23/12/2013,PLANT & EQUIPMENT,FUSION,FISHER SCIENTIFIC UK LTD,5100298109,123.83
United Kingdon Atomic Energy Authority,United Kingdon Atomic Energy Authority,02/12/2013,PLANT & EQUIPMENT,FUSION,FISHER SCIENTIFIC UK LTD,5100296802,142.74
United Kingdon Atomic Energy Authority,United Kingdon Atomic Energy Authority,02/12/2013,PLANT & EQUIPMENT,FUSION,FISHER SCIENTIFIC UK LTD,5100295611,181.17
United Kingdon Atomic Energy Authority,United Kingdon Atomic Energy Authority,23/12/2013,PLANT & EQUIPMENT,FUSION,FISHER SCIENTIFIC UK LTD,5100297196,371.48
United Kingdon Atomic Energy Authority,United Kingdon Atomic Energy Authority,25/11/2013,PLANT & EQUIPMENT,FUSION,FISHER SCIENTIFIC UK LTD,5100296359,665.6
United Kingdon Atomic Energy Authority,United Kingdon Atomic Energy Authority,23/12/2013,PLANT & EQUIPMENT,FUSION,FISHER SCIENTIFIC UK LTD,5100297920,2205.51
United Kingdon Atomic Energy Authority,United Kingdon Atomic Energy Authority,23/12/2013,MATERIALS & SPARES,FUSION,FLANN MICROWAVE INSTRUMENTS,5100288952,-1873
United Kingdon Atomic Energy Authority,United Kingdon Atomic Energy Authority,16/12/2013,STATIONERY,FUSION,FLAPS ENVELOPES LTD,5100297417,47.85
United Kingdon Atomic Energy Authority,United Kingdon Atomic Energy Authority,16/12/2013,STATIONERY,FUSION,FLAPS ENVELOPES LTD,5100297452,177.8
United Kingdon Atomic Energy Authority,United Kingdon Atomic Energy Authority,16/12/2013,MATERIALS & SPARES,FUSION,FLEXIBLE REINFORCEMENT LIMITED,5100297543,737.5
United Kingdon Atomic Energy Authority,United Kingdon Atomic Energy Authority,16/12/2013,MATERIALS & SPARES,FUSION,FLEXIBLE REINFORCEMENT LIMITED,5100297546,737.5
United Kingdon Atomic Energy Authority,United Kingdon Atomic Energy Authority,27/11/2013,MATERIALS & SPARES,FUSION,FLUID CONTROLS LTD,5100296212,374.61
United Kingdon Atomic Energy Authority,United Kingdon Atomic Energy Authority,23/12/2013,MATERIALS & SPARES,FUSION,FLUID CONTROLS LTD,5100298044,562
United Kingdon Atomic Energy Authority,United Kingdon Atomic Energy Authority,16/12/2013,MATERIALS & SPARES,FUSION,FORGEWELD LTD,5100297451,168.9
United Kingdon Atomic Energy Authority,United Kingdon Atomic Energy Authority,16/12/2013,MATERIALS & SPARES,FUSION,FORGEWELD LTD,5100297501,365
United Kingdon Atomic Energy Authority,United Kingdon Atomic Energy Authority,16/12/2013,MATERIALS & SPARES,FUSION,FORGEWELD LTD,5100297500,1190.86
United Kingdon Atomic Energy Authority,United Kingdon Atomic Energy Authority,18/12/2013,MATERIALS & SPARES,FUSION,FORGEWELD LTD,5100297735,1304.94
United Kingdon Atomic Energy Authority,United Kingdon Atomic Energy Authority,27/11/2013,PROFESSIONAL SERVICES,FUSION,FORTRESS INTERLOCKS LTD,5100295975,81.14
United Kingdon Atomic Energy Authority,United Kingdon Atomic Energy Authority,09/12/2013,MATERIALS & SPARES,FUSION,FORWARD 2000 LTD,5100297324,29.17
United Kingdon Atomic Energy Authority,United Kingdon Atomic Energy Authority,09/12/2013,MATERIALS & SPARES,FUSION,FORWARD 2000 LTD,5100297063,30.62
United Kingdon Atomic Energy Authority,United Kingdon Atomic Energy Authority,16/12/2013,MATERIALS & SPARES,FUSION,FORWARD 2000 LTD,5100297526,52.84
United Kingdon Atomic Energy Authority,United Kingdon Atomic Energy Authority,09/12/2013,MATERIALS & SPARES,FUSION,FORWARD 2000 LTD,5100297062,53.69
